Entity,Vendor Name,Expenditure Account ,Document Number,Clearing Date,Amount (�),Merchant Category
LONDON UNDERGROUND LTD,DEPT OF COMMUNITIES AND LOCAL GOVER,Rates - Central Listed,1005\1900214281,15/06/2020,"38,400,000",
RAIL FOR LONDON LIMITED,MTR CROSSRAIL,Franchise/Concession Fixed Fee,1020\5109894398,05/03/2021,"17,607,625",
RAIL FOR LONDON LIMITED,ARRIVA RAIL LONDON,Franchise/Concession Fixed Fee,1020\5109894331,03/03/2021,"15,192,653",
LONDON BUS SERVICES LTD,METROLINE TRAVEL LTD,Bus Contract Payments,1006\1900045411,19/02/2021,"15,112,983",
LONDON BUS SERVICES LTD,ARRIVA LONDON NORTH LTD,Bus Contract Payments,1006\1900045400,19/02/2021,"13,480,074",
LONDON BUS SERVICES LTD,LONDON GENERAL TRANSPORT SERVICES,Bus Contract Payments,1006\1900045407,19/02/2021,"12,060,661",
RAIL FOR LONDON LIMITED,MORGAN SINDALL  PLC,Civil Engineering Construction Works,1020\5109889836,03/03/2021,"10,834,275",
LONDON BUS SERVICES LTD,LONDON CENTRAL BUS COMPANY LTD ,Bus Contract Payments,1006\1900045406,19/02/2021,"10,747,688",
TRANSPORT TRADING LTD,RAIL SETTLEMENT PLAN,Rail Settlement Plan - PAYG Creditor,1004\1901675615,19/02/2021,"10,370,006",
LONDON BUS SERVICES LTD,LONDON UNITED BUSWAYS,Bus Contract Payments,1006\1900045409,19/02/2021,"9,381,809",
LONDON BUS SERVICES LTD,EAST LONDON BUS & COACH COMPANY LTD,Bus Contract Payments,1006\1900045404,19/02/2021,"9,248,626",
LONDON UNDERGROUND LTD,FERROVIAL LAING O ROURKE ,Civil Engineering Construction Works,1005\5109887214,03/03/2021,"8,498,256",
SURFACE TRANSPORT CORP,METROPOLITAN POLICE,MPS Employment Costs SM,1002\5109881822,18/02/2021,"7,353,008",
DOCKLANDS LIGHT RAILWAY,KEOLIS AMEY DOCKLANDS LIMITED,Franchise/Concession Fixed Fee,1012\5109893705,01/03/2021,"6,826,377",
LONDON BUS SERVICES LTD,ARRIVA LONDON SOUTH LTD,Bus Contract Payments,1006\1900045401,19/02/2021,"6,774,708",
LONDON BUS SERVICES LTD,ABELLIO LONDON LTD,Bus Contract Payments,1006\1900045398,19/02/2021,"6,453,335",
TRANSPORT TRADING LTD,CUBIC TRANSPORTATION SYSTEMS LTD,Cubic Oyster Contract Costs,1004\5109885707,19/02/2021,"5,920,639",
LONDON BUS SERVICES LTD,STAGECOACH,Bus Contract Payments,1006\1900045414,19/02/2021,"5,699,225",
LONDON BUS SERVICES LTD,METROLINE TRAVEL LTD,Bus Contract Payments,1006\1900045463,05/03/2021,"4,870,860",
TFL CORPORATE,NETWORK RAIL,National Rail Fixed Track Access Charges,1001\5109881111,24/02/2021,"4,592,080",
LONDON BUS SERVICES LTD,METROLINE WEST LTD,Bus Contract Payments,1006\1900045412,19/02/2021,"4,515,641",
LONDON BUS SERVICES LTD,ARRIVA LONDON NORTH LTD,Bus Contract Payments,1006\1900045452,05/03/2021,"4,508,266",
LONDON BUS SERVICES LTD,TOWER TRANSIT OPERATIONS LTD,Bus Contract Payments,1006\1900045416,19/02/2021,"4,378,342",
LUL NOMINEE SSL LIMITED,THALES GROUND TRANSPORTATION SYSTEM,Civil Engineering Construction Works,1031\5109889332,03/03/2021,"4,178,937",
LONDON BUS SERVICES LTD,ABELLIO LONDON LTD,Bus Contract Payments,1006\1900045399,19/02/2021,"3,935,013",
RAIL FOR LONDON LIMITED,MTR CROSSRAIL,MR Construction Costs,1020\5109879102,24/02/2021,"3,904,250",
LONDON UNDERGROUND LTD,BRITISH TRANSPORT POLICE,MPS Employment Costs SM,1005\5109882829,03/03/2021,"3,891,539",
LONDON BUS SERVICES LTD,LONDON GENERAL TRANSPORT SERVICES,Bus Contract Payments,1006\1900045459,05/03/2021,"3,842,545",
LONDON BUS SERVICES LTD,METROBUS LIMITED,Bus Contract Payments,1006\1900045410,19/02/2021,"3,641,902",
LONDON BUS SERVICES LTD,LONDON CENTRAL BUS COMPANY LTD ,Bus Contract Payments,1006\1900045458,05/03/2021,"3,486,712",
LONDON UNDERGROUND LTD,ALSTOM NL SERVICE PROVISION LTD,Fleet Tsssa Contract,1005\5109884655,22/02/2021,"3,381,550",
LONDON BUS SERVICES LTD,LONDON UNITED BUSWAYS,Bus Contract Payments,1006\1900045461,05/03/2021,"3,101,619",
LONDON BUS SERVICES LTD,EAST LONDON BUS & COACH COMPANY LTD,Bus Contract Payments,1006\1900045456,05/03/2021,"3,010,098",
LONDON UNDERGROUND LTD,DRAGADOS S.A.,Civil Engineering Construction Works,1005\5109886572,03/03/2021,"2,952,666",
LONDON BUS SERVICES LTD,BLUE TRIANGLE BUSES LTD,Bus Contract Payments,1006\1900045402,19/02/2021,"2,926,239",
LONDON UNDERGROUND LTD,GBM SERVICES LTD,Operational Cleaning,1005\5109892874,04/03/2021,"2,657,515",
RAIL FOR LONDON LIMITED,BOMBARDIER TRANSPORT UK,Vehicle Repairs & Maintenance,1020\5109888628,17/02/2021,"2,579,741",
LONDON UNDERGROUND LTD,THALES GRD TRANSPORTATION SYSTEMS,Computer Hardware,1005\5109883266,03/03/2021,"2,526,082",
LONDON UNDERGROUND LTD,THALES GRD TRANSPORTATION SYSTEMS,Computer Hardware,1005\5109871333,10/02/2021,"2,512,945",
SURFACE TRANSPORT CORP,ENTERPRISEMOUCHEL LTD ,Contracted Services - Roads,1002\5109895943,04/03/2021,"2,410,018",
LONDON UNDERGROUND LTD,ALSTOM NL SERVICE PROVISION LTD,TLL Lease Costs,1005\5109885113,22/02/2021,"2,382,389",
LONDON BUS SERVICES LTD,LONDON SOVEREIGN LTD ,Bus Contract Payments,1006\1900045408,19/02/2021,"2,330,086",
TFL CORPORATE,OFFICE OF RAIL REGULATION,Financial Statement Audit Fees,1001\5109896127,03/03/2021,"2,259,465",
SURFACE TRANSPORT CORP,RINGWAY JACOBS LIMITED,Maintenance of Plant & Equipment,1002\5109896589,04/03/2021,"2,239,750",
LONDON BUS SERVICES LTD,ARRIVA LONDON SOUTH LTD,Bus Contract Payments,1006\1900045453,05/03/2021,"2,237,026",
LONDON BUS SERVICES LTD,ABELLIO LONDON LTD,Bus Contract Payments,1006\1900045450,05/03/2021,"2,097,498",
LONDON BUS SERVICES LTD,CT PLUS LIMITED,Bus Contract Payments,1006\1900045405,19/02/2021,"1,932,756",
LONDON UNDERGROUND LTD,GBM SERVICES LTD,Operational Cleaning,1005\5109892867,04/03/2021,"1,920,974",
LONDON UNDERGROUND LTD,BALFOUR BEATTY RAIL LTD,Track General Maintenance,1005\5109896252,04/03/2021,"1,883,028",
LONDON BUS SERVICES LTD,STAGECOACH,Bus Contract Payments,1006\1900045466,05/03/2021,"1,880,874",
SURFACE TRANSPORT CORP,ROAD MANAGEMENT SERVICES PLC,A13 PFI Service Costs,1002\5109885679,17/02/2021,"1,785,701",
SURFACE TRANSPORT CORP,AECOM LTD,Road Maintenance,1002\5109893899,04/03/2021,"1,669,152",
DOCKLANDS LIGHT RAILWAY,CGL RAIL,Franchise/Concession Fixed Fee,1012\5109892414,24/02/2021,"1,607,624",
LONDON UNDERGROUND LTD,BRITISH TRANSPORT POLICE,MPS Employment Costs SM,1005\5109882831,03/03/2021,"1,496,529",
LONDON BUS SERVICES LTD,METROLINE WEST LTD,Bus Contract Payments,1006\1900045464,05/03/2021,"1,490,148",
LONDON UNDERGROUND LTD,MORGAN SINDALL  PLC,MR Construction Costs,1005\5109884796,03/03/2021,"1,467,934",
LONDON UNDERGROUND LTD,BRITISH TRANSPORT POLICE,MPS Employment Costs SM,1005\5109884536,03/03/2021,"1,464,393",
LONDON BUS SERVICES LTD,TOWER TRANSIT OPERATIONS LTD,Bus Contract Payments,1006\1900045468,05/03/2021,"1,434,717",
SURFACE TRANSPORT CORP,ENTERPRISEMOUCHEL LTD ,Road Maintenance,1002\5109894275,04/03/2021,"1,382,049",
SURFACE TRANSPORT CORP,RINGWAY JACOBS LIMITED,Maintenance of Plant & Equipment,1002\5109894295,04/03/2021,"1,328,886",
LUL NOMINEE SSL LIMITED,THALES GROUND TRANSPORTATION SYSTEM,Civil Engineering Construction Works,1031\5109889330,05/03/2021,"1,314,978",
RAIL FOR LONDON LIMITED,TRAM OPERATIONS LIMITED,Franchise/Concession Fixed Fee,1020\5109875536,12/02/2021,"1,301,774",
LONDON BUS SERVICES LTD,ABELLIO LONDON LTD,Bus Contract Payments,1006\1900045451,05/03/2021,"1,289,837",
SURFACE TRANSPORT CORP,AECOM LTD,Contracted Services - Roads,1002\5109896164,04/03/2021,"1,208,095",
LONDON BUS SERVICES LTD,METROBUS LIMITED,Bus Contract Payments,1006\1900045462,05/03/2021,"1,186,914",
TRANSPORT TRADING LTD,EARLS COURT PARTNERSHIP LIMITED,Purchase of Associates Loan Notes (Activity),1004\1901675683,26/02/2021,"1,128,500",
LONDON UNDERGROUND LTD,LANES GROUP PLC,Building Maintenance & Repairs,1005\5109884850,01/03/2021,"1,092,790",
TFL CORPORATE,EVERSHEDS,Purchase of Land & Buildings,1001\1900072266,04/03/2021,"1,075,018",
RAIL FOR LONDON LIMITED,CLESHAR CONTRACT SERVICES LTD,Maintenance of Plant & Equipment,1020\5109885140,10/02/2021,"1,030,312",
LONDON BUS SERVICES LTD,BLUE TRIANGLE BUSES LTD,Bus Contract Payments,1006\1900045454,05/03/2021,"984,359",
LONDON UNDERGROUND LTD,ALSTOM NL SERVICE PROVISION LTD,TLL Lease Costs,1005\5109884656,22/02/2021,"972,678",
LONDON BUS SERVICES LTD,DOCKLANDS MINIBUS LITD ,Bus Contract Payments,1006\1900045403,19/02/2021,"960,878",
SURFACE TRANSPORT CORP,MORGAN SINDALL  PLC,Contracted Services - Roads,1002\5109874398,12/02/2021,"910,400",
LONDON UNDERGROUND LTD,TELENT TECHNOLOGY SERVICES LTD,Security Equipment,1005\5109884638,04/03/2021,"862,295",
DOCKLANDS LIGHT RAILWAY,BUCKINGHAM GROUP CONTRACTING LTD,Civil Engineering Construction Works,1012\5109892610,26/02/2021,"848,329",
LONDON UNDERGROUND LTD,MORSON HUMAN RESOURCES LTD,Track General Maintenance,1005\5109886161,03/03/2021,"838,187",
LONDON UNDERGROUND LTD,GPX ENGINEERING LTD,Track General Maintenance,1005\5109892473,25/02/2021,"830,792",
TFL CORPORATE,HCL TECHNOLOGIES UK LTD,Manage IT Services,1001\5109876735,16/02/2021,"823,996",
CYCLE HIRE SCHEME,SERCO LTD,Concession Maintenance Charge,1016\5109873182,10/02/2021,"811,249",
LONDON UNDERGROUND LTD,MORSON HUMAN RESOURCES LTD,Track General Maintenance,1005\5109888382,18/02/2021,"796,524",
RAIL FOR LONDON LIMITED,NETWORK RAIL,Civil Engineering Construction Works,1020\5109877340,23/02/2021,"771,413",
LONDON BUS SERVICES LTD,LONDON SOVEREIGN LTD ,Bus Contract Payments,1006\1900045460,05/03/2021,"769,121",
LONDON BUS SERVICES LTD,LONDON GENERAL TRANSPORT SERVICES,Bus Contract Payments,1006\1900045419,19/02/2021,"750,000",
LONDON BUS SERVICES LTD,HR RICHMOND LTD T/A EPSOM BUSES,Bus Contract Payments,1006\1900045413,19/02/2021,"734,322",
LONDON UNDERGROUND LTD,MITIE FM LIMITED,Security Services (Guards),1005\5109875321,12/02/2021,"720,453",
RAIL FOR LONDON LIMITED,MOTT MACDONALD LIMITED,Management & Support Consultancy,1020\5109881264,26/02/2021,"711,659",
LONDON BUS SERVICES LTD,TRAPEZE PTI LTD,Maintenance of Plant & Equipment,1006\5109878251,26/02/2021,"693,542",
LONDON UNDERGROUND LTD,SKANSKA CONTRUCTIONS UK LTD,Civil Engineering Construction Works,1005\5109892260,04/03/2021,"653,001",
LONDON BUS SERVICES LTD,CT PLUS LIMITED,Bus Contract Payments,1006\1900045457,05/03/2021,"631,224",
SURFACE TRANSPORT CORP,CVU JOINT VENTURE,Contracted Services - Roads,1002\5109896104,04/03/2021,"606,118",
LONDON UNDERGROUND LTD,CLESHAR CONTRACT SERVICES LTD,Track General Maintenance,1005\5109873892,09/02/2021,"566,619",
LONDON UNDERGROUND LTD,ENGIE SERVICES LTD,Equipment Repairs & Maintenance,1005\5109875514,17/02/2021,"554,567",
LONDON UNDERGROUND LTD,EVERSHEDS,Purchase of Land & Buildings,1005\1900216621,08/02/2021,"549,462",
LONDON BUS SERVICES LTD,ARRIVA LONDON NORTH LTD,Bus Contract Payments,1006\1900045470,05/03/2021,"542,239",
LONDON BUS SERVICES LTD,SULLIVAN BUS & COACH LTD,Bus Contract Payments,1006\1900045415,19/02/2021,"540,517",
TRANSPORT TRADING LTD,RAIL SETTLEMENT PLAN,Rail Settlement Plan - PAYG Creditor,1004\1901675614,19/02/2021,"506,888",
LONDON RIVER SERVICES LTD,BRIGGS MARINE CONTRACTORS LIMITED,Operator Costs,1007\5109840718,22/02/2021,"476,186",
LONDON BUS SERVICES LTD,AECOM LTD,Contracted Services - Roads,1006\5109896128,04/03/2021,"465,910",
TRANSPORT TRADING LTD,MITIE FM LIMITED,Security Services (Guards),1004\5109874316,15/02/2021,"457,049",
LONDON UNDERGROUND LTD,CLESHAR CONTRACT SERVICES LTD,Track General Maintenance,1005\5109881627,24/02/2021,"454,064",
LONDON UNDERGROUND LTD,KONE PLC,Escalators,1005\5109888857,01/03/2021,"447,121",
LONDON UNDERGROUND LTD,ONE TRANSPORT LIMITED,Travel to/from work (Unsocial Hours),1005\5109887290,16/02/2021,"438,109",
SURFACE TRANSPORT CORP,LONDON BOROUGH OF WALTHAM FOREST,Borough Services,1002\1900067135,08/02/2021,"437,333",
TRANSPORT TRADING LTD,SODEXO LTD,Caterers Service Charges,1004\5109886282,03/03/2021,"433,879",
LONDON UNDERGROUND LTD,HOCHTIEF UK CONSTRUCTION LTD,MR Construction Costs,1005\5109892609,03/03/2021,"422,031",
LUL NOMINEE SSL LIMITED,PROGRESS RAIL SERVICES UK LTD,Track General Maintenance,1031\5109854282,04/03/2021,"421,971",
LONDON UNDERGROUND LTD,ENGIE SERVICES LTD,Fire and Safety Equipment,1005\5109874564,17/02/2021,"421,494",
LONDON UNDERGROUND LTD,HMRC,Payroll Suspense,1005\1900216778,22/02/2021,"417,569",
TRANSPORT TRADING LTD,GLOBAL OUTDOOR MEDIA LIMITED,Purchase of Associates Loan Notes (Activity),1004\5109888810,02/03/2021,"416,831",
LONDON UNDERGROUND LTD,THALES GROUND TRANSPORTATION SYSTEM,Civil Engineering Construction Works,1005\5109889654,03/03/2021,"411,799",
SURFACE TRANSPORT CORP,RINGWAY JACOBS LIMITED,Road Maintenance,1002\5109893970,04/03/2021,"402,492",
LONDON UNDERGROUND LTD,CLESHAR CONTRACT SERVICES LTD,Track General Maintenance,1005\5109889341,18/02/2021,"401,780",
SURFACE TRANSPORT CORP,SIEMENS,Management & Support Consultancy,1002\5109882845,03/03/2021,"398,861",
SURFACE TRANSPORT CORP,LONDON COUNCILS ,Taxicard Funding,1002\1900068173,02/03/2021,"394,664",
SURFACE TRANSPORT CORP,LONDON BOROUGH OF HARROW,Borough Services,1002\1900067063,09/02/2021,"392,382",
LONDON UNDERGROUND LTD,CLESHAR CONTRACT SERVICES LTD,Track General Maintenance,1005\5109889335,18/02/2021,"390,116",
DOCKLANDS LIGHT RAILWAY,HYDER CONSULTING (UK) LTD,Professional Engineering Services,1012\5109892603,25/02/2021,"386,700",
RAIL FOR LONDON LIMITED,BOMBARDIER TRANSPORT UK,Vehicle Repairs & Maintenance,1020\5109873888,10/02/2021,"382,573",
TFL CORPORATE,COMPUTACENTER PLC,Software Maintenance,1001\5109882932,02/03/2021,"374,913",
SURFACE TRANSPORT CORP,CAPITA BUSINESS SERVICES LTD,CCS Service Contract,1002\5109874107,16/02/2021,"371,107",
SURFACE TRANSPORT CORP,LONDON BOROUGH OF BARKING & DAGENHAM,Borough Services,1002\1900067601,02/03/2021,"369,000",
LONDON BUS SERVICES LTD,EMINOX,Vehicle Repairs & Maintenance,1006\5109836870,15/02/2021,"367,132",
DOCKLANDS LIGHT RAILWAY,MACE Ltd,Professional Engineering Services,1012\5109881496,15/02/2021,"365,395",
RAIL FOR LONDON LIMITED,NETWORK RAIL,Professional Engineering Services,1020\5109874952,10/02/2021,"364,280",
LONDON UNDERGROUND LTD,KONE PLC,Escalators,1005\5109888851,01/03/2021,"356,266",
TFL CORPORATE,VCCP GROUP LLP,Marketing Strategy And Consultancy,1001\5109877970,24/02/2021,"349,899",
RAIL FOR LONDON LIMITED,BIRCHAM DYSON BELL,Purchase of Land & Buildings,1020\1900006310,24/02/2021,"346,863",
LONDON BUS SERVICES LTD,LONDON GENERAL TRANSPORT SERVICES,Bus Contract Payments,1006\1900045433,04/03/2021,"341,654",
LONDON UNDERGROUND LTD,KN NETWORK SERVICES LTD,MR Construction Costs,1005\5109892487,24/02/2021,"340,730",
LONDON UNDERGROUND LTD,CLESHAR CONTRACT SERVICES LTD,Track General Maintenance,1005\5109882754,25/02/2021,"339,935",
LUL NOMINEE SSL LIMITED,PROGRESS RAIL SERVICES UK LTD,Track General Maintenance,1031\5109885674,05/03/2021,"336,827",
LONDON UNDERGROUND LTD,CLESHAR CONTRACT SERVICES LTD,Track General Maintenance,1005\5109871097,09/02/2021,"334,755",
LONDON UNDERGROUND LTD,CLESHAR CONTRACT SERVICES LTD,Track General Maintenance,1005\5109881619,01/03/2021,"334,755",
LONDON UNDERGROUND LTD,EDF ENERGY,Electricity,1005\1900216911,25/02/2021,"329,512",
CYCLE HIRE SCHEME,SERCO LTD,Concession Maintenance Charge,1016\5109881750,02/03/2021,"327,180",
RFL (IINFRASTRUCTURE) LTD,SIEMENS,Signalling Systems,1025\5109879140,24/02/2021,"326,284",
SURFACE TRANSPORT CORP,CAPITA BUSINESS SERVICES LTD,CCS Service Contract,1002\5109874176,16/02/2021,"323,946",
LONDON RIVER SERVICES LTD,BRIGGS MARINE CONTRACTORS LIMITED,Operator Costs,1007\5109864331,22/02/2021,"323,126",
TRANSPORT TRADING LTD,VINCI CONSTRUCTION UK LTD,Building Maintenance & Repairs,1004\5109888320,19/02/2021,"322,556",
TRANSPORT TRADING LTD,HEATHROW EXPRESS ,JFT Suspense  - TTL,1004\1901672549,15/04/2020,"321,123",
LONDON UNDERGROUND LTD,BRITISH TRANSPORT POLICE,MPS Employment Costs SM,1005\5109882706,03/03/2021,"317,556",
TRANSPORT TRADING LTD,GBM SERVICES LTD,Office Cleaning,1004\5109893080,04/03/2021,"315,948",
LONDON BUS SERVICES LTD,DOCKLANDS MINIBUS LITD ,Bus Contract Payments,1006\1900045455,05/03/2021,"312,901",
LONDON UNDERGROUND LTD,EDF ENERGY,Electricity,1005\1900216902,25/02/2021,"309,905",
LUL NOMINEE SSL LIMITED,THALES GRD TRANSPORTATION SYSTEMS,Computer Hardware,1031\5109883422,03/03/2021,"309,507",
SURFACE TRANSPORT CORP,METROPOLITAN POLICE,MPS Employment Costs SM,1002\5109881905,18/02/2021,"308,062",
SURFACE TRANSPORT CORP,COSTAIN LTD,Contracted Services - Highway Bridges,1002\5109890199,03/03/2021,"305,236",
TRANSPORT TRADING LTD,GLOBAL OUTDOOR MEDIA LIMITED,Purchase of Associates Loan Notes (Activity),1004\5109889333,02/03/2021,"302,248",
SURFACE TRANSPORT CORP,SOPRA STERIA LTD,Computer Software,1002\5109873873,16/02/2021,"301,805",
LONDON UNDERGROUND LTD,KONE PLC,Escalators,1005\5109874158,17/02/2021,"301,229",
LONDON UNDERGROUND LTD,THALES GROUND TRANSPORTATION SYSTEM,Civil Engineering Construction Works,1005\5109889661,05/03/2021,"299,386",
LUL NOMINEE SSL LIMITED,GIFFEN GROUP LTD,Civil Engineering Construction Works,1031\5109891965,03/03/2021,"299,113",
TRANSPORT TRADING LTD,CUBIC TRANSPORTATION SYSTEMS LTD,Cubic Oyster Contract Costs,1004\5109885710,19/02/2021,"290,518",
TFL CORPORATE,HCL TECHNOLOGIES UK LTD,Manage IT Services,1001\5109878742,24/02/2021,"285,639",
SURFACE TRANSPORT CORP,SIEMENS,Cameras,1002\5109873725,15/02/2021,"283,730",
SURFACE TRANSPORT CORP,CAPITA BUSINESS SERVICES LTD,CCS Service Contract,1002\5109874175,16/02/2021,"269,500",
LONDON UNDERGROUND LTD,DELATIM LIMITED,MR Construction Costs,1005\5109892279,26/02/2021,"268,397",
LONDON UNDERGROUND LTD,CORONA ENERGY RETAIL 4 LTD,Gas,1005\1900216950,01/03/2021,"266,599",
SURFACE TRANSPORT CORP,LONDON BOROUGH OF WALTHAM FOREST,Borough Services,1002\1900067137,08/02/2021,"261,116",
PUBLIC CARRIAGE OFFICE,NSL LIMITED,PCO Outsourced Services,1003\5109886050,26/02/2021,"260,064",
LONDON BUS SERVICES LTD,TRAPEZE PTI LTD,Maintenance of Plant & Equipment,1006\5109877272,25/02/2021,"260,000",
LONDON UNDERGROUND LTD,THALES GRD TRANSPORTATION SYSTEMS,Radio Systems Equipment & Maintenance,1005\5109871354,10/02/2021,"259,247",
LONDON UNDERGROUND LTD,GBM SERVICES LTD,COVID 19 planning,1005\5109896831,04/03/2021,"259,165",
RFL (IINFRASTRUCTURE) LTD,MITIE FM LIMITED,Security Services (Guards),1025\5109875465,15/02/2021,"258,544",
LONDON UNDERGROUND LTD,ENGIE SERVICES LTD,Equipment Repairs & Maintenance,1005\5109875503,17/02/2021,"256,015",
SURFACE TRANSPORT CORP,CAPITA BUSINESS SERVICES LTD,CCS Service Contract,1002\5109874168,16/02/2021,"253,300",
LONDON UNDERGROUND LTD,KNORR-BREMSE RAIL LTD ,MR Construction Costs,1005\5109881367,10/02/2021,"251,538",
LONDON UNDERGROUND LTD,PANASONIC MARKETING EUROPE GMBH,Contracted Services Buildings,1005\5109877166,19/02/2021,"249,392",
LUL NOMINEE SSL LIMITED,PROGRESS RAIL SERVICES UK LTD,Track General Maintenance,1031\5109854278,05/03/2021,"248,734",
TRANSPORT TRADING LTD,HEATHROW EXPRESS ,JFT Suspense  - TTL,1004\1901675227,20/01/2021,"248,553",
TFL CORPORATE,TNS UK LTD,Planning & Development Consultancy,1001\5109879388,24/02/2021,"248,000",
LONDON BUS SERVICES LTD,ARRIVA LONDON NORTH LTD,Bus Contract Payments,1006\1900045430,04/03/2021,"244,412",
LONDON UNDERGROUND LTD,BOMBARDIER TRANSPORT UK,Fleet Tsssa Contract,1005\5109889280,03/03/2021,"235,978",
TFL CORPORATE,COMPUTACENTER PLC,Software Maintenance,1001\5109882933,24/02/2021,"233,376",
SURFACE TRANSPORT CORP,ROAD MANAGEMENT SERVICES PLC,A13 PFI Service Costs,1002\5109885683,17/02/2021,"231,250",
LONDON UNDERGROUND LTD,ABELLIO LONDON LTD,Rail Replacement Service Costs,1005\5109879439,24/02/2021,"227,585",
LONDON BUS SERVICES LTD,HR RICHMOND LTD T/A EPSOM BUSES,Bus Contract Payments,1006\1900045465,05/03/2021,"227,124",
LUL NOMINEE SSL LIMITED,PROGRESS RAIL SERVICES UK LTD,Track General Maintenance,1031\5109854169,04/03/2021,"223,549",
LONDON BUS SERVICES LTD,TRUEFORM ENGINEERING LTD,Purchase of Bus Shelters,1006\5109883257,08/02/2021,"221,262",
TFL CORPORATE,PROBRAND LTD,Software Maintenance,1001\5109869851,08/02/2021,"221,180",
SURFACE TRANSPORT CORP,ROAD MANAGEMENT SERVICES PLC,A13 PFI Service Costs,1002\5109885681,17/02/2021,"219,439",
RFL (IINFRASTRUCTURE) LTD,GB RAILFREIGHT LTD,Equipment Repairs & Maintenance,1025\5109893079,02/03/2021,"218,435",
SURFACE TRANSPORT CORP,TELENT TECHNOLOGY SERVICES LTD,Maintenance of Plant & Equipment,1002\5109885426,24/02/2021,"209,972",
LONDON UNDERGROUND LTD,KN NETWORK SERVICES LTD,MR Construction Costs,1005\5109874793,05/03/2021,"207,116",
SURFACE TRANSPORT CORP,SIEMENS,Cameras,1002\5109873614,15/02/2021,"206,810",
TFL CORPORATE,BYTES SOFTWARE SERVICES,Computer Hardware,1001\5109884600,03/03/2021,"206,222",
RAIL FOR LONDON LIMITED,STAGECOACH,Rail Replacement Service Costs,1020\5109882726,01/03/2021,"205,201",
SURFACE TRANSPORT CORP,SIEMENS,Maintenance of Plant & Equipment,1002\5109886574,24/02/2021,"204,732",
LONDON UNDERGROUND LTD,SCHINDLER LTD,Lift Maintenance,1005\5109881852,17/02/2021,"203,700",
LONDON BUS SERVICES LTD,AIRWAVE SOLUTIONS LTD,Radio Systems Equipment & Maintenance,1006\5109873836,15/02/2021,"203,183",
LONDON UNDERGROUND LTD,EDF ENERGY,Electricity,1005\1900216873,25/02/2021,"201,374",
LONDON UNDERGROUND LTD,SCHINDLER LTD,Lift Maintenance,1005\5109871881,09/02/2021,"200,188",
TFL CORPORATE,GREATER LONDON AUTHORITY ,Planning & Development Consultancy,1001\5109888364,04/03/2021,"200,000",
SURFACE TRANSPORT CORP,CITY OF WESTMINSTER ,Borough Services,1002\1900067183,09/02/2021,"199,897",
TFL CORPORATE,INSIGHT DIRECT UK LIMITED,Software Maintenance,1001\5109874889,16/02/2021,"197,046",
LONDON BUS SERVICES LTD,GBM SERVICES LTD,Office Cleaning,1006\5109893077,04/03/2021,"194,647",
SURFACE TRANSPORT CORP,CSTS LTD,Maintenance of Plant & Equipment,1002\5109888267,25/02/2021,"194,631",
RAIL FOR LONDON LIMITED,NETWORK RAIL,Management & Support Consultancy,1020\5109874139,16/02/2021,"193,114",
LONDON UNDERGROUND LTD,ENGIE SERVICES LTD,Equipment Repairs & Maintenance,1005\5109873136,15/02/2021,"190,851",
TRANSPORT TRADING LTD,QUAY OFFICE FURNISHERS LTD,Office Accommodation Moves,1004\5109885237,10/02/2021,"190,000",
SURFACE TRANSPORT CORP,LONDON BOROUGH OF WALTHAM FOREST,Borough Services,1002\1900067139,08/02/2021,"189,472",
TRANSPORT TRADING LTD,MICROSOFT LTD,Software Maintenance,1004\5109885469,03/03/2021,"188,000",
RAIL FOR LONDON LIMITED,EDF ENERGY,Traction Current,1020\5109885176,24/02/2021,"186,444",
LONDON UNDERGROUND LTD,DUCTCLEAN (UK) LTD T/A DCUK FM,Track General Maintenance,1005\5109889603,19/02/2021,"184,682",
LONDON BUS SERVICES LTD,SULLIVAN BUS & COACH LTD,Bus Contract Payments,1006\1900045467,05/03/2021,"180,110",
TRANSPORT TRADING LTD,HEATHROW EXPRESS ,JFT Suspense  - TTL,1004\1901674291,28/10/2020,"178,451",
CYCLE HIRE SCHEME,SERCO LTD,Concession Maintenance Charge,1016\5109878773,24/02/2021,"178,156",
SURFACE TRANSPORT CORP,INTEROUTE NETWORK LTD ,Telephony Fixed,1002\5109885470,17/02/2021,"173,402",
SURFACE TRANSPORT CORP,COSTAIN LTD,Contracted Services - Highway Bridges,1002\5109882134,26/02/2021,"172,747",
SURFACE TRANSPORT CORP,MULTIPLEX CONSTRUCTION EUROPE LTD,Other Joint Funding Contributions,1002\1900067823,15/02/2021,"171,000",
LONDON UNDERGROUND LTD,1STINRAIL LIMITED,Track General Maintenance,1005\5109885196,10/02/2021,"170,088",
TFL CORPORATE,MEDIAEDGE,Radio TV Press Poster Cinema Airtime And Space,1001\5109872981,18/02/2021,"169,698",
LONDON BUS SERVICES LTD,ARRIVA LONDON NORTH LTD,Bus Contract Payments,1006\1900045388,19/02/2021,"168,990",
TFL CORPORATE,GALLAGHER BASSETT INTERNAT. LTD,Claim Settlements,1001\1900072202,15/02/2021,"168,981",
DOCKLANDS LIGHT RAILWAY,UK POWER NETWORKS LTD,Civil Engineering Construction Works,1012\5109873133,12/02/2021,"168,782",
DOCKLANDS LIGHT RAILWAY,THALES GROUND TRANSPORTATION SYSTEM,Professional Engineering Services,1012\5109873712,15/02/2021,"168,172",
TRANSPORT TRADING LTD,EDF ENERGY,Electricity,1004\1901675616,24/02/2021,"167,058",
LONDON UNDERGROUND LTD,NETWORK RAIL,Track General Maintenance,1005\5109869887,08/02/2021,"166,473",
SURFACE TRANSPORT CORP,CSTS LTD,Traffic Signals,1002\5109877344,10/02/2021,"165,869",
LONDON UNDERGROUND LTD,ABELLIO EAST ANGLIA LTD,MR Construction Costs,1005\5109879461,24/02/2021,"163,389",
PUBLIC CARRIAGE OFFICE,NSL LIMITED,PCO Outsourced Services,1003\5109874915,15/02/2021,"163,035",
TRANSPORT TRADING LTD,HEATHROW EXPRESS ,JFT Suspense  - TTL,1004\1901674007,30/09/2020,"162,953",
SURFACE TRANSPORT CORP,CAPITA BUSINESS SERVICES LTD,CCS Service Contract,1002\5109874167,22/02/2021,"161,896",
LONDON BUS SERVICES LTD,VINCI CONSTRUCTION UK LTD,Building Maintenance & Repairs,1006\5109892689,26/02/2021,"161,176",
LONDON RIVER SERVICES LTD,EUROPEAN ACTIVE PROJECTS LTD,Operator Costs,1007\5109882144,17/02/2021,"160,770",
LONDON UNDERGROUND LTD,SPECIALIST ENGINEERING SERVICES,Track General Maintenance,1005\5109890231,22/02/2021,"159,277",
TFL CORPORATE,COMPUTACENTER PLC,Software Maintenance,1001\5109870331,11/02/2021,"157,939",
RAIL FOR LONDON LIMITED,ARRIVA LONDON NORTH LTD,Rail Replacement Service Costs,1020\5109823652,09/02/2021,"154,083",
LONDON UNDERGROUND LTD,ABELLIO LONDON LTD,Rail Replacement Service Costs,1005\5109882814,09/02/2021,"152,871",
TRANSPORT TRADING LTD,SODEXO LTD,Caterers Service Charges,1004\5109886063,03/03/2021,"152,182",
RAIL FOR LONDON LIMITED,BIRCHAM DYSON BELL,Purchase of Land & Buildings,1020\1900006311,24/02/2021,"151,046",
TFL CORPORATE,INSIGHT DIRECT UK LIMITED,Recruitment Agency Fees,1001\5109866258,12/02/2021,"150,441",
LONDON UNDERGROUND LTD,ALSTOM NL SERVICE PROVISION LTD,Vehicle Repairs & Maintenance,1005\5109884579,22/02/2021,"150,000",
LONDON UNDERGROUND LTD,LANES GROUP PLC,Civil Engineering Construction Works,1005\5109888757,04/03/2021,"149,206",
TFL CORPORATE,MEDIAEDGE,Radio TV Press Poster Cinema Airtime And Space,1001\5109877511,11/02/2021,"146,375",
LONDON UNDERGROUND LTD,GEOFFREY OSBORNE LIMITED,MR Construction Costs,1005\5109889595,24/02/2021,"145,729",
LONDON BUS SERVICES LTD,ARRIVA LONDON NORTH LTD,Bus Contract Payments,1006\1900045442,05/03/2021,"145,030",
RAIL FOR LONDON LIMITED,NETWORK RAIL,Building Maintenance & Repairs,1020\5109875118,17/02/2021,"143,414",
DOCKLANDS LIGHT RAILWAY,THALES GRD TRANSPORTATION SYSTEMS,Civil Engineering Construction Works,1012\5109847618,25/02/2021,"143,280",
LONDON UNDERGROUND LTD,TAYLOR WOODROW CONS BAM NUTTAL LTD,MR Construction Costs,1005\5109881724,25/02/2021,"142,990",
SURFACE TRANSPORT CORP,CSTS LTD,Contracted Services - Tunnels,1002\5109873587,15/02/2021,"142,426",
LONDON UNDERGROUND LTD,CARRAIG INVESTMENTS S.A.R.L,MR Construction Costs,1005\5109869705,02/03/2021,"142,346",
LONDON BUS SERVICES LTD,PROVENTIA OY,Vehicle Repairs & Maintenance,1006\5109886696,25/02/2021,"141,282",
SURFACE TRANSPORT CORP,RINGWAY JACOBS LIMITED,Maintenance of Plant & Equipment,1002\5109877910,01/03/2021,"140,419",
LONDON BUS SERVICES LTD,BAMFORD BUS COMPANY LIMITED,Vehicle Purchases,1006\5109864997,25/02/2021,"139,609",
LONDON BUS SERVICES LTD,BAMFORD BUS COMPANY LIMITED,Vehicle Purchases,1006\5109865003,23/02/2021,"139,609",
LONDON BUS SERVICES LTD,BAMFORD BUS COMPANY LIMITED,Vehicle Purchases,1006\5109865007,23/02/2021,"139,609",
LONDON BUS SERVICES LTD,BAMFORD BUS COMPANY LIMITED,Vehicle Purchases,1006\5109865009,23/02/2021,"139,609",
LONDON BUS SERVICES LTD,TRUEFORM ENGINEERING LTD,Purchase of Bus Shelters,1006\5109888956,17/02/2021,"139,577",
LONDON BUS SERVICES LTD,DELOITTE,Planning & Development Consultancy,1006\5109873334,10/02/2021,"139,495",
RAIL FOR LONDON LIMITED,NETWORK RAIL,Civil Engineering Construction Works,1020\5109825152,05/03/2021,"138,683",
LUL NOMINEE SSL LIMITED,PROGRESS RAIL SERVICES UK LTD,Track General Maintenance,1031\5109854285,05/03/2021,"138,333",
TFL CORPORATE,GLOBAL OUTDOOR MEDIA LIMITED,Radio TV Press Poster Cinema Airtime And Space,1001\5109880989,24/02/2021,"138,000",
LONDON UNDERGROUND LTD,CONAMAR BUILDING SERVICES LTD,Building Maintenance & Repairs,1005\5109886238,17/02/2021,"136,860",
LONDON UNDERGROUND LTD,BALFOUR BEATTY RAIL LTD,Civil Engineering Construction Works,1005\5109889575,03/03/2021,"135,910",
LONDON UNDERGROUND LTD,THALES GROUND TRANSPORTATION SYSTEM,Signalling Systems,1005\5109886091,12/02/2021,"135,833",
LONDON UNDERGROUND LTD,THALES GROUND TRANSPORTATION SYSTEM,Signalling Systems,1005\5109895619,05/03/2021,"135,833",
SURFACE TRANSPORT CORP,TELENT TECHNOLOGY SERVICES LTD,Maintenance of Plant & Equipment,1002\5109885417,24/02/2021,"133,053",
SURFACE TRANSPORT CORP,REDSPEED INTERNATIONAL  LTD,Maintenance of Plant & Equipment,1002\5109883296,03/03/2021,"132,947",
LONDON UNDERGROUND LTD,HARMILL SYSTEMS LTD,Maintenance Materials,1005\5109893083,02/03/2021,"132,900",
LONDON UNDERGROUND LTD,CLESHAR CONTRACT SERVICES LTD,Track General Maintenance,1005\5109889338,18/02/2021,"132,191",
TFL CORPORATE,GLOBAL OUTDOOR MEDIA LIMITED,Art And Poetry Installations And Programmes,1001\5109857109,24/02/2021,"132,016",
SURFACE TRANSPORT CORP,CAPITA BUSINESS SERVICES LTD,CCS Service Contract,1002\5109874037,16/02/2021,"131,245",
LONDON UNDERGROUND LTD,ENGIE SERVICES LTD,Equipment Repairs & Maintenance,1005\5109873128,15/02/2021,"130,620",
LONDON BUS SERVICES LTD,TRUEFORM ENGINEERING LTD,Purchase of Bus Shelters,1006\5109893987,01/03/2021,"130,071",
TRANSPORT TRADING LTD,RAIL SETTLEMENT PLAN,JFT Suspense  - TTL,1004\1901673777,02/09/2020,"127,852",
TRANSPORT TRADING LTD,HEATHROW EXPRESS ,JFT Suspense  - TTL,1004\1901673834,08/09/2020,"127,852",
TRANSPORT TRADING LTD,HEATHROW EXPRESS ,JFT Suspense  - TTL,1004\1901674569,25/11/2020,"127,490",
LONDON UNDERGROUND LTD,CLESHAR CONTRACT SERVICES LTD,Track General Maintenance,1005\5109881793,01/03/2021,"126,913",
LONDON UNDERGROUND LTD,CPC PROJECT SERVICES LLP,MR Construction Costs,1005\5109885841,18/02/2021,"126,497",
LONDON UNDERGROUND LTD,MCGINLEY SUPPORT SERVICES LTD,Track General Maintenance,1005\5109882146,10/02/2021,"126,331",
TFL CORPORATE,EQUINIX (UK) LTD,Manage IT Services,1001\5109884960,11/02/2021,"125,172",
LONDON UNDERGROUND LTD,NCP SERVICES LTD,Costs of Disp Inv Prop - TTL Planning,1005\5109881693,24/02/2021,"123,327",
LONDON UNDERGROUND LTD,ALSTOM NL SERVICE PROVISION LTD,Security Equipment,1005\5109884659,22/02/2021,"122,788",
LUL NOMINEE BCV LIMITED,INTERFLEET TECHNOLOGY LIMITED,Professional Engineering Services,1033\5109890688,22/02/2021,"121,800",
LONDON BUS SERVICES LTD,METROLINE TRAVEL LTD,Bus Contract Payments,1006\1900045436,04/03/2021,"121,002",
TFL CORPORATE,BENTLEY SYSTEMS LTD,Software Maintenance,1001\5109889095,18/02/2021,"120,000",
LONDON BUS SERVICES LTD,MITIE CLEANING & ENVIRONMENTAL,Building Maintenance & Repairs,1006\5109874162,17/02/2021,"119,185",
LONDON UNDERGROUND LTD,HMRC,Payroll Suspense,1005\1900216781,22/02/2021,"118,637",
LUL NOMINEE BCV LIMITED,GALLDRIS SERVICES LIMITED,Civil Engineering Construction Works,1033\5109891955,23/02/2021,"118,484",
SURFACE TRANSPORT CORP,BENTLEY SYSTEMS LTD,Software Maintenance,1002\5109891972,24/02/2021,"118,398",
LONDON UNDERGROUND LTD,GEOFFREY OSBORNE LIMITED,Civil Engineering Construction Works,1005\5109889725,24/02/2021,"117,676",
RFL (IINFRASTRUCTURE) LTD,GB RAILFREIGHT LTD,Equipment Repairs & Maintenance,1025\5109885399,16/02/2021,"116,839",
RAIL FOR LONDON LIMITED,BOMBARDIER TRANSPORT UK,Vehicle Repairs & Maintenance,1020\5109873893,10/02/2021,"116,822",
RAIL FOR LONDON LIMITED,SCHWEERBAU GMBH & CO.KG *PAID BACS*,Management & Support Consultancy,1020\5109871136,10/02/2021,"116,815",
TFL CORPORATE,VCCP GROUP LLP,Production Artwork And Design For Marketing,1001\5109883032,03/03/2021,"115,830",
LONDON UNDERGROUND LTD,HAYLEY GROUP PLC,Stock of Fleet,1005\5109894411,02/03/2021,"114,605",
LONDON UNDERGROUND LTD,KN NETWORK SERVICES LTD,MR Construction Costs,1005\5109860389,24/02/2021,"114,303",
LONDON UNDERGROUND LTD,OTIS LIMITED,Escalators,1005\5109877962,24/02/2021,"113,846",
LONDON UNDERGROUND LTD,GPX ENGINEERING LTD,Track General Maintenance,1005\5109892468,25/02/2021,"113,557",
RAIL FOR LONDON LIMITED,FES FM LTD,Professional Engineering Services,1020\5109881522,02/03/2021,"113,136",
SURFACE TRANSPORT CORP,TELENT TECHNOLOGY SERVICES LTD,Traffic Signals,1002\5109887255,24/02/2021,"112,770",
LONDON RIVER SERVICES LTD,RINGWAY JACOBS LIMITED,Maintenance of Plant & Equipment,1007\5109894259,04/03/2021,"112,381",
SURFACE TRANSPORT CORP,INTEROUTE NETWORK LTD ,Telephony Fixed,1002\5109873593,10/02/2021,"112,236",
LONDON UNDERGROUND LTD,OTIS LIMITED,Escalators,1005\5109878059,24/02/2021,"112,201",
LONDON UNDERGROUND LTD,HAYLEY GROUP PLC,Stock of Fleet,1005\5109893411,01/03/2021,"111,908",
DOCKLANDS LIGHT RAILWAY,KEOLIS AMEY DOCKLANDS LIMITED,Professional Engineering Services,1012\5109873863,19/02/2021,"111,683",
LONDON UNDERGROUND LTD,LENDLEASE JACOBS JOINT VENTURE,MR Construction Costs,1005\5109870252,09/02/2021,"109,327",
LONDON BUS SERVICES LTD,METROLINE TRAVEL LTD,Vehicle Repairs & Maintenance,1006\5109875103,17/02/2021,"108,898",
RAIL FOR LONDON LIMITED,ABELLIO LONDON LTD,Rail Replacement Service Costs,1020\5109882805,08/02/2021,"108,631",
LONDON BUS SERVICES LTD,ARRIVA LONDON SOUTH LTD,Bus Contract Payments,1006\1900045443,05/03/2021,"108,335",
LONDON UNDERGROUND LTD,KONE PLC,Lift Maintenance,1005\5109890241,03/03/2021,"107,480",
LONDON UNDERGROUND LTD,HAYLEY GROUP PLC,Stock of Fleet,1005\5109893439,26/02/2021,"106,912",
RAIL FOR LONDON LIMITED,CLESHAR CONTRACT SERVICES LTD,Management & Support Consultancy,1020\5109870265,08/02/2021,"106,587",
LUL NOMINEE SSL LIMITED,THALES GRD TRANSPORTATION SYSTEMS,Computer Hardware,1031\5109883275,03/03/2021,"106,556",
SURFACE TRANSPORT CORP,ASHURST LLP,Legal Fees,1002\5109879281,24/02/2021,"106,364",
SURFACE TRANSPORT CORP,EDF ENERGY,Electricity,1002\5109886507,19/02/2021,"105,926",
SURFACE TRANSPORT CORP,LONDON COUNCILS ,PCN and Penalty Fare Processing,1002\5109881634,11/02/2021,"104,731",
LONDON UNDERGROUND LTD,MERSEN UK TEESSIDE LIMITED,Maintenance Materials,1005\5109876885,22/02/2021,"103,033",
RAIL FOR LONDON LIMITED,NETWORK RAIL,Civil Engineering Construction Works,1020\5109844068,05/03/2021,"102,781",
LONDON BUS SERVICES LTD,TRL LTD,Vehicle Repairs & Maintenance,1006\5109879493,24/02/2021,"101,832",
LONDON UNDERGROUND LTD,WILLIAM COOK RAIL LTD,Fleet,1005\5109882161,24/02/2021,"101,500",
LONDON UNDERGROUND LTD,KONE PLC,Escalators,1005\5109886567,16/02/2021,"101,448",
TFL CORPORATE,COMPUTACENTER PLC,Software Maintenance,1001\5109869825,08/02/2021,"100,000",
SURFACE TRANSPORT CORP,SOPRA STERIA LTD,Computer Software,1002\5109873874,16/02/2021,"99,143",
LONDON UNDERGROUND LTD,KONE PLC,Lift Maintenance,1005\5109874315,10/02/2021,"98,102",
LONDON UNDERGROUND LTD,HEGENSCHEIDT-MFD GMBH,Maintenance Materials,1005\5109884482,05/03/2021,"97,459",
SURFACE TRANSPORT CORP,LONDON BOROUGH OF WALTHAM FOREST,Borough Services,1002\1900067141,08/02/2021,"97,175",
LONDON UNDERGROUND LTD,NETWORK RAIL,National Rail Variable Track Access Charges,1005\5109877230,22/02/2021,"97,035",
TFL CORPORATE,GOWLING WLG,Purchase of Land & Buildings,1001\1900072098,25/02/2021,"96,987",
LONDON UNDERGROUND LTD,SCHINDLER LTD,Escalators,1005\5109893413,03/03/2021,"96,568",
LONDON UNDERGROUND LTD,GEOFFREY OSBORNE LIMITED,Civil Engineering Construction Works,1005\5109889728,24/02/2021,"95,861",
LONDON UNDERGROUND LTD,THALES GRD TRANSPORTATION SYSTEMS,Computer Hardware,1005\5109871324,10/02/2021,"95,562",
TRANSPORT TRADING LTD,HEATHROW EXPRESS ,JFT Suspense  - TTL,1004\1901674840,23/12/2020,"94,935",
LONDON UNDERGROUND LTD,LANES GROUP PLC,Civil Engineering Construction Works,1005\5109888747,17/02/2021,"94,877",
LONDON UNDERGROUND LTD,CLESHAR CONTRACT SERVICES LTD,Track General Maintenance,1005\5109874189,10/02/2021,"94,874",
LONDON BUS SERVICES LTD,BAMFORD BUS COMPANY LIMITED,Vehicle Purchases,1006\5109880921,11/02/2021,"94,810",
LONDON UNDERGROUND LTD,LANES GROUP PLC,Building Maintenance & Repairs,1005\5109881086,10/02/2021,"94,728",
LUL NOMINEE BCV LIMITED,MCGINLEY SUPPORT SERVICES LTD,Track General Maintenance,1033\5109882338,11/02/2021,"94,134",
LONDON UNDERGROUND LTD,GPX ENGINEERING LTD,Track General Maintenance,1005\5109892471,25/02/2021,"93,501",
SURFACE TRANSPORT CORP,ARCADIS GEN UK LIMITED,Professional Engineering Services,1002\5109896791,05/03/2021,"92,753",
LONDON UNDERGROUND LTD,NATIVE LAND LTD,Planning & Development Consultancy,1005\5109882326,10/02/2021,"91,293",
LONDON UNDERGROUND LTD,CLESHAR CONTRACT SERVICES LTD,Track General Maintenance,1005\5109889343,18/02/2021,"91,001",
TRANSPORT TRADING LTD,HEATHROW EXPRESS ,JFT Suspense  - TTL,1004\1901673499,05/08/2020,"90,862",
SURFACE TRANSPORT CORP,SOUTHERN GAS NETWORK PLC ,Section 159 Payments,1002\1900068270,04/03/2021,"90,000",
LONDON BUS SERVICES LTD,VINCI CONSTRUCTION UK LTD,Building Maintenance & Repairs,1006\5109888322,18/02/2021,"88,026",
TRANSPORT TRADING LTD,BNP PARIBAS REAL ESTATE ADV & PROP,Management & Support Consultancy,1004\5109873364,08/02/2021,"87,692",
LONDON UNDERGROUND LTD,KN NETWORK SERVICES LTD,MR Construction Costs,1005\5109885423,05/03/2021,"86,909",
LONDON UNDERGROUND LTD,NETWORK RAIL,Traction Current,1005\5109877221,22/02/2021,"86,447",
LONDON UNDERGROUND LTD,CLEAR ROUTE UTILITY SERVICES LTD,Electrical Equipment Maintenance,1005\5109888700,17/02/2021,"86,243",
LONDON UNDERGROUND LTD,BALFOUR BEATTY RAIL LTD,Civil Engineering Construction Works,1005\5109889594,03/03/2021,"85,337",
LONDON UNDERGROUND LTD,NETWORK RAIL,National Rail Variable Track Access Charges,1005\5109877047,22/02/2021,"84,113",
LUL NOMINEE BCV LIMITED,SIEMENS,Signalling Systems,1033\5109886708,03/03/2021,"83,076",
SURFACE TRANSPORT CORP,LONDON BOROUGH OF HARROW,Borough Services,1002\1900067456,09/02/2021,"82,752",
LONDON UNDERGROUND LTD,SIEMENS,Signalling Systems,1005\5109870060,08/02/2021,"82,736",
LONDON BUS SERVICES LTD,ABELLIO LONDON LTD,Bus Contract Payments,1006\1900045429,04/03/2021,"82,513",
LONDON UNDERGROUND LTD,SCHINDLER LTD,Escalators,1005\5109854651,02/03/2021,"82,312",
LONDON UNDERGROUND LTD,SCHINDLER LTD,Escalators,1005\5109893383,03/03/2021,"82,312",
LONDON UNDERGROUND LTD,MITIE FM LIMITED,COVID 19 planning,1005\5109875324,15/02/2021,"82,150",
RAIL FOR LONDON LIMITED,LINKS SIGNS LTD,Sign Manufacture,1020\5109882100,09/02/2021,"81,335",
LONDON UNDERGROUND LTD,ALSTOM NL SERVICE PROVISION LTD,TLL Lease Costs,1005\5109884654,22/02/2021,"81,015",
DOCKLANDS LIGHT RAILWAY,TIFFANY SCOTT QC,Legal Fees,1012\5109888355,17/02/2021,"80,550",
LONDON UNDERGROUND LTD,SCHINDLER LTD,Escalators,1005\5109866752,08/02/2021,"80,166",
LUL NOMINEE SSL LIMITED,KN NETWORK SERVICES LTD,Professional Engineering Services,1031\5109835009,05/03/2021,"79,563",
TRANSPORT TRADING LTD,GRAYSONS HOSPITALITY LIMITED,Caterers Service Charges,1004\5109885609,15/02/2021,"79,555",
LONDON UNDERGROUND LTD,GEOFFREY OSBORNE LIMITED,Civil Engineering Construction Works,1005\5109889606,24/02/2021,"78,724",
SURFACE TRANSPORT CORP,AECOM LTD,Planning & Development Consultancy,1002\5109891977,26/02/2021,"78,707",
TFL CORPORATE,EDENRED (UK GROUP) LIMITED,Staff Welfare Benefits,1001\5109885708,22/02/2021,"78,327",
LONDON UNDERGROUND LTD,CLESHAR CONTRACT SERVICES LTD,MR Construction Costs,1005\5109889283,18/02/2021,"77,294",
DIAL A RIDE,WOODALL NICHOLSON LTD,Vehicle Purchases,1010\5109866866,15/02/2021,"77,013",
DIAL A RIDE,WOODALL NICHOLSON LTD,Vehicle Purchases,1010\5109866867,15/02/2021,"77,013",
DIAL A RIDE,WOODALL NICHOLSON LTD,Vehicle Purchases,1010\5109866895,15/02/2021,"77,013",
DIAL A RIDE,WOODALL NICHOLSON LTD,Vehicle Purchases,1010\5109866903,15/02/2021,"77,013",
DIAL A RIDE,WOODALL NICHOLSON LTD,Vehicle Purchases,1010\5109866905,22/02/2021,"77,013",
DIAL A RIDE,WOODALL NICHOLSON LTD,Vehicle Purchases,1010\5109882979,10/02/2021,"77,013",
SURFACE TRANSPORT CORP,LONDON BOROUGH OF WALTHAM FOREST,Borough Services,1002\1900067136,08/02/2021,"76,797",
LONDON BUS SERVICES LTD,EAST LONDON BUS & COACH COMPANY LTD,Bus Contract Payments,1006\1900045431,04/03/2021,"75,210",
LONDON UNDERGROUND LTD,ENGIE SERVICES LTD,Equipment Repairs & Maintenance,1005\5109863654,10/02/2021,"74,844",
LONDON UNDERGROUND LTD,WILLMOTT DIXON INTERIORS LTD,MR Construction Costs,1005\5109892255,01/03/2021,"74,025",
LONDON UNDERGROUND LTD,BAE SYSTEMS AEI,Software Maintenance,1005\5109877527,23/02/2021,"73,900",
LONDON UNDERGROUND LTD,BAE SYSTEMS AEI,Software Maintenance,1005\5109876880,22/02/2021,"73,899",
DOCKLANDS LIGHT RAILWAY,KEOLIS AMEY DOCKLANDS LIMITED,Professional Engineering Services,1012\5109888575,24/02/2021,"73,834",
RAIL FOR LONDON LIMITED,UKTRAM (USE 10012816),Management & Support Consultancy,1020\5109877980,11/02/2021,"73,450",
LONDON UNDERGROUND LTD,KN NETWORK SERVICES LTD,MR Construction Costs,1005\5109886146,05/03/2021,"73,130",
SURFACE TRANSPORT CORP,EDF ENERGY,Electricity,1002\5109885182,17/02/2021,"72,982",
SURFACE TRANSPORT CORP,TELENT TECHNOLOGY SERVICES LTD,Traffic Signals,1002\5109886745,24/02/2021,"72,903",
TFL CORPORATE,DIGITAL REALTY (UK) LTD,Manage IT Services,1001\5109893873,01/03/2021,"72,879",
LONDON UNDERGROUND LTD,Z-TECH CONTROL SYSTEMS LTD,MR Construction Costs,1005\5109893378,03/03/2021,"72,825",
DOCKLANDS LIGHT RAILWAY,DELATIM LIMITED,Civil Engineering Construction Works,1012\5109882797,23/02/2021,"72,787",
DOCKLANDS LIGHT RAILWAY,SIMOCO EMEA LTD,Civil Engineering Construction Works,1012\5109891948,26/02/2021,"72,220",
SURFACE TRANSPORT CORP,SIEMENS,Traffic Signals,1002\5109878090,10/02/2021,"72,072",
SURFACE TRANSPORT CORP,VAISALA LTD,Road Maintenance,1002\5109869830,08/02/2021,"71,780",
SURFACE TRANSPORT CORP,EVERSHEDS,Legal Fees,1002\5109897274,04/03/2021,"71,518",
LONDON UNDERGROUND LTD,DELATIM LIMITED,MR Construction Costs,1005\5109896085,05/03/2021,"71,247",
RAIL FOR LONDON LIMITED,ABB SCHWEIZ AG,Vehicle Repairs & Maintenance,1020\5109861526,16/02/2021,"70,500",
LONDON UNDERGROUND LTD,DELATIM LIMITED,Equipment Repairs & Maintenance,1005\5109895572,03/03/2021,"70,100",
TFL CORPORATE,HCL TECHNOLOGIES UK LTD,Manage IT Services,1001\5109873591,15/02/2021,"69,572",
TFL CORPORATE,HCL TECHNOLOGIES UK LTD,Manage IT Services,1001\5109878743,24/02/2021,"69,572",
LONDON BUS SERVICES LTD,LONDON UNITED BUSWAYS,Bus Contract Payments,1006\1900045435,04/03/2021,"69,540",
LUL NOMINEE BCV LIMITED,AGGREGATE INDUSTRIES UK LTD,Track General Maintenance,1033\5109881195,26/02/2021,"69,344",
TFL CORPORATE,TNS UK LTD,Customer Research And Counts,1001\5109879390,24/02/2021,"69,300",
LONDON UNDERGROUND LTD,SCHINDLER LTD,Lift Maintenance,1005\5109877201,09/02/2021,"68,868",
TFL CORPORATE,O2 UK LTD,Computer Hardware,1001\5109877715,24/02/2021,"68,802",
LONDON UNDERGROUND LTD,TELENT TECHNOLOGY SERVICES LTD,Equipment Repairs & Maintenance,1005\5109889769,25/02/2021,"68,685",
TRANSPORT TRADING LTD,CORONA ENERGY RETAIL 4 LTD,Gas,1004\1901675573,24/02/2021,"68,464",
SURFACE TRANSPORT CORP,TELENT TECHNOLOGY SERVICES LTD,Traffic Signals,1002\5109887153,24/02/2021,"67,750",
LONDON BUS SERVICES LTD,BAMFORD BUS COMPANY LIMITED,Vehicle Purchases,1006\5109874425,17/02/2021,"67,721",
LONDON BUS SERVICES LTD,BAMFORD BUS COMPANY LIMITED,Vehicle Purchases,1006\5109874428,18/02/2021,"67,721",
LONDON BUS SERVICES LTD,BAMFORD BUS COMPANY LIMITED,Vehicle Purchases,1006\5109874435,17/02/2021,"67,721",
LONDON UNDERGROUND LTD,CLESHAR CONTRACT SERVICES LTD,Track General Maintenance,1005\5109875497,16/02/2021,"67,533",
SURFACE TRANSPORT CORP,TELENT TECHNOLOGY SERVICES LTD,Maintenance of Plant & Equipment,1002\5109873467,15/02/2021,"67,090",
TFL CORPORATE,CAPITA BUSINESS SERVICES LTD,Computer Hardware,1001\5109883301,03/03/2021,"65,630",
LONDON UNDERGROUND LTD,DELOITTE,Management & Support Consultancy,1005\5109873748,15/02/2021,"64,900",
LONDON UNDERGROUND LTD,SCHINDLER LTD,Lift Maintenance,1005\5109874089,08/02/2021,"64,875",
LONDON UNDERGROUND LTD,CSTS LTD,Radio Systems Equipment & Maintenance,1005\5109878284,24/02/2021,"64,754",
TRANSPORT TRADING LTD,JOURNEYCALL LTD,Ticket & Pass Production,1004\5109890168,04/03/2021,"64,398",
SURFACE TRANSPORT CORP,SIEMENS,Road Maintenance,1002\5109878109,09/02/2021,"63,662",
LONDON UNDERGROUND LTD,NETWORK RAIL,Traction Current,1005\5109877071,22/02/2021,"63,639",
LONDON UNDERGROUND LTD,CLESHAR CONTRACT SERVICES LTD,Track General Maintenance,1005\5109885181,10/02/2021,"63,522",
SURFACE TRANSPORT CORP,REDSPEED INTERNATIONAL  LTD,Maintenance of Plant & Equipment,1002\5109883298,03/03/2021,"63,379",
DOCKLANDS LIGHT RAILWAY,ASTUTNE,Financial Statement Audit Fees,1012\5109886210,22/02/2021,"63,000",
LUL NOMINEE BCV LIMITED,LIONWELD KENNEDY FLOORING LTD,Signalling Systems,1033\5109878339,16/02/2021,"62,763",
RAIL FOR LONDON LIMITED,SCHWEERBAU GMBH & CO.KG *PAID BACS*,Management & Support Consultancy,1020\5109881022,01/03/2021,"62,550",
LONDON UNDERGROUND LTD,GEOFFREY OSBORNE LIMITED,MR Construction Costs,1005\5109889717,24/02/2021,"62,495",
TFL CORPORATE,UCL CONSULTANTS LIMITED,COVID 19 planning,1001\5109878038,24/02/2021,"61,900",
LONDON UNDERGROUND LTD,TELENT TECHNOLOGY SERVICES LTD,Cameras,1005\5109877127,16/02/2021,"61,772",
LONDON UNDERGROUND LTD,SPECIALIST ENGINEERING SERVICES,Equipment Repairs & Maintenance,1005\5109879327,26/02/2021,"60,996",
LONDON UNDERGROUND LTD,MORSON INTERNATIONAL,Building Maintenance & Repairs,1005\5109886079,23/02/2021,"60,700",
RAIL FOR LONDON LIMITED,INSIGHT DIRECT UK LIMITED,Software Maintenance,1020\5109876929,22/02/2021,"60,587",
RAIL FOR LONDON LIMITED,ABELLIO LONDON LTD,Rail Replacement Service Costs,1020\5109882810,08/02/2021,"60,279",
RAIL FOR LONDON LIMITED,MITIE FM LIMITED,Security Services (Guards),1020\5109875459,15/02/2021,"60,166",
SURFACE TRANSPORT CORP,SIEMENS,Traffic Signals,1002\5109878084,10/02/2021,"59,918",
SURFACE TRANSPORT CORP,CAPITA BUSINESS SERVICES LTD,CCS Service Contract,1002\5109874111,16/02/2021,"59,825",
LONDON UNDERGROUND LTD,BALFOUR BEATTY RAIL LTD,MR Construction Costs,1005\5109885130,03/03/2021,"59,380",
LONDON BUS SERVICES LTD,TAIT EUROPE LTD,Radio Systems Equipment & Maintenance,1006\5109871950,10/02/2021,"59,349",
LONDON BUS SERVICES LTD,TAIT EUROPE LTD,Radio Systems Equipment & Maintenance,1006\5109895650,03/03/2021,"59,349",
LONDON BUS SERVICES LTD,EDF ENERGY,Electricity,1006\5109888974,25/02/2021,"59,304",
LUL NOMINEE SSL LIMITED,KN NETWORK SERVICES LTD,Professional Engineering Services,1031\5109873440,05/03/2021,"58,762",
SURFACE TRANSPORT CORP,ROAD MANAGEMENT SERVICES PLC,A13 PFI Service Costs,1002\5109885682,17/02/2021,"58,275",
LONDON BUS SERVICES LTD,TRUEFORM ENGINEERING LTD,Maintenance of Plant & Equipment,1006\5109889118,22/02/2021,"58,235",
TFL CORPORATE,CAPITA BUSINESS SERVICES LTD,Computer Hardware,1001\5109883307,03/03/2021,"58,056",
SURFACE TRANSPORT CORP,SOUTH BANK TOWER LTD,Other Joint Funding Contributions,1002\1900067828,16/02/2021,"57,982",
LONDON UNDERGROUND LTD,CLESHAR CONTRACT SERVICES LTD,Track General Maintenance,1005\5109875496,16/02/2021,"57,759",
LONDON UNDERGROUND LTD,ENGIE SERVICES LTD,Fire and Safety Equipment,1005\5109869824,08/02/2021,"57,419",
LUL NOMINEE BCV LIMITED,LIONWELD KENNEDY FLOORING LTD,Signalling Systems,1033\5109878347,17/02/2021,"57,163",
TFL CORPORATE,MORSON PROJECTS LIMITED,Management & Support Consultancy,1001\5109885259,11/02/2021,"56,412",
LONDON UNDERGROUND LTD,ONE TRANSPORT LIMITED,Travel to/from work (Unsocial Hours),1005\5109887299,16/02/2021,"56,335",
SURFACE TRANSPORT CORP,SIEMENS,Traffic Signals,1002\5109878097,10/02/2021,"56,203",
RAIL FOR LONDON LIMITED,WSP UK LTD,Professional Engineering Services,1020\5109890205,03/03/2021,"55,723",
LONDON UNDERGROUND LTD,MOTT MACDONALD LIMITED,Planning & Development Consultancy,1005\5109890284,25/02/2021,"55,353",
DOCKLANDS LIGHT RAILWAY,AECOM LTD,Professional Engineering Services,1012\5109881728,24/02/2021,"55,129",
LONDON UNDERGROUND LTD,MOTT MACDONALD LIMITED,Planning & Development Consultancy,1005\5109736792,25/02/2021,"55,000",
SURFACE TRANSPORT CORP,MEDIAEDGE,Production Artwork And Design For Marketing,1002\5109877007,09/02/2021,"54,943",
TRANSPORT TRADING LTD,HEATHROW EXPRESS ,JFT Suspense  - TTL,1004\1901675603,17/02/2021,"54,182",
TFL CORPORATE,CAPITA BUSINESS SERVICES LTD,Computer Hardware,1001\5109883309,03/03/2021,"53,954",
LONDON UNDERGROUND LTD,TRACKWORK RESOURCES LTD,Track General Maintenance,1005\5109882781,08/02/2021,"53,878",
LONDON UNDERGROUND LTD,MORSON HUMAN RESOURCES LTD,Track General Maintenance,1005\5109885139,10/02/2021,"53,867",
RAIL FOR LONDON LIMITED,NORTHSTAR CONSULTANCY,Contractors,1020\5109881828,08/02/2021,"53,828",
TFL CORPORATE,CAPITA BUSINESS SERVICES LTD,Computer Hardware,1001\5109883305,03/03/2021,"53,668",
TFL CORPORATE,CAPITA BUSINESS SERVICES LTD,Computer Hardware,1001\5109883308,03/03/2021,"53,068",
TFL CORPORATE,CAPITA BUSINESS SERVICES LTD,Computer Hardware,1001\5109883304,03/03/2021,"52,863",
SURFACE TRANSPORT CORP,SIEMENS,Traffic Signals,1002\5109879303,11/02/2021,"52,795",
TFL CORPORATE,EQUINIX (UK) LTD,Manage IT Services,1001\5109884942,01/03/2021,"52,771",
RAIL FOR LONDON LIMITED,AVONDALE ENVIRONMENTAL SERVICES LTD,Management & Support Consultancy,1020\5109883486,10/02/2021,"52,730",
LUL NOMINEE SSL LIMITED,ABB POWER GRIDS UK LIMITED,Traction Current,1031\5109877619,10/02/2021,"52,641",
LUL NOMINEE SSL LIMITED,ABB POWER GRIDS UK LIMITED,Traction Current,1031\5109894319,04/03/2021,"52,641",
LONDON UNDERGROUND LTD,TELENT TECHNOLOGY SERVICES LTD,Equipment Repairs & Maintenance,1005\5109889615,19/02/2021,"52,559",
LONDON BUS SERVICES LTD,PROVENTIA OY,Vehicle Repairs & Maintenance,1006\5109888721,01/03/2021,"52,274",
TFL CORPORATE,VCCP GROUP LLP,Production Artwork And Design For Marketing,1001\5109883007,03/03/2021,"51,993",
TRANSPORT TRADING LTD,KIDBROOKE PARTNERSHIP LLP,Purchase of Associates Loan Notes (Activity),1004\1901675511,16/02/2021,"51,844",
LONDON UNDERGROUND LTD,BRYEN & LANGLEY LTD,Building Maintenance & Repairs,1005\5109881287,10/02/2021,"51,217",
TRANSPORT TRADING LTD,NOVACROFT DIRECT LTD,Ticket & Pass Production,1004\5109885564,17/02/2021,"51,213",
TFL CORPORATE,INSIGHT DIRECT UK LIMITED,Software Maintenance,1001\5109783505,08/02/2021,"50,859",
TFL CORPORATE,PROBRAND LTD,Software Maintenance,1001\5109881386,01/03/2021,"50,485",
LONDON UNDERGROUND LTD,LANES GROUP PLC,Building Maintenance & Repairs,1005\5109881277,24/02/2021,"50,461",
RFL (IINFRASTRUCTURE) LTD,TELENT TECHNOLOGY SERVICES LTD,Fire and Safety Equipment,1025\5109873397,10/02/2021,"50,271",
RFL (IINFRASTRUCTURE) LTD,TELENT TECHNOLOGY SERVICES LTD,Fire and Safety Equipment,1025\5109873411,10/02/2021,"50,271",
LUL NOMINEE BCV LIMITED,INTERFLEET TECHNOLOGY LIMITED,Professional Engineering Services,1033\5109890689,22/02/2021,"50,177",
LONDON UNDERGROUND LTD,WILLIAM COOK RAIL LTD,Fleet,1005\5109886046,12/02/2021,"50,088",
TFL CORPORATE,GLOBAL OUTDOOR MEDIA LIMITED,Radio TV Press Poster Cinema Airtime And Space,1001\5109885066,10/02/2021,"50,075",
LONDON UNDERGROUND LTD,ENTERPISE AMS GROUP LTD ,Software Maintenance,1005\5109877727,23/02/2021,"50,041",
LONDON UNDERGROUND LTD,LUCCHINI UK LTD,Fleet,1005\5109881014,24/02/2021,"49,899",
LONDON UNDERGROUND LTD,ONE TRANSPORT LIMITED,Travel to/from work (Unsocial Hours),1005\5109887296,16/02/2021,"49,861",
LONDON BUS SERVICES LTD,TRAPEZE PTI LTD,Electrical & Electronic Engineering,1006\5109888295,16/02/2021,"49,637",
SURFACE TRANSPORT CORP,TELENT TECHNOLOGY SERVICES LTD,Contracted Services - Roads,1002\5109887157,24/02/2021,"49,549",
LONDON BUS SERVICES LTD,UNIVERSITYBUS LTD,Bus Contract Payments,1006\1900045417,19/02/2021,"49,169",
LUL NOMINEE BCV LIMITED,UESL,MR Construction Costs,1033\5109885247,15/02/2021,"49,136",
LONDON UNDERGROUND LTD,GEOFFREY OSBORNE LIMITED,MR Construction Costs,1005\5109875516,10/02/2021,"48,953",
TFL CORPORATE,PROBRAND LTD,Software Maintenance,1001\5109865461,25/02/2021,"48,440",
SURFACE TRANSPORT CORP,SIEMENS,Road Maintenance,1002\5109878630,10/02/2021,"48,367",
SURFACE TRANSPORT CORP,TELENT TECHNOLOGY SERVICES LTD,Traffic Signals,1002\5109887311,24/02/2021,"48,312",
LONDON BUS SERVICES LTD,CT PLUS LIMITED,Bus Contract Payments,1006\1900045432,04/03/2021,"48,281",
LONDON UNDERGROUND LTD,THALES GROUND TRANSPORTATION SYSTEM,Civil Engineering Construction Works,1005\5109889602,03/03/2021,"48,183",
LONDON UNDERGROUND LTD,LUCCHINI UK LTD,Fleet,1005\5109873583,18/02/2021,"48,178",
TFL CORPORATE,CAPITA BUSINESS SERVICES LTD,Computer Hardware,1001\5109883311,03/03/2021,"48,082",
LONDON BUS SERVICES LTD,TOWER TRANSIT OPERATIONS LTD,Bus Contract Payments,1006\1900045449,05/03/2021,"48,050",
LONDON UNDERGROUND LTD,THALES GRD TRANSPORTATION SYSTEMS,Computer Hardware,1005\5109871317,10/02/2021,"47,452",
TFL CORPORATE,INTERFLEET TECHNOLOGY LIMITED,Management & Support Consultancy,1001\5109871863,10/02/2021,"47,313",
LONDON BUS SERVICES LTD,TELENT TECHNOLOGY SERVICES LTD,Security Equipment,1006\5109891934,04/03/2021,"47,300",
TFL CORPORATE,INSIGHT DIRECT UK LIMITED,Software Maintenance,1001\5109884614,03/03/2021,"47,261",
TRANSPORT TRADING LTD,NOVACROFT DIRECT LTD,Ticket & Pass Production,1004\5109885569,19/02/2021,"47,196",
LONDON UNDERGROUND LTD,DUCTCLEAN (UK) LTD T/A DCUK FM,Track General Maintenance,1005\5109885434,11/02/2021,"47,038",
LUL NOMINEE BCV LIMITED,TIFLEX LTD,Maintenance Materials,1033\5109879552,24/02/2021,"47,018",
RAIL FOR LONDON LIMITED,AECOM LTD,Professional Engineering Services,1020\5109875048,10/02/2021,"46,670",
LONDON UNDERGROUND LTD,TAYLOR WOODROW CONS BAM NUTTAL LTD,MR Construction Costs,1005\5109881717,25/02/2021,"46,475",
TFL CORPORATE,MEDIAEDGE,Radio TV Press Poster Cinema Airtime And Space,1001\5109877515,11/02/2021,"46,372",
LONDON BUS SERVICES LTD,TELENT TECHNOLOGY SERVICES LTD,Maintenance of Plant & Equipment,1006\5109870729,10/02/2021,"46,227",
TFL CORPORATE,TNS UK LTD,Customer Research And Counts,1001\5109878551,23/02/2021,"46,220",
LONDON UNDERGROUND LTD,TELENT TECHNOLOGY SERVICES LTD,Equipment Repairs & Maintenance,1005\5109874317,17/02/2021,"46,155",
LONDON BUS SERVICES LTD,HAMMERSON OPERATIONS LTD,COVID 19 planning,1006\1900045421,04/03/2021,"46,000",
TFL CORPORATE,CREACTIVE DESIGN LTD,Management & Support Consultancy,1001\5109881741,08/02/2021,"45,683",
TFL CORPORATE,BYTES SOFTWARE SERVICES,Computer Hardware,1001\5109879098,24/02/2021,"45,559",
SURFACE TRANSPORT CORP,SIEMENS,Road Maintenance,1002\5109878627,16/02/2021,"45,263",
SURFACE TRANSPORT CORP,A2 DOMINION DEVELOPMENTS,Other Joint Funding Contributions,1002\1900067824,15/02/2021,"45,087",
LONDON UNDERGROUND LTD,ALPHABET (GB) LIMITED,Operating Lease Expense - Motor Vehicles,1005\5109884898,01/03/2021,"45,022",
LONDON RIVER SERVICES LTD,CAPITA BUSINESS SERVICES LTD,Maintenance of Telecommunications Equipment,1007\5109878009,24/02/2021,"45,000",
LUL NOMINEE BCV LIMITED,TIFLEX LTD,Track General Maintenance,1033\5109871067,10/02/2021,"44,965",
LONDON UNDERGROUND LTD,SIEMENS,Track General Maintenance,1005\5109879573,24/02/2021,"44,916",
LONDON UNDERGROUND LTD,SIEMENS,Track General Maintenance,1005\5109879574,24/02/2021,"44,916",
TFL CORPORATE,GLOBAL OUTDOOR MEDIA LIMITED,Production Artwork And Design For Marketing,1001\5109880993,24/02/2021,"44,800",
SURFACE TRANSPORT CORP,TELENT TECHNOLOGY SERVICES LTD,Traffic Signals,1002\5109888965,03/03/2021,"44,686",
TRANSPORT TRADING LTD,SCAN COIN OMSER (UK) LTD,Cash Handling & Processing,1004\5109869889,08/02/2021,"44,642",
LONDON UNDERGROUND LTD,JNG CONSTRUCTION & ENGINEERING,Planning & Development Consultancy,1005\5109881408,08/02/2021,"44,590",
RAIL FOR LONDON LIMITED,MOTT MACDONALD LIMITED,Professional Engineering Services,1020\5109883259,03/03/2021,"44,563",
TFL CORPORATE,GLOBAL OUTDOOR MEDIA LIMITED,Production Artwork And Design For Marketing,1001\5109881000,24/02/2021,"44,375",
TFL CORPORATE,GARDINER & THEOBALD LLP,Management & Support Consultancy,1001\5109882859,03/03/2021,"44,125",
SURFACE TRANSPORT CORP,VIRGIN MEDIA,Contracted Services - Roads,1002\5109882002,12/02/2021,"43,779",
LONDON UNDERGROUND LTD,JNG CONSTRUCTION & ENGINEERING,Building Maintenance & Repairs,1005\5109893978,03/03/2021,"43,535",
LONDON UNDERGROUND LTD,BT SERVICE AGILITY,Telephony Fixed,1005\1900216857,04/03/2021,"43,490",
LONDON UNDERGROUND LTD,DUCTCLEAN (UK) LTD T/A DCUK FM,Track General Maintenance,1005\5109885431,11/02/2021,"43,465",
LONDON UNDERGROUND LTD,DENTONS UKMEA LLP,Legal Fees,1005\5109883524,09/02/2021,"43,223",
LONDON UNDERGROUND LTD,NETWORK RAIL,National Rail Long Term Charges,1005\5109877893,17/02/2021,"43,139",
TRANSPORT TRADING LTD,PROBRAND LTD,Software Maintenance,1004\5109878759,24/02/2021,"42,914",
SURFACE TRANSPORT CORP,TELENT TECHNOLOGY SERVICES LTD,Traffic Signals,1002\5109888511,24/02/2021,"42,864",
LONDON UNDERGROUND LTD,NETWORK RAIL,National Rail Fixed Track Access Charges,1005\5109876858,22/02/2021,"42,848",
RAIL FOR LONDON LIMITED,WSP UK LTD,Professional Engineering Services,1020\5109890208,03/03/2021,"42,718",
LONDON UNDERGROUND LTD,NETWORK RAIL,Traction Current,1005\5109886268,22/02/2021,"42,599",
DOCKLANDS LIGHT RAILWAY,OTB ENGINEERING LTD,Civil Engineering Construction Works,1012\5109868799,17/02/2021,"42,455",
LONDON UNDERGROUND LTD,SIEMENS,Track General Maintenance,1005\5109879576,24/02/2021,"42,197",
TFL CORPORATE,EVERSHEDS,Legal Fees,1001\5109885623,23/02/2021,"42,138",
LONDON TRANSPORT MUSEUM,DJW,Production Artwork And Design For Marketing,1011\5109894468,03/03/2021,"42,080",
LONDON UNDERGROUND LTD,NETWORK RAIL,National Rail Fixed Track Access Charges,1005\5109877062,22/02/2021,"42,040",
SURFACE TRANSPORT CORP,INTEROUTE NETWORK LTD ,Radio Systems Equipment & Maintenance,1002\5109871936,10/02/2021,"41,938",
LUL NOMINEE SSL LIMITED,ABB POWER GRIDS UK LIMITED,Traction Current,1031\5109877617,10/02/2021,"41,653",
VICTORIA COACH STATN LTD,GBM SERVICES LTD,Office Cleaning,1008\5109893075,04/03/2021,"41,585",
SURFACE TRANSPORT CORP,"SYSTEMS ENGINEERING, ASSESSMENT",PCN and Penalty Fare Processing,1002\5109881065,26/02/2021,"41,496",
SURFACE TRANSPORT CORP,OVE ARUP & PARTNERS LTD,Professional Engineering Services,1002\5109882738,09/02/2021,"41,430",
SURFACE TRANSPORT CORP,TELENT TECHNOLOGY SERVICES LTD,Traffic Signals,1002\5109887168,24/02/2021,"41,381",
LONDON BUS SERVICES LTD,TAIT EUROPE LTD,Radio Systems Equipment & Maintenance,1006\5109874311,15/02/2021,"41,379",
LONDON UNDERGROUND LTD,BRYEN & LANGLEY LTD,Building Maintenance & Repairs,1005\5109881300,10/02/2021,"41,271",
LUL NOMINEE SSL LIMITED,EMERSON NETWORK POWER LTD,Equipment Repairs & Maintenance,1031\5109881068,01/03/2021,"41,193",
LONDON UNDERGROUND LTD,KONE PLC,Escalators,1005\5109886564,15/02/2021,"40,964",
LONDON RIVER SERVICES LTD,BRIGGS MARINE CONTRACTORS LIMITED,Operator Costs,1007\5109864328,22/02/2021,"40,859",
LONDON UNDERGROUND LTD,JACOBS CONSULTANCY UK LTD,Management & Support Consultancy,1005\5109887204,03/03/2021,"40,797",
LONDON UNDERGROUND LTD,MET OFFICE,Track General Maintenance,1005\5109856738,05/03/2021,"40,731",
LONDON UNDERGROUND LTD,WILLIAM COOK RAIL LTD,Fleet,1005\5109785322,16/02/2021,"40,600",
LONDON UNDERGROUND LTD,WILLIAM COOK RAIL LTD,Fleet,1005\5109785360,16/02/2021,"40,600",
RAIL FOR LONDON LIMITED,ABELLIO LONDON LTD,Rail Replacement Service Costs,1020\5109892367,01/03/2021,"40,578",
LONDON UNDERGROUND LTD,DUCTCLEAN (UK) LTD T/A DCUK FM,Track General Maintenance,1005\5109889604,19/02/2021,"40,475",
LONDON BUS SERVICES LTD,TRUEFORM ENGINEERING LTD,Purchase of Bus Shelters,1006\5109888946,17/02/2021,"40,321",
LONDON RIVER SERVICES LTD,RINGWAY JACOBS LIMITED,Maintenance of Plant & Equipment,1007\5109877680,10/02/2021,"40,169",
LONDON UNDERGROUND LTD,MORSON HUMAN RESOURCES LTD,Agency Staff,1005\5109876307,22/02/2021,"40,140",
SURFACE TRANSPORT CORP,SIEMENS,Cameras,1002\5109896309,03/03/2021,"40,014",
SURFACE TRANSPORT CORP,SKY HIGH PLC,Traffic Signals,1002\5109879497,26/02/2021,"39,935",
LUL NOMINEE BCV LIMITED,UESL,Escalators,1033\5109889113,22/02/2021,"39,787",
TRANSPORT TRADING LTD,HMRC,CIS Withholding Tax,1004\1901675553,15/02/2021,"39,667",
RAIL FOR LONDON LIMITED,NETWORK RAIL,Professional Engineering Services,1020\5109885406,26/02/2021,"39,550",
DIAL A RIDE,DABD,Operator Costs,1010\5109884527,10/02/2021,"39,491",
LONDON UNDERGROUND LTD,RJC (UK) LTD,Escalators,1005\5109871904,08/02/2021,"39,372",
LONDON UNDERGROUND LTD,SCHINDLER LTD,Lift Maintenance,1005\5109881851,24/02/2021,"39,326",
SURFACE TRANSPORT CORP,CAPITA BUSINESS SERVICES LTD,CCS Service Contract,1002\5109874118,16/02/2021,"39,196",
LUL NOMINEE SSL LIMITED,KNORR-BREMSE RAIL LTD ,Fleet,1031\5109877812,22/02/2021,"38,914",
SURFACE TRANSPORT CORP,SIEMENS,Civil Engineering Construction Works,1002\5109878233,10/02/2021,"38,861",
LONDON UNDERGROUND LTD,ENGIE SERVICES LTD,Equipment Repairs & Maintenance,1005\5109873111,15/02/2021,"38,812",
TFL CORPORATE,GLOBAL OUTDOOR MEDIA LIMITED,Research For Marketing Campaigns And Activities,1001\5109884801,24/02/2021,"38,780",
TFL CORPORATE,EQUINIX (UK) LTD,Manage IT Services,1001\5109884961,19/02/2021,"38,773",
LONDON UNDERGROUND LTD,CLESHAR CONTRACT SERVICES LTD,Track General Maintenance,1005\5109885166,10/02/2021,"38,768",
LUL NOMINEE SSL LIMITED,EASTERN COMPRESSORS LTD,Equipment Repairs & Maintenance,1031\5109885930,12/02/2021,"38,535",
DOCKLANDS LIGHT RAILWAY,SULLIVAN BUS & COACH LTD,Rail Replacement Service Costs,1012\5109885558,11/02/2021,"38,457",
LONDON UNDERGROUND LTD,ALSTOM TRANSPORT LTD,Maintenance Materials,1005\5109879172,24/02/2021,"38,366",
SURFACE TRANSPORT CORP,SIMULATION SYSTEMS LTD,Equipment Repairs & Maintenance,1002\5109894415,03/03/2021,"38,338",
LONDON UNDERGROUND LTD,DUCTCLEAN (UK) LTD T/A DCUK FM,Track General Maintenance,1005\5109885432,11/02/2021,"38,256",
SURFACE TRANSPORT CORP,ATKINS LIMITED,Contracted Services - Highway Bridges,1002\5109871098,10/02/2021,"38,189",
SURFACE TRANSPORT CORP,CSTS LTD,Traffic Signals,1002\5109877341,10/02/2021,"37,912",
LUL NOMINEE BCV LIMITED,QUINN INFRASTRUCTURE SERVICES LTD,MR Construction Costs,1033\5109878887,24/02/2021,"37,562",
RAIL FOR LONDON LIMITED,WSP UK LTD,Professional Engineering Services,1020\5109890212,03/03/2021,"37,429",
TFL CORPORATE,SPECIALIST COMPUTER CENTRES LTD,Software Maintenance,1001\5109830935,26/02/2021,"37,332",
TFL CORPORATE,PROBRAND LTD,Software Maintenance,1001\5109874403,17/02/2021,"37,289",
LONDON UNDERGROUND LTD,CLESHAR CONTRACT SERVICES LTD,Track General Maintenance,1005\5109874191,10/02/2021,"37,261",
CYCLE HIRE SCHEME,IRIS LONDON LTD,Contracted Services - Roads,1016\5109883377,09/02/2021,"37,243",
CYCLE HIRE SCHEME,SERCO LTD,Concession Maintenance Charge,1016\5109879503,24/02/2021,"37,239",
LUL NOMINEE SSL LIMITED,CLESHAR CONTRACT SERVICES LTD,Track General Maintenance,1031\5109878095,23/02/2021,"37,066",
LUL NOMINEE SSL LIMITED,MCGINLEY SUPPORT SERVICES LTD,Track General Maintenance,1031\5109882319,11/02/2021,"36,765",
LONDON UNDERGROUND LTD,TRENITALIA C2C LTD,National Rail Long Term Charges,1005\5109881928,24/02/2021,"36,693",
LONDON UNDERGROUND LTD,DYER & BUTLER LTD,Civil Engineering Construction Works,1005\5109889576,04/03/2021,"36,405",
LONDON UNDERGROUND LTD,GRUNDON WASTE MANAGEMENT LTD,Non Recyclable Waste Disposal/Refuse Collection,1005\5109881613,24/02/2021,"35,964",
LONDON BUS SERVICES LTD,TOWER TRANSIT OPERATIONS LTD,Bus Contract Payments,1006\1900045439,04/03/2021,"35,789",
TFL CORPORATE,XANTA LIMITED,Management & Support Consultancy,1001\5109878074,08/02/2021,"35,750",
LONDON UNDERGROUND LTD,NETWORK RAIL,National Rail Signal Control Charges,1005\5109877012,22/02/2021,"35,598",
LONDON UNDERGROUND LTD,ENDEAVOUR DRILLING LTD,Civil Engineering Construction Works,1005\5109890398,24/02/2021,"35,536",
TFL CORPORATE,NETALOGUE PROCUREMENT LTD,Software Maintenance,1001\5109889571,23/02/2021,"35,500",
LONDON UNDERGROUND LTD,NETWORK RAIL,Traction Current,1005\5109876854,22/02/2021,"35,412",
SURFACE TRANSPORT CORP,CAPITA BUSINESS SERVICES LTD,CCS Service Contract,1002\5109874169,16/02/2021,"35,379",
SURFACE TRANSPORT CORP,TELENT TECHNOLOGY SERVICES LTD,Road Maintenance,1002\5109889000,03/03/2021,"35,256",
LUL NOMINEE SSL LIMITED,TRELLEBORG INDUSTRIAL AVS,Fleet,1031\5109880903,26/02/2021,"35,199",
DIAL A RIDE,WANDSWORTH COMMUNITY TRANSPORT,Operator Costs,1010\5109893071,05/03/2021,"35,050",
LONDON UNDERGROUND LTD,CLESHAR CONTRACT SERVICES LTD,Track General Maintenance,1005\5109874190,10/02/2021,"34,955",
TFL CORPORATE,PROBRAND LTD,Software Maintenance,1001\5109881387,01/03/2021,"34,951",
LONDON BUS SERVICES LTD,LONDON GENERAL TRANSPORT SERVICES,Vehicle Repairs & Maintenance,1006\5109877335,19/02/2021,"34,936",
SURFACE TRANSPORT CORP,CSTS LTD,Traffic Signals,1002\5109889859,03/03/2021,"34,778",
LONDON UNDERGROUND LTD,KONE PLC,MR Construction Costs,1005\5109893766,01/03/2021,"34,695",
LONDON UNDERGROUND LTD,NETWORK RAIL,National Rail Fixed Track Access Charges,1005\5109877228,22/02/2021,"34,574",
TFL CORPORATE,MEDIAEDGE,Agency Fees Paid To Marketing Agencies,1001\5109877622,11/02/2021,"34,375",
TFL CORPORATE,MEDIAEDGE,Agency Fees Paid To Marketing Agencies,1001\5109879522,15/02/2021,"34,375",
TFL CORPORATE,MEDIAEDGE,Agency Fees Paid To Marketing Agencies,1001\5109888760,02/03/2021,"34,375",
SURFACE TRANSPORT CORP,SIEMENS,Traffic Signals,1002\5109878246,10/02/2021,"34,347",
TFL CORPORATE,BLOOMBERG LP,Software Maintenance,1001\5109889082,22/02/2021,"34,326",
TRANSPORT TRADING LTD,CAUSEWAY TECHNOLOGIES LTD,Software Maintenance,1004\5109896339,04/03/2021,"34,231",
LONDON BUS SERVICES LTD,TRAPEZE PTI LTD,Electrical & Electronic Engineering,1006\5109878096,26/02/2021,"34,222",
SURFACE TRANSPORT CORP,NJUG,Section 159 Payments,1002\1900067710,08/02/2021,"34,170",
SURFACE TRANSPORT CORP,EDF ENERGY,Electricity,1002\5109889112,25/02/2021,"34,140",
SURFACE TRANSPORT CORP,SAAB AB SUPPORT AND SERVICES,Computer Hardware,1002\5109882702,05/03/2021,"34,077",
SURFACE TRANSPORT CORP,RINGWAY JACOBS LIMITED,Maintenance of Plant & Equipment,1002\5109895965,04/03/2021,"34,054",
LONDON UNDERGROUND LTD,ENTERPISE AMS GROUP LTD ,Software Maintenance,1005\5109896618,04/03/2021,"33,938",
LONDON UNDERGROUND LTD,PRECISION CHAINS LTD,Stock of Lifts and Escalators,1005\5109873840,16/02/2021,"33,920",
LUL NOMINEE SSL LIMITED,DELATIM LIMITED,Electrical & Electronic Engineering,1031\5109882775,10/02/2021,"33,900",
LONDON UNDERGROUND LTD,GPX ENGINEERING LTD,Track General Maintenance,1005\5109834036,24/02/2021,"33,845",
LONDON UNDERGROUND LTD,MORSON HUMAN RESOURCES LTD,Agency Staff,1005\5109876297,22/02/2021,"33,707",
LONDON UNDERGROUND LTD,MORSON HUMAN RESOURCES LTD,Agency Staff,1005\5109876198,22/02/2021,"33,660",
TFL CORPORATE,VIRGIN MEDIA,Software Maintenance,1001\5109804105,01/03/2021,"33,557",
TFL CORPORATE,VIRGIN MEDIA,Software Maintenance,1001\5109818067,01/03/2021,"33,557",
LONDON UNDERGROUND LTD,TELENT TECHNOLOGY SERVICES LTD,Cameras,1005\5109889635,01/03/2021,"33,517",
LONDON UNDERGROUND LTD,QUINN INFRASTRUCTURE SERVICES LTD,Fire and Safety Equipment,1005\5109884842,24/02/2021,"33,514",
DOCKLANDS LIGHT RAILWAY,ATKINS LIMITED,Civil Engineering Construction Works,1012\5109889668,02/03/2021,"33,511",
DOCKLANDS LIGHT RAILWAY,SIMOCO EMEA LTD,Civil Engineering Construction Works,1012\5109890955,26/02/2021,"33,453",
TFL CORPORATE,VIRGIN MEDIA,Software Maintenance,1001\5109894228,01/03/2021,"33,414",
LONDON UNDERGROUND LTD,T-T PUMPS LTD,Civil Engineering Construction Works,1005\5109850682,16/02/2021,"33,408",
RAIL FOR LONDON LIMITED,PCG ASSOCIATES LIMITED,Management & Support Consultancy,1020\5109892821,01/03/2021,"33,290",
SURFACE TRANSPORT CORP,SIEMENS,Traffic Signals,1002\5109878247,09/02/2021,"33,286",
LONDON BUS SERVICES LTD,CASTLE WATER LIMITED,Water,1006\5109889837,03/03/2021,"33,181",
RAIL FOR LONDON LIMITED,NETWORK RAIL,Planning & Development Consultancy,1020\5109885409,03/03/2021,"33,174",
LONDON UNDERGROUND LTD,ALSTOM NL SERVICE PROVISION LTD,Fleet Tsssa Contract,1005\5109887115,22/02/2021,"33,151",
LONDON BUS SERVICES LTD,TELENT TECHNOLOGY SERVICES LTD,Traffic Signals,1006\5109888375,24/02/2021,"33,124",
RAIL FOR LONDON LIMITED,INSIGHT DIRECT UK LIMITED,Software Maintenance,1020\5109878296,24/02/2021,"33,000",
LONDON UNDERGROUND LTD,RADIOTRONICS TWO WAY RADIOS,Computer Hardware,1005\5109877965,24/02/2021,"32,968",
TFL CORPORATE,SIGNALLING INSTALLATION & MAINT,Management & Support Consultancy,1001\5109870917,10/02/2021,"32,750",
LUL NOMINEE BCV LIMITED,RJC (UK) LTD,MR Construction Costs,1033\5109888549,02/03/2021,"32,734",
LONDON UNDERGROUND LTD,Z-TECH CONTROL SYSTEMS LTD,MR Construction Costs,1005\5109889643,03/03/2021,"32,680",
LONDON UNDERGROUND LTD,ENDEAVOUR DRILLING LTD,Civil Engineering Construction Works,1005\5109890399,24/02/2021,"32,430",
LONDON UNDERGROUND LTD,ENGIE SERVICES LTD,Fire and Safety Equipment,1005\5109875483,17/02/2021,"32,273",
TRANSPORT TRADING LTD,TELENT TECHNOLOGY SERVICES LTD,Security Equipment,1004\5109888384,16/02/2021,"32,238",
RAIL FOR LONDON LIMITED,CT PLUS LIMITED,Rail Replacement Service Costs,1020\5109875442,15/02/2021,"32,143",
TFL CORPORATE,VIRGIN MEDIA,Computer Hardware,1001\5109885459,01/03/2021,"32,079",
TFL CORPORATE,VIRGIN MEDIA,Computer Hardware,1001\5109882125,01/03/2021,"32,079",
TFL CORPORATE,VIRGIN MEDIA,Software Maintenance,1001\5109894229,01/03/2021,"32,079",
TFL CORPORATE,VIRGIN MEDIA,Software Maintenance,1001\5109894230,01/03/2021,"32,078",
LONDON UNDERGROUND LTD,KELLY INTEGRATED TRANS SERV LTD,Signalling Systems,1005\5109881061,12/02/2021,"32,065",
SURFACE TRANSPORT CORP,CAPITA BUSINESS SERVICES LTD,CCS Service Contract,1002\5109874095,16/02/2021,"32,004",
DOCKLANDS LIGHT RAILWAY,BCM  CONSTRUCTION LIMITED,Civil Engineering Construction Works,1012\5109895940,05/03/2021,"32,003",
SURFACE TRANSPORT CORP,IMPERIAL COLLEGE PROJECTS LIMITED,Management & Support Consultancy,1002\5109870962,08/02/2021,"32,000",
LONDON UNDERGROUND LTD,SRL SOLUTIONS,Retentions Control Account > 1Year,1005\5109876742,17/02/2021,"31,931",
DOCKLANDS LIGHT RAILWAY,UK POWER NETWORKS LTD,Civil Engineering Construction Works,1012\5109871565,12/02/2021,"31,905",
LUL NOMINEE SSL LIMITED,BROOKVEX IMS LTD,Civil Engineering Construction Works,1031\5109891975,24/02/2021,"31,866",
LONDON UNDERGROUND LTD,DELATIM LIMITED,MR Construction Costs,1005\5109882800,10/02/2021,"31,836",
LONDON UNDERGROUND LTD,4 RAIL SERVICES LTD,Track General Maintenance,1005\5109893324,03/03/2021,"31,715",
TFL CORPORATE,CONFEDERATION OF BRITISH INDUSTRY,Publications & Periodicals,1001\5109882019,11/02/2021,"31,651",
LONDON UNDERGROUND LTD,CONFEDERATION OF BRITISH INDUSTRY,Other Professional Fees,1005\5109882314,12/02/2021,"31,651",
LONDON UNDERGROUND LTD,TOWER SUPPLIES,Management & Support Consultancy,1005\5109828876,03/03/2021,"31,587",
SURFACE TRANSPORT CORP,CITY OF WESTMINSTER ,Borough Services,1002\1900067185,09/02/2021,"31,500",
DOCKLANDS LIGHT RAILWAY,IMPERIAL COLLEGE PROJECTS LIMITED,Civil Engineering Construction Works,1012\5109875549,08/02/2021,"31,200",
LONDON TRANSPORT MUSEUM,MITIE FM LIMITED,Security Services (Guards),1011\5109874196,15/02/2021,"31,162",
RAIL FOR LONDON LIMITED,HANNING & KAHL GMBH & CO KG,Track General Maintenance,1020\5109877329,25/02/2021,"31,025",
LONDON BUS SERVICES LTD,EPR ARCHITECTS LTD,Other Professional Fees,1006\5109866802,23/02/2021,"31,003",
SURFACE TRANSPORT CORP,PINSENTS MASONS,Legal Fees,1002\5109889530,23/02/2021,"30,993",
SURFACE TRANSPORT CORP,CAPITA BUSINESS SERVICES LTD,CCS Service Contract,1002\5109874173,16/02/2021,"30,989",
SURFACE TRANSPORT CORP,TELENT TECHNOLOGY SERVICES LTD,Traffic Signals,1002\5109887173,24/02/2021,"30,814",
LONDON UNDERGROUND LTD,JACOBS U.K LIMITED,Planning & Development Consultancy,1005\5109882990,02/03/2021,"30,501",
LONDON UNDERGROUND LTD,SCHINDLER LTD,Lift Maintenance,1005\5109874071,10/02/2021,"30,494",
LONDON BUS SERVICES LTD,ABELLIO LONDON LTD,Bus Contract Payments,1006\1900045387,19/02/2021,"30,377",
LONDON UNDERGROUND LTD,SCHINDLER LTD,Lift Maintenance,1005\5109881831,17/02/2021,"30,113",
LONDON UNDERGROUND LTD,QUINN INFRASTRUCTURE SERVICES LTD,MR Construction Costs,1005\5109886559,24/02/2021,"30,064",
LONDON UNDERGROUND LTD,TRANSPORT INVESTIGATION LTD ,Agency Staff,1005\5109888780,22/02/2021,"30,037",
LUL NOMINEE SSL LIMITED,WRAGGE & CO,Legal Fees,1031\1900017638,04/03/2021,"30,000",
SURFACE TRANSPORT CORP,CITY OF WESTMINSTER ,Borough Services,1002\1900067181,09/02/2021,"30,000",
SURFACE TRANSPORT CORP,LONDON BOROUGH OF BEXLEY,Borough Services,1002\1900067419,10/02/2021,"30,000",
LONDON UNDERGROUND LTD,CREACTIVE DESIGN LTD,Maintenance Materials,1005\5109896036,05/03/2021,"30,000",
LUL NOMINEE SSL LIMITED,CUSHMAN & WAKEFIELD,Civil Engineering Construction Works,1031\1900017636,19/02/2021,"30,000",
TRANSPORT TRADING LTD,GLOBAL OUTDOOR MEDIA LIMITED,Purchase of Associates Loan Notes (Activity),1004\5109887186,02/03/2021,"30,000",
LONDON UNDERGROUND LTD,JONES LANG LASALLE,Planning & Development Consultancy,1005\5109890152,24/02/2021,"29,983",
LONDON UNDERGROUND LTD,TOWER SUPPLIES,Management & Support Consultancy,1005\5109828871,05/03/2021,"29,940",
LONDON UNDERGROUND LTD,CLESHAR CONTRACT SERVICES LTD,Track General Maintenance,1005\5109874188,10/02/2021,"29,895",
LONDON UNDERGROUND LTD,C E F,Electrical Equipment Maintenance,1005\5109881883,24/02/2021,"29,832",
LONDON UNDERGROUND LTD,GPX ENGINEERING LTD,Track General Maintenance,1005\5109892469,25/02/2021,"29,743",
TTL PROPERTIES LTD,LENDLEASE JACOBS JOINT VENTURE,MR Construction Costs,1040\5109864035,08/02/2021,"29,673",
TTL PROPERTIES LTD,LENDLEASE JACOBS JOINT VENTURE,MR Construction Costs,1040\5109855859,08/02/2021,"29,619",
LUL NOMINEE SSL LIMITED,CPC PROJECT SERVICES LLP,Civil Engineering Construction Works,1031\5109869673,11/02/2021,"29,496",
LONDON UNDERGROUND LTD,GLASS REINFORCED CONCRETE UK LTD,Production Artwork And Design For Marketing,1005\5109885233,10/02/2021,"29,406",
LONDON UNDERGROUND LTD,DELATIM LIMITED,MR Construction Costs,1005\5109891954,04/03/2021,"29,390",
LONDON UNDERGROUND LTD,LUCCHINI UK LTD,Fleet,1005\5109869974,26/02/2021,"29,251",
DIAL A RIDE,BRENT COMMUNITY TRANSPORT,Operator Costs,1010\5109892655,03/03/2021,"29,205",
LONDON UNDERGROUND LTD,MORS SMITT STS SIGNALS,Fleet,1005\5109883411,10/02/2021,"29,201",
LUL NOMINEE SSL LIMITED,FT TRANSFORMERS UK LTD,Plant & Equipment Purchases,1031\5109882193,03/03/2021,"29,058",
RAIL FOR LONDON LIMITED,PCG ASSOCIATES LIMITED,Management & Support Consultancy,1020\5109888686,19/02/2021,"29,038",
LONDON UNDERGROUND LTD,NETWORK RAIL,National Rail Long Term Charges,1005\5109877978,17/02/2021,"28,985",
LONDON UNDERGROUND LTD,CLESHAR CONTRACT SERVICES LTD,Track General Maintenance,1005\5109875491,16/02/2021,"28,931",
LONDON UNDERGROUND LTD,MODULAR DISTRIBUTION SYSTEMS,Escalators,1005\5109881506,03/03/2021,"28,888",
LONDON UNDERGROUND LTD,TRANSPORT INVESTIGATION LTD ,Agency Staff,1005\5109888774,22/02/2021,"28,888",
RAIL FOR LONDON LIMITED,OTB ENGINEERING LTD,Professional Engineering Services,1020\5109885379,04/03/2021,"28,866",
LONDON UNDERGROUND LTD,BOMBARDIER TRANSPORT UK,Maintenance Materials,1005\5109882707,17/02/2021,"28,712",
LUL NOMINEE BCV LIMITED,PROGRESS RAIL SERVICES UK LTD,Track General Maintenance,1033\5109874203,15/02/2021,"28,676",
TFL CORPORATE,MEDIAEDGE,Radio TV Press Poster Cinema Airtime And Space,1001\5109877507,11/02/2021,"28,625",
TRANSPORT TRADING LTD,CORPORATE DOCUMENT SERVICES LTD,Printing,1004\5109885215,15/02/2021,"28,614",
TFL CORPORATE,GARDINER & THEOBALD LLP,Management & Support Consultancy,1001\5109844082,10/02/2021,"28,500",
TFL CORPORATE,GARDINER & THEOBALD LLP,Management & Support Consultancy,1001\5109877289,23/02/2021,"28,500",
LUL NOMINEE SSL LIMITED,ABB POWER GRIDS UK LIMITED,Traction Current,1031\5109890438,24/02/2021,"28,401",
LONDON BUS SERVICES LTD,SULLIVAN BUS & COACH LTD,Bus Contract Payments,1006\1900045438,04/03/2021,"28,382",
TFL CORPORATE,MEDIAEDGE,Production Artwork And Design For Marketing,1001\5109877008,09/02/2021,"28,377",
LONDON UNDERGROUND LTD,MORSON HUMAN RESOURCES LTD,Agency Staff,1005\5109876333,22/02/2021,"28,346",
LONDON BUS SERVICES LTD,CT PLUS LIMITED,Bus Contract Payments,1006\1900045445,05/03/2021,"28,258",
TFL CORPORATE,CIRAS,Financial Statement Audit Fees,1001\5109871847,10/02/2021,"28,213",
LUL NOMINEE BCV LIMITED,KINGSBEECH LTD,Track General Maintenance,1033\5109896285,05/03/2021,"28,076",
TFL CORPORATE,EVERSHEDS,Legal Fees,1001\5109885191,11/02/2021,"27,928",
LONDON BUS SERVICES LTD,ARRIVA LONDON NORTH LTD,Vehicle Repairs & Maintenance,1006\5109879486,04/03/2021,"27,900",
LONDON UNDERGROUND LTD,OLDHAM ENGINEERING LTD,Fleet,1005\5109882822,08/02/2021,"27,888",
LONDON BUS SERVICES LTD,MOTT MACDONALD LIMITED,Planning & Development Consultancy,1006\5109840716,15/02/2021,"27,500",
LONDON BUS SERVICES LTD,UNIVERSITYBUS LTD,Bus Contract Payments,1006\1900045469,05/03/2021,"27,472",
CYCLE HIRE SCHEME,CSTS LTD,Concession Maintenance Charge,1016\5109855101,03/03/2021,"27,350",
SURFACE TRANSPORT CORP,ASITE SOLUTIONS LTD,Management & Support Consultancy,1002\5109885651,26/02/2021,"27,200",
TRANSPORT TRADING LTD,HEATHROW EXPRESS ,JFT Suspense  - TTL,1004\1901673232,08/07/2020,"27,144",
LONDON UNDERGROUND LTD,NETWORK RAIL,National Rail Fixed Track Access Charges,1005\5109877009,22/02/2021,"27,057",
TRANSPORT TRADING LTD,NOVACROFT DIRECT LTD,Ticket & Pass Production,1004\5109885571,18/02/2021,"27,000",
SURFACE TRANSPORT CORP,TELENT TECHNOLOGY SERVICES LTD,Contracted Services - Roads,1002\5109886732,24/02/2021,"26,911",
LONDON UNDERGROUND LTD,TELENT TECHNOLOGY SERVICES LTD,Equipment Repairs & Maintenance,1005\5109888366,22/02/2021,"26,903",
LONDON UNDERGROUND LTD,CLESHAR CONTRACT SERVICES LTD,Track General Maintenance,1005\5109889833,24/02/2021,"26,863",
LONDON UNDERGROUND LTD,YY SECURITY INSTALLATIONS LTD,MR Construction Costs,1005\5109892277,26/02/2021,"26,825",
TFL CORPORATE,GLOBAL OUTDOOR MEDIA LIMITED,Radio TV Press Poster Cinema Airtime And Space,1001\5109880998,24/02/2021,"26,800",
TRANSPORT TRADING LTD,BT SERVICE AGILITY,Computer Hardware,1004\1901675231,08/02/2021,"26,756",
LONDON UNDERGROUND LTD,DELATIM LIMITED,MR Construction Costs,1005\5109882766,22/02/2021,"26,649",
SURFACE TRANSPORT CORP,SIEMENS,Traffic Signals,1002\5109878100,10/02/2021,"26,621",
LONDON UNDERGROUND LTD,BT SERVICE AGILITY,Telephony Fixed,1005\1900216514,12/02/2021,"26,540",
TRANSPORT TRADING LTD,PA CONSULTING SERVICES LTD,IT Consultancy,1004\5109896635,04/03/2021,"26,473",
LONDON BUS SERVICES LTD,TRAPEZE PTI LTD,Electrical & Electronic Engineering,1006\5109878049,26/02/2021,"26,440",
TRANSPORT TRADING LTD,VINCI CONSTRUCTION UK LTD,Building Maintenance & Repairs,1004\5109888565,26/02/2021,"26,432",
SURFACE TRANSPORT CORP,LONDON BOROUGH OF ENFIELD,Section 159 Payments,1002\1900068035,17/02/2021,"26,300",
LONDON UNDERGROUND LTD,NETWORK RAIL,National Rail Long Term Charges,1005\5109878068,17/02/2021,"26,240",
LONDON BUS SERVICES LTD,SKANSKA CONTRUCTIONS UK LTD,Building Maintenance & Repairs,1006\5109877079,22/02/2021,"26,208",
TFL CORPORATE,BRITISH SAFETY COUNCIL,Staff Training,1001\5109893597,02/03/2021,"26,158",
TFL CORPORATE,IMPERIAL COLLEGE PROJECTS LIMITED,Planning & Development Consultancy,1001\5109874893,17/02/2021,"26,149",
LUL NOMINEE BCV LIMITED,PANDROL UK LTD,Track General Maintenance,1033\5109880950,24/02/2021,"26,000",
LUL NOMINEE SSL LIMITED,OVE ARUP & PARTNERS LTD,Civil Engineering Construction Works,1031\5109874421,16/02/2021,"25,984",
DOCKLANDS LIGHT RAILWAY,GARDINER & THEOBALD LLP,Contractors,1012\5109882986,03/03/2021,"25,866",
RAIL FOR LONDON LIMITED,ENERGY AND SYSTEM TECHNICAL LTD,Professional Engineering Services,1020\5109881684,09/02/2021,"25,866",
RAIL FOR LONDON LIMITED,ENERGY AND SYSTEM TECHNICAL LTD,Professional Engineering Services,1020\5109895954,05/03/2021,"25,866",
LONDON UNDERGROUND LTD,ABELLIO LONDON LTD,Rail Replacement Service Costs,1005\5109880772,24/02/2021,"25,853",
SURFACE TRANSPORT CORP,PELL FRISCHMANN CONSULTANTS LTD,Contracted Services - Highway Bridges,1002\5109893130,04/03/2021,"25,786",
SURFACE TRANSPORT CORP,TELENT TECHNOLOGY SERVICES LTD,Road Maintenance,1002\5109878175,10/02/2021,"25,607",
LONDON UNDERGROUND LTD,ATKINS LIMITED,Professional Engineering Services,1005\5109886443,12/02/2021,"25,598",
LONDON UNDERGROUND LTD,MORSON HUMAN RESOURCES LTD,Agency Staff,1005\5109876305,22/02/2021,"25,488",
CYCLE HIRE SCHEME,CSTS LTD,Concession Maintenance Charge,1016\5109868813,22/02/2021,"25,469",
LONDON UNDERGROUND LTD,GRUNDON WASTE MANAGEMENT LTD,Non Recyclable Waste Disposal/Refuse Collection,1005\5109891905,25/02/2021,"25,454",
LUL NOMINEE BCV LIMITED,THALES GRD TRANSPORTATION SYSTEMS,Computer Hardware,1033\5109874097,10/02/2021,"25,407",
LONDON UNDERGROUND LTD,BT SERVICE AGILITY,Telephony Fixed,1005\1900216455,09/02/2021,"25,362",
LONDON UNDERGROUND LTD,SCHINDLER LTD,Lift Maintenance,1005\5109874078,10/02/2021,"25,334",
LONDON UNDERGROUND LTD,COVENT GARDEN MARKET AUTHORITY,Planning & Development Consultancy,1005\5109879484,17/02/2021,"25,150",
LONDON BUS SERVICES LTD,TRUEFORM ENGINEERING LTD,Maintenance of  Bus Stops,1006\5109896712,04/03/2021,"25,138",
TFL CORPORATE,GREATER LONDON AUTHORITY ,Planning & Development Consultancy,1001\5109873105,12/02/2021,"25,109",
LONDON UNDERGROUND LTD,MORSON HUMAN RESOURCES LTD,Agency Staff,1005\5109872725,15/02/2021,"25,082",
LONDON BUS SERVICES LTD,ENGIE SERVICES LTD,Fire and Safety Equipment,1006\5109869849,08/02/2021,"25,047",
RAIL FOR LONDON LIMITED,AMEY OWR LTD,Maintenance of Plant & Equipment,1020\5109882375,16/02/2021,"25,000",
LONDON UNDERGROUND LTD,TELENT TECHNOLOGY SERVICES LTD,Cameras,1005\5109885986,15/02/2021,"24,816",
TFL CORPORATE,GARDINER & THEOBALD LLP,Management & Support Consultancy,1001\5109882809,03/03/2021,"24,796",
RAIL FOR LONDON LIMITED,BIRCHAM DYSON BELL,Purchase of Land & Buildings,1020\1900006304,18/02/2021,"24,772",
SURFACE TRANSPORT CORP,CLIPFINE LIMITED,Contracted Services - Roads,1002\5109883346,02/03/2021,"24,770",
DIAL A RIDE,WALTHAM FOREST CT LTD,Operator Costs,1010\5109873388,15/02/2021,"24,713",
LONDON BUS SERVICES LTD,MITIE CLEANING & ENVIRONMENTAL,"Maps, Timetables & Fare Information",1006\5109888517,26/02/2021,"24,666",
SURFACE TRANSPORT CORP,CLIPFINE LIMITED,Contracted Services - Roads,1002\5109883344,02/03/2021,"24,629",
LUL NOMINEE SSL LIMITED,MOTT MACDONALD LIMITED,MR Construction Costs,1031\5109882071,10/02/2021,"24,626",
LUL NOMINEE SSL LIMITED,CPC PROJECT SERVICES LLP,Civil Engineering Construction Works,1031\5109868829,24/02/2021,"24,583",
LONDON UNDERGROUND LTD,MORSON HUMAN RESOURCES LTD,Agency Staff,1005\5109872842,15/02/2021,"24,537",
LONDON UNDERGROUND LTD,ALLSTAR BUSINESS SOLUTIONS,Vehicle Running Costs,1005\5109887069,22/02/2021,"24,464",
TRANSPORT TRADING LTD,GLOBAL OUTDOOR MEDIA LIMITED,Purchase of Associates Loan Notes (Activity),1004\5109889054,02/03/2021,"24,442",
TFL CORPORATE,DECISION INC UNITED KINGDOM LTD,Software Maintenance,1001\5109886693,17/02/2021,"24,412",
SURFACE TRANSPORT CORP,RINGWAY JACOBS LIMITED,Road Maintenance,1002\5109894252,04/03/2021,"24,400",
TTL PROPERTIES LTD,KELTBRAY LIMITED,Planning & Development Consultancy,1040\5109879132,24/02/2021,"24,398",
LONDON BUS SERVICES LTD,EMINOX,Vehicle Repairs & Maintenance,1006\5109818302,03/03/2021,"24,374",
LONDON UNDERGROUND LTD,LANES GROUP PLC,Civil Engineering Construction Works,1005\5109881091,10/02/2021,"24,348",
LONDON UNDERGROUND LTD,ALLSTAR BUSINESS SOLUTIONS,Vehicle Running Costs,1005\5109882906,09/02/2021,"24,342",
TFL CORPORATE,COGNIZANT WORLDWIDE LIMITED,Software Maintenance,1001\5109878299,17/02/2021,"24,198",
LONDON UNDERGROUND LTD,LUCCHINI UK LTD,Fleet,1005\5109869978,18/02/2021,"24,089",
LONDON UNDERGROUND LTD,TELENT TECHNOLOGY SERVICES LTD,Cameras,1005\5109885992,15/02/2021,"24,004",
LONDON UNDERGROUND LTD,TIFLEX LTD,Track General Maintenance,1005\5109871066,10/02/2021,"24,000",
LONDON UNDERGROUND LTD,MORSON HUMAN RESOURCES LTD,Agency Staff,1005\5109872820,15/02/2021,"23,968",
LONDON UNDERGROUND LTD,MODULAR DISTRIBUTION SYSTEMS,Escalators,1005\5109881507,25/02/2021,"23,965",
LONDON UNDERGROUND LTD,NCP SERVICES LTD,Costs of Disp Inv Prop - TTL Planning,1005\5109881689,24/02/2021,"23,959",
LUL NOMINEE SSL LIMITED,MANTEC ENGINEERING LTD,Fleet,1031\5109889665,22/02/2021,"23,850",
LONDON UNDERGROUND LTD,HOWELLS RAILWAY PRODUCTS LTD,Track General Maintenance,1005\5109875366,17/02/2021,"23,800",
LONDON UNDERGROUND LTD,CORPORATE DOCUMENT SERVICES LTD,COVID 19 planning,1005\5109879543,08/02/2021,"23,795",
LONDON UNDERGROUND LTD,WILLMOTT DIXON INTERIORS LTD,MR Construction Costs,1005\5109892257,01/03/2021,"23,784",
SURFACE TRANSPORT CORP,CITY OF WESTMINSTER ,Section 159 Payments,1002\1900068034,17/02/2021,"23,776",
LONDON UNDERGROUND LTD,ALLSTAR BUSINESS SOLUTIONS,Vehicle Running Costs,1005\5109890153,22/02/2021,"23,771",
LONDON BUS SERVICES LTD,INTEROUTE NETWORK LTD ,Contracted Services - Roads,1006\5109870275,09/02/2021,"23,681",
LONDON UNDERGROUND LTD,MORSON HUMAN RESOURCES LTD,Agency Staff,1005\5109876318,22/02/2021,"23,646",
LUL NOMINEE BCV LIMITED,TELENT TECHNOLOGY SERVICES LTD,Equipment Repairs & Maintenance,1033\5109865433,15/02/2021,"23,630",
LONDON UNDERGROUND LTD,TELENT TECHNOLOGY SERVICES LTD,Cameras,1005\5109889590,19/02/2021,"23,622",
TFL CORPORATE,INVESTIGO,Management & Support Consultancy,1001\5109835168,17/02/2021,"23,600",
LONDON UNDERGROUND LTD,ALLSTAR BUSINESS SOLUTIONS,Vehicle Running Costs,1005\5109886598,15/02/2021,"23,520",
TRANSPORT TRADING LTD,GERALD EVE,Management & Support Consultancy,1004\5109878590,25/02/2021,"23,500",
LONDON UNDERGROUND LTD,SOLO RAIL SOLUTIONS LIMITED,Fleet,1005\5109873877,15/02/2021,"23,460",
LONDON UNDERGROUND LTD,SOLO RAIL SOLUTIONS LIMITED,Fleet,1005\5109882994,02/03/2021,"23,460",
SURFACE TRANSPORT CORP,SIEMENS,Traffic Signals,1002\5109878091,10/02/2021,"23,328",
SURFACE TRANSPORT CORP,AIRWAVE SOLUTIONS LTD,Radio Systems Equipment & Maintenance,1002\5109873835,15/02/2021,"23,250",
SURFACE TRANSPORT CORP,NETWORK RAIL,Contracted Services - Highway Bridges,1002\5109882791,03/03/2021,"23,247",
LUL NOMINEE BCV LIMITED,AGGREGATE INDUSTRIES UK LTD,Track General Maintenance,1033\5109883317,23/02/2021,"23,117",
TFL CORPORATE,HAYS ACCOUNTANCY PERSONNEL,Agency Staff,1001\5109869162,08/02/2021,"23,102",
SURFACE TRANSPORT CORP,CSTS LTD,Traffic Signals,1002\5109885464,24/02/2021,"23,011",
LUL NOMINEE SSL LIMITED,SIEMENS,Fleet,1031\5109887261,16/02/2021,"23,000",
TRANSPORT TRADING LTD,OAKLAND BUILDING SERVICES LTD,Building Maintenance & Repairs,1004\5109892316,25/02/2021,"22,943",
LONDON RIVER SERVICES LTD,HCL TECHNOLOGIES UK LTD,Computer Software,1007\5109878749,24/02/2021,"22,920",
LUL NOMINEE SSL LIMITED,OVE ARUP & PARTNERS LTD,Civil Engineering Construction Works,1031\5109874537,16/02/2021,"22,897",
LONDON BUS SERVICES LTD,TRAPEZE PTI LTD,Computer Consumables,1006\5109881654,04/03/2021,"22,865",
TRANSPORT TRADING LTD,ECKOH UK LIMITED,Telephony Fixed,1004\5109886119,16/02/2021,"22,700",
LONDON UNDERGROUND LTD,TRENITALIA C2C LTD,National Rail Qualifying Expenditure Charges,1005\5109881845,24/02/2021,"22,699",
SURFACE TRANSPORT CORP,CLIPFINE LIMITED,Contracted Services - Roads,1002\5109883342,03/03/2021,"22,645",
SURFACE TRANSPORT CORP,SIEMENS,Maintenance of Plant & Equipment,1002\5109873422,15/02/2021,"22,618",
SURFACE TRANSPORT CORP,ARDENT MANAGEMENT LTD,Planning & Development Consultancy,1002\5109875066,01/03/2021,"22,569",
SURFACE TRANSPORT CORP,TELENT TECHNOLOGY SERVICES LTD,Traffic Signals,1002\5109886731,24/02/2021,"22,563",
LONDON UNDERGROUND LTD,BYWATERS (LEYTON) LIMITED,Non Recyclable Waste Disposal/Refuse Collection,1005\5109879483,24/02/2021,"22,546",
RAIL FOR LONDON LIMITED,VOLKERRAIL SPECIALIST BUSINESSES LTD,Professional Engineering Services,1020\5109894342,03/03/2021,"22,530",
LONDON UNDERGROUND LTD,TPS LTD,Signalling Systems,1005\5109889544,22/02/2021,"22,320",
RAIL FOR LONDON LIMITED,MOTT MACDONALD LIMITED,Management & Support Consultancy,1020\5109881220,24/02/2021,"22,304",
LONDON UNDERGROUND LTD,MORSON HUMAN RESOURCES LTD,Agency Staff,1005\5109872776,15/02/2021,"22,297",
LONDON UNDERGROUND LTD,MORSON HUMAN RESOURCES LTD,Agency Staff,1005\5109876174,22/02/2021,"22,297",
LONDON UNDERGROUND LTD,COMMEND UK LTD,Building Maintenance & Repairs,1005\5109870313,12/02/2021,"22,295",
LONDON BUS SERVICES LTD,EDF ENERGY,Electricity,1006\5109885131,17/02/2021,"22,259",
TFL CORPORATE,CAMPAIGN FOR BETTER TRANSPORT,External Events Roads Shows And Face To Face,1001\5109879563,08/02/2021,"22,200",
SURFACE TRANSPORT CORP,NETWORK RAIL,Road Maintenance,1002\5109874132,16/02/2021,"22,200",
SURFACE TRANSPORT CORP,NETWORK RAIL,Road Maintenance,1002\5109874136,16/02/2021,"22,200",
SURFACE TRANSPORT CORP,NETWORK RAIL,Road Maintenance,1002\5109874141,16/02/2021,"22,200",
LUL NOMINEE SSL LIMITED,GPX ENGINEERING LTD,Track General Maintenance,1031\5109892467,25/02/2021,"22,059",
DOCKLANDS LIGHT RAILWAY,RJ POWER RAIL LIMITED,Civil Engineering Construction Works,1012\5109881216,08/02/2021,"22,054",
TFL CORPORATE,VITA HEALTH GROUP,Management & Support Consultancy,1001\5109881231,01/03/2021,"22,046",
SURFACE TRANSPORT CORP,PELL FRISCHMANN CONSULTANTS LTD,Contracted Services - Highway Bridges,1002\5109878360,24/02/2021,"22,012",
DOCKLANDS LIGHT RAILWAY,BRUSH TRACTION LTD,Civil Engineering Construction Works,1012\5109870368,09/02/2021,"22,004",
LONDON UNDERGROUND LTD,ALLSTAR BUSINESS SOLUTIONS,Vehicle Running Costs,1005\5109893395,01/03/2021,"21,979",
LONDON UNDERGROUND LTD,GRAYBAR LTD,Track General Maintenance,1005\5109888889,22/02/2021,"21,868",
TFL CORPORATE,CENTRE OF ADVERTISE EU LTD,Management & Support Consultancy,1001\5109885843,16/02/2021,"21,780",
LONDON UNDERGROUND LTD,OCL RAIL LTD,Track General Maintenance,1005\5109886203,16/02/2021,"21,752",
LONDON UNDERGROUND LTD,MORSON HUMAN RESOURCES LTD,Agency Staff,1005\5109872727,15/02/2021,"21,658",
LONDON UNDERGROUND LTD,TRELLEBORG INDUSTRIAL AVS,Fleet,1005\5109882154,02/03/2021,"21,612",
SURFACE TRANSPORT CORP,TELENT TECHNOLOGY SERVICES LTD,Traffic Signals,1002\5109887169,24/02/2021,"21,604",
LONDON UNDERGROUND LTD,MORSON HUMAN RESOURCES LTD,Agency Staff,1005\5109872778,15/02/2021,"21,583",
LONDON UNDERGROUND LTD,TELENT TECHNOLOGY SERVICES LTD,Cameras,1005\5109874064,04/03/2021,"21,565",
LUL NOMINEE BCV LIMITED,AGGREGATE INDUSTRIES UK LTD,Track General Maintenance,1033\5109859311,08/02/2021,"21,555",
LONDON UNDERGROUND LTD,CLESHAR CONTRACT SERVICES LTD,Track General Maintenance,1005\5109881663,01/03/2021,"21,540",
LONDON UNDERGROUND LTD,MORSON HUMAN RESOURCES LTD,Agency Staff,1005\5109872749,15/02/2021,"21,536",
TRANSPORT TRADING LTD,CLEVELAND SCOTT YORK LLP,Legal Fees,1004\5109882036,08/02/2021,"21,533",
DOCKLANDS LIGHT RAILWAY,BRUSH TRACTION LTD,Civil Engineering Construction Works,1012\5109870341,09/02/2021,"21,526",
TFL CORPORATE,TNS UK LTD,Customer Research And Counts,1001\5109885190,04/03/2021,"21,500",
LONDON RIVER SERVICES LTD,PROBRAND LTD,Software Maintenance,1007\5109881145,24/02/2021,"21,457",
TFL CORPORATE,SHELL TRUST (UK) PROPERTY LTD,Purchase of Land & Buildings,1001\1900072295,25/02/2021,"21,449",
CYCLE HIRE SCHEME,SERCO LTD,Concession Maintenance Charge,1016\5109879118,24/02/2021,"21,424",
SURFACE TRANSPORT CORP,TELENT TECHNOLOGY SERVICES LTD,Traffic Signals,1002\5109887302,24/02/2021,"21,289",
LONDON UNDERGROUND LTD,LANES GROUP PLC,Building Maintenance & Repairs,1005\5109884854,10/02/2021,"21,285",
RAIL FOR LONDON LIMITED,XANTA LIMITED,Management & Support Consultancy,1020\5109888653,19/02/2021,"21,250",
TFL CORPORATE,INTERFLEET TECHNOLOGY LIMITED,Professional Engineering Services,1001\5109878654,24/02/2021,"21,250",
LONDON UNDERGROUND LTD,MORSON HUMAN RESOURCES LTD,Agency Staff,1005\5109876343,22/02/2021,"21,186",
LONDON UNDERGROUND LTD,MORSON HUMAN RESOURCES LTD,Agency Staff,1005\5109876381,22/02/2021,"21,185",
LUL NOMINEE SSL LIMITED,CPC PROJECT SERVICES LLP,Civil Engineering Construction Works,1031\5109835696,24/02/2021,"21,150",
SURFACE TRANSPORT CORP,INDRA SISTEMAS S.A.-BRANCH IN UK,Software Maintenance,1002\5109874607,17/02/2021,"21,140",
LONDON BUS SERVICES LTD,TRUEFORM ENGINEERING LTD,Maintenance of  Bus Stops,1006\5109894277,01/03/2021,"21,138",
LONDON UNDERGROUND LTD,TELENT TECHNOLOGY SERVICES LTD,MR Construction Costs,1005\5109874166,17/02/2021,"21,125",
LONDON UNDERGROUND LTD,MORSON HUMAN RESOURCES LTD,Agency Staff,1005\5109872766,15/02/2021,"21,101",
LONDON UNDERGROUND LTD,BROOKVEX IMS LTD,Planning & Development Consultancy,1005\5109889542,24/02/2021,"20,988",
LONDON BUS SERVICES LTD,VINCI CONSTRUCTION UK LTD,Building Maintenance & Repairs,1006\5109892667,26/02/2021,"20,953",
SURFACE TRANSPORT CORP,LONDON BOROUGH OF ISLINGTON,Contracted Services - Roads,1002\5109883462,03/03/2021,"20,917",
RAIL FOR LONDON LIMITED,TRAM OPERATIONS LIMITED,Franchise/Concession Variable Fee,1020\5109875535,12/02/2021,"20,766",
RFL (IINFRASTRUCTURE) LTD,MITIE FM LIMITED,Security Services (Guards),1025\5109888579,17/02/2021,"20,700",
RAIL FOR LONDON LIMITED,GBM SERVICES LTD,Operational Cleaning,1020\5109896668,04/03/2021,"20,591",
LONDON UNDERGROUND LTD,QUINN INFRASTRUCTURE SERVICES LTD,Equipment Repairs & Maintenance,1005\5109884555,10/02/2021,"20,557",
TFL CORPORATE,GLOBAL OUTDOOR MEDIA LIMITED,Production Artwork And Design For Marketing,1001\5109875315,17/02/2021,"20,250",
TFL CORPORATE,CORPORATE DOCUMENT SERVICES LTD,Production Artwork And Design For Marketing,1001\5109874349,08/02/2021,"20,244",
LONDON UNDERGROUND LTD,LANES GROUP PLC,Building Maintenance & Repairs,1005\5109881077,17/02/2021,"20,183",
LONDON UNDERGROUND LTD,TELENT TECHNOLOGY SERVICES LTD,Cameras,1005\5109886013,15/02/2021,"20,125",
LUL NOMINEE BCV LIMITED,CEMEX UK OPERATIONS LTD,Track General Maintenance,1033\5109886011,24/02/2021,"20,054",
RAIL FOR LONDON LIMITED,HUBER & SUHNER (UK) LTD,Stock of Fleet,1020\5109877743,23/02/2021,"20,033",
TFL CORPORATE,OTM (UK) LTD,Production Artwork And Design For Marketing,1001\5109897247,04/03/2021,"20,000",
SURFACE TRANSPORT CORP,EMSOL,Grants to External Organisations,1002\5109888947,19/02/2021,"20,000",
LUL NOMINEE SSL LIMITED,PROGRESS RAIL SERVICES UK LTD,Track General Maintenance,1031\5109885676,03/03/2021,"20,000",
LONDON UNDERGROUND LTD,MORSON HUMAN RESOURCES LTD,Agency Staff,1005\5109876339,22/02/2021,"19,996",
LONDON UNDERGROUND LTD,MORSON HUMAN RESOURCES LTD,Agency Staff,1005\5109872738,15/02/2021,"19,986",
TFL CORPORATE,MEDIAEDGE,Radio TV Press Poster Cinema Airtime And Space,1001\5109888761,02/03/2021,"19,930",
LUL NOMINEE BCV LIMITED,TRACKWORK RESOURCES LTD,Track General Maintenance,1033\5109884591,03/03/2021,"19,925",
TFL CORPORATE,CORPORATE DOCUMENT SERVICES LTD,Storage And Distribution Of Publicity Materials,1001\5109885221,15/02/2021,"19,874",
CYCLE HIRE SCHEME,JOURNEYCALL LTD,Ticket & Pass Production,1016\5109890175,04/03/2021,"19,867",
SURFACE TRANSPORT CORP,DELOITTE,Management & Support Consultancy,1002\5109870537,10/02/2021,"19,800",
SURFACE TRANSPORT CORP,DELOITTE,Management & Support Consultancy,1002\5109870776,10/02/2021,"19,800",
SURFACE TRANSPORT CORP,DELOITTE,Management & Support Consultancy,1002\5109870805,10/02/2021,"19,800",
SURFACE TRANSPORT CORP,DELOITTE,Management & Support Consultancy,1002\5109870837,10/02/2021,"19,800",
TFL CORPORATE,CURRIE & BROWN UK LIMITED,Professional Engineering Services,1001\5109885964,12/02/2021,"19,650",
TFL CORPORATE,CAPITA BUSINESS SERVICES LTD,Maintenance of Telecommunications Equipment,1001\5109878904,24/02/2021,"19,650",
LONDON UNDERGROUND LTD,KONE PLC,Escalators,1005\5109886695,16/02/2021,"19,643",
LONDON UNDERGROUND LTD,NEW ERA FUELS LTD,Vehicle Running Costs,1005\5109897360,05/03/2021,"19,602",
LONDON UNDERGROUND LTD,TELENT TECHNOLOGY SERVICES LTD,Security Equipment,1005\5109884610,04/03/2021,"19,600",
LONDON UNDERGROUND LTD,COMMANDER BUILDING SERVICES LIMITED,Equipment Repairs & Maintenance,1005\5109880968,10/02/2021,"19,593",
TFL CORPORATE,BT SERVICE AGILITY,Telephony Fixed,1001\1900072049,10/02/2021,"19,570",
RAIL FOR LONDON LIMITED,OVE ARUP & PARTNERS LTD,Management & Support Consultancy,1020\5109875448,17/02/2021,"19,535",
LONDON UNDERGROUND LTD,MORSON HUMAN RESOURCES LTD,Agency Staff,1005\5109872840,15/02/2021,"19,477",
SURFACE TRANSPORT CORP,ASHURST LLP,Legal Fees,1002\5109896858,04/03/2021,"19,476",
TFL CORPORATE,AECOM LTD,Professional Engineering Services,1001\5109886313,03/03/2021,"19,428",
LUL NOMINEE SSL LIMITED,DELMATIC LIMITED,Heating & Lighting,1031\5109879451,08/02/2021,"19,320",
TFL CORPORATE,OPEN TEXT UK LTD,Computer Hardware,1001\5109882796,03/03/2021,"19,320",
TRANSPORT TRADING LTD,ATKINS LIMITED,Planning & Development Consultancy,1004\5109878622,24/02/2021,"19,284",
CYCLE HIRE SCHEME,ORCADES MARINE,Management & Support Consultancy,1016\5109881700,08/02/2021,"19,268",
LONDON UNDERGROUND LTD,NETWORK RAIL,Electricity,1005\5109874124,08/02/2021,"19,247",
LONDON UNDERGROUND LTD,KELLMARTS BUILDING SERVICES LTD,Equipment Repairs & Maintenance,1005\5109892669,02/03/2021,"19,180",
LONDON UNDERGROUND LTD,TELENT TECHNOLOGY SERVICES LTD,Cameras,1005\5109889587,19/02/2021,"19,141",
RAIL FOR LONDON LIMITED,BOMBARDIER TRANSPORT UK,Vehicle Repairs & Maintenance,1020\5109873890,10/02/2021,"19,140",
LONDON UNDERGROUND LTD,GBM SERVICES LTD,Operational Cleaning,1005\5109896868,04/03/2021,"19,114",
TFL CORPORATE,XANTA LIMITED,Management & Support Consultancy,1001\5109881520,08/02/2021,"19,050",
TFL CORPORATE,AB PUBLISHING LIMITED,Production Artwork And Design For Marketing,1001\5109892317,24/02/2021,"19,044",
LUL NOMINEE SSL LIMITED,QUINN INFRASTRUCTURE SERVICES LTD,Civil Engineering Construction Works,1031\5109875295,16/02/2021,"19,033",
TRANSPORT TRADING LTD,NOVACROFT DIRECT LTD,Ticket & Pass Production,1004\5109885577,17/02/2021,"19,001",
SURFACE TRANSPORT CORP,LONDON BOROUGH OF WALTHAM FOREST,Borough Services,1002\1900067140,08/02/2021,"19,000",
LONDON UNDERGROUND LTD,SPEEDY HIRE DIRECT LTD,Plant & Equipment Purchases,1005\5109882863,26/02/2021,"18,972",
DOCKLANDS LIGHT RAILWAY,DGAUGE LTD,Professional Engineering Services,1012\5109893170,02/03/2021,"18,900",
LONDON UNDERGROUND LTD,MORSON HUMAN RESOURCES LTD,Agency Staff,1005\5109876325,22/02/2021,"18,847",
LUL NOMINEE SSL LIMITED,CPC PROJECT SERVICES LLP,Civil Engineering Construction Works,1031\5109869685,11/02/2021,"18,837",
TFL CORPORATE,CH2M HILL UNITED KINGDOM,Planning & Development Consultancy,1001\5109870283,09/02/2021,"18,833",
TFL CORPORATE,COMPUTACENTER PLC,Management & Support Consultancy,1001\5109882846,03/03/2021,"18,750",
LONDON UNDERGROUND LTD,NEW ERA FUELS LTD,Vehicle Running Costs,1005\5109892805,25/02/2021,"18,742",
LONDON UNDERGROUND LTD,MORSON HUMAN RESOURCES LTD,Agency Staff,1005\5109872735,15/02/2021,"18,711",
TFL CORPORATE,MORSON HUMAN RESOURCES LTD,Agency Staff,1001\5109880235,01/03/2021,"18,663",
TFL CORPORATE,GUTTERIDGE HASKINS & DAVEY LIMITED,Management & Support Consultancy,1001\5109875116,17/02/2021,"18,612",
SURFACE TRANSPORT CORP,ARDENT MANAGEMENT LTD,Planning & Development Consultancy,1002\5109885132,23/02/2021,"18,573",
PUBLIC CARRIAGE OFFICE,NSL LIMITED,PCO Outsourced Services,1003\5109886655,24/02/2021,"18,526",
TFL CORPORATE,GARDINER & THEOBALD LLP,Planning & Development Consultancy,1001\5109870482,09/02/2021,"18,480",
RFL (IINFRASTRUCTURE) LTD,ENGIE SERVICES LTD,Fire and Safety Equipment,1025\5109835563,09/02/2021,"18,454",
LUL NOMINEE SSL LIMITED,CPC PROJECT SERVICES LLP,Civil Engineering Construction Works,1031\5109849954,24/02/2021,"18,413",
LONDON UNDERGROUND LTD,TELENT TECHNOLOGY SERVICES LTD,Cameras,1005\5109889624,01/03/2021,"18,402",
LONDON BUS SERVICES LTD,AA DRIVETECH,Management & Support Consultancy,1006\5109888604,02/03/2021,"18,365",
LONDON UNDERGROUND LTD,KNORR-BREMSE RAIL LTD ,Equipment Repairs & Maintenance,1005\5109870848,10/02/2021,"18,350",
LONDON UNDERGROUND LTD,METS LTD,Traction Current,1005\5109889664,04/03/2021,"18,337",
TFL CORPORATE,HAYS ACCOUNTANCY PERSONNEL,Agency Staff,1001\5109879851,01/03/2021,"18,317",
LONDON UNDERGROUND LTD,TELENT TECHNOLOGY SERVICES LTD,Cameras,1005\5109886017,15/02/2021,"18,284",
LONDON RIVER SERVICES LTD,CAPITA BUSINESS SERVICES LTD,Maintenance of Telecommunications Equipment,1007\5109877969,24/02/2021,"18,226",
TFL CORPORATE,KNIGHT FRANK,Purchase of Land & Buildings,1001\1900072306,01/03/2021,"18,200",
LONDON UNDERGROUND LTD,DIRECT TRACK SOLUTIONS LTD,Track General Maintenance,1005\5109892835,01/03/2021,"18,200",
SURFACE TRANSPORT CORP,TELENT TECHNOLOGY SERVICES LTD,Traffic Signals,1002\5109887163,24/02/2021,"18,174",
LONDON UNDERGROUND LTD,CLOSE BROTHERS RAIL LTD,Building Maintenance & Repairs,1005\5109885430,19/02/2021,"18,132",
DOCKLANDS LIGHT RAILWAY,METROLINE TRAVEL LTD,Rail Replacement Service Costs,1012\5109883362,03/03/2021,"18,089",
LONDON UNDERGROUND LTD,BT SERVICE AGILITY,Telephony Fixed,1005\1900216503,10/02/2021,"18,073",
TFL CORPORATE,THE RETEARN GROUP LTD,Management & Support Consultancy,1001\5109889713,02/03/2021,"18,000",
LUL NOMINEE SSL LIMITED,BOMBARDIER TRANSPORT UK,Fleet,1031\5109878353,24/02/2021,"17,969",
LONDON UNDERGROUND LTD,MORSON HUMAN RESOURCES LTD,Agency Staff,1005\5109872731,15/02/2021,"17,963",
LONDON UNDERGROUND LTD,DUCTCLEAN (UK) LTD T/A DCUK FM,Building Maintenance & Repairs,1005\5109881222,08/02/2021,"17,919",
SURFACE TRANSPORT CORP,EVERSHEDS,Legal Fees,1002\5109896123,03/03/2021,"17,879",
LONDON UNDERGROUND LTD,GPX ENGINEERING LTD,Track General Maintenance,1005\5109883054,10/02/2021,"17,867",
RAIL FOR LONDON LIMITED,CLESHAR CONTRACT SERVICES LTD,Management & Support Consultancy,1020\5109878131,23/02/2021,"17,835",
LONDON BUS SERVICES LTD,MITIE CLEANING & ENVIRONMENTAL,"Maps, Timetables & Fare Information",1006\5109870538,10/02/2021,"17,784",
LONDON UNDERGROUND LTD,TRANSPORT INVESTIGATION LTD ,Agency Staff,1005\5109890942,26/02/2021,"17,737",
TFL CORPORATE,CORPORATE DOCUMENT SERVICES LTD,Storage And Distribution Of Publicity Materials,1001\5109885220,15/02/2021,"17,717",
TFL CORPORATE,INVESTIGO,Management & Support Consultancy,1001\5109861987,11/02/2021,"17,700",
LUL NOMINEE SSL LIMITED,TELENT TECHNOLOGY SERVICES LTD,Cameras,1031\5109838362,04/03/2021,"17,681",
DOCKLANDS LIGHT RAILWAY,CLESHAR CONTRACT SERVICES LTD,Civil Engineering Construction Works,1012\5109885592,26/02/2021,"17,680",
TFL CORPORATE,EDENRED (UK GROUP) LIMITED,Staff Awards & Commendations,1001\5109895893,03/03/2021,"17,600",
LONDON UNDERGROUND LTD,TRANSPORT INVESTIGATION LTD ,Agency Staff,1005\5109890944,26/02/2021,"17,576",
LONDON TRANSPORT MUSEUM,REEDME,Fire and Safety Equipment,1011\5109885468,12/02/2021,"17,558",
TFL CORPORATE,GARDINER & THEOBALD LLP,Professional Engineering Services,1001\5109881303,01/03/2021,"17,541",
LONDON UNDERGROUND LTD,MOTT MACDONALD LIMITED,Planning & Development Consultancy,1005\5109890285,25/02/2021,"17,512",
LONDON UNDERGROUND LTD,SOUTH EAST SUPPLIES LTD,Plant & Equipment Purchases,1005\5109882870,23/02/2021,"17,387",
DIAL A RIDE,HACKNEY COMMUNITY TRANSPORT,Operator Costs,1010\5109878619,23/02/2021,"17,385",
RAIL FOR LONDON LIMITED,BT SERVICE AGILITY,Telephony Fixed,1020\1900006265,08/02/2021,"17,382",
LONDON UNDERGROUND LTD,THALES GRD TRANSPORTATION SYSTEMS,Computer Hardware,1005\5109883421,03/03/2021,"17,336",
LONDON UNDERGROUND LTD,HEATHROW EXPRESS ,Licence Fees,1005\5109881198,23/02/2021,"17,321",
TFL CORPORATE,MORSON HUMAN RESOURCES LTD,Agency Staff,1001\5109869420,08/02/2021,"17,285",
RAIL FOR LONDON LIMITED,SULLIVAN BUS & COACH LTD,Rail Replacement Service Costs,1020\5109892364,01/03/2021,"17,250",
LONDON UNDERGROUND LTD,LUCCHINI UK LTD,Fleet,1005\5109869950,22/02/2021,"17,206",
LONDON UNDERGROUND LTD,ATKINS LIMITED,MR Construction Costs,1005\5109888369,23/02/2021,"17,184",
LONDON UNDERGROUND LTD,TELENT TECHNOLOGY SERVICES LTD,Cameras,1005\5109886019,15/02/2021,"17,090",
LONDON UNDERGROUND LTD,WILLMOTT DIXON INTERIORS LTD,MR Construction Costs,1005\5109892273,26/02/2021,"17,047",
TFL CORPORATE,INTERFLEET TECHNOLOGY LIMITED,Management & Support Consultancy,1001\5109878869,24/02/2021,"16,990",
SURFACE TRANSPORT CORP,CAPITA BUSINESS SERVICES LTD,Management & Support Consultancy,1002\5109874110,16/02/2021,"16,953",
TFL CORPORATE,O2 UK LTD,Computer Hardware,1001\5109881282,01/03/2021,"16,950",
SURFACE TRANSPORT CORP,FRANKHAM CONSULTANCY GROUP LTD,Professional Engineering Services,1002\5109877531,23/02/2021,"16,950",
LONDON UNDERGROUND LTD,DYER & BUTLER LTD,Civil Engineering Construction Works,1005\5109889546,04/03/2021,"16,925",
TRANSPORT TRADING LTD,HAYS ACCOUNTANCY PERSONNEL,Agency Staff,1004\5109869128,08/02/2021,"16,870",
LUL NOMINEE BCV LIMITED,OTIS LIMITED,MR Construction Costs,1033\5109885436,17/02/2021,"16,846",
LONDON UNDERGROUND LTD,MILWAUKEE COMPOSITES INC.,Maintenance Materials,1005\5109889672,26/02/2021,"16,700",
RAIL FOR LONDON LIMITED,TURNER & TOWNSEND LLP,Management & Support Consultancy,1020\5109879581,24/02/2021,"16,656",
LUL NOMINEE SSL LIMITED,BRITISH TELECOMMUNICATIONS PLC,Computer Hardware,1031\5109890745,22/02/2021,"16,585",
LONDON UNDERGROUND LTD,THALES GRD TRANSPORTATION SYSTEMS,Computer Hardware,1005\5109883053,03/03/2021,"16,582",
LONDON UNDERGROUND LTD,GBM SERVICES LTD,Operational Cleaning,1005\5109896804,04/03/2021,"16,577",
RAIL FOR LONDON LIMITED,SULLIVAN BUS & COACH LTD,Rail Replacement Service Costs,1020\5109892363,24/02/2021,"16,533",
LONDON UNDERGROUND LTD,O2 UK LTD,Computer Hardware,1005\5109881279,01/03/2021,"16,530",
TFL CORPORATE,GARDINER & THEOBALD LLP,Management & Support Consultancy,1001\5109870444,09/02/2021,"16,500",
LUL NOMINEE SSL LIMITED,CPC PROJECT SERVICES LLP,Civil Engineering Construction Works,1031\5109869658,11/02/2021,"16,484",
RAIL FOR LONDON LIMITED,VINCI CONSTRUCTION UK LTD,Building Maintenance & Repairs,1020\5109888561,05/03/2021,"16,482",
LONDON UNDERGROUND LTD,1STINRAIL LIMITED,Track General Maintenance,1005\5109882063,09/02/2021,"16,462",
CYCLE HIRE SCHEME,IRIS LONDON LTD,Contracted Services - Roads,1016\5109883392,03/03/2021,"16,451",
SURFACE TRANSPORT CORP,BADENOCH & CLARK LTD,Software Maintenance,1002\5109870978,10/02/2021,"16,450",
LUL NOMINEE BCV LIMITED,KNORR-BREMSE RAIL LTD ,Track General Maintenance,1033\5109871818,10/02/2021,"16,390",
TTL PROPERTIES LTD,UK POWER NETWORKS LTD,Building Maintenance & Repairs,1040\5109879160,08/02/2021,"16,355",
LONDON UNDERGROUND LTD,HGG LONDON LIMITED,Minor Property Expenses / Receipts,1005\1900216811,23/02/2021,"16,344",
SURFACE TRANSPORT CORP,4 RAIL SERVICES LTD,Building Maintenance & Repairs,1002\5109881330,09/02/2021,"16,335",
LUL NOMINEE SSL LIMITED,MORGAN SINDALL  PLC,Professional Engineering Services,1031\5109882801,22/02/2021,"16,314",
TFL CORPORATE,CPC PROJECT SERVICES LLP,Contractors,1001\5109887199,17/02/2021,"16,311",
LUL NOMINEE BCV LIMITED,HAYLEY GROUP PLC,Fleet,1033\5109874234,17/02/2021,"16,306",
LONDON UNDERGROUND LTD,RULLION ENGINEERING LTD,Agency Staff,1005\5109880700,01/03/2021,"16,305",
RFL (IINFRASTRUCTURE) LTD,GBM SERVICES LTD,Operational Cleaning,1025\5109892894,04/03/2021,"16,298",
TRANSPORT TRADING LTD,BT SERVICE AGILITY,Computer Hardware,1004\1901675606,18/02/2021,"16,264",
LONDON RIVER SERVICES LTD,DAVID SCOTT MARINE LTD,Management & Support Consultancy,1007\5109879526,12/02/2021,"16,250",
TRANSPORT TRADING LTD,HAYS ACCOUNTANCY PERSONNEL,Agency Staff,1004\5109875932,22/02/2021,"16,234",
TFL CORPORATE,INVESTIGO,Management & Support Consultancy,1001\5109875126,10/02/2021,"16,200",
TFL CORPORATE,EDENRED (UK GROUP) LIMITED,Staff Welfare Benefits,1001\5109882202,08/02/2021,"16,133",
LONDON BUS SERVICES LTD,TRAPEZE PTI LTD,Electrical & Electronic Engineering,1006\5109887196,16/02/2021,"16,120",
TFL CORPORATE,CURRIE & BROWN UK LIMITED,Professional Engineering Services,1001\5109878278,22/02/2021,"16,025",
CYCLE HIRE SCHEME,IRIS LONDON LTD,Contracted Services - Roads,1016\5109883400,09/02/2021,"16,010",
LUL NOMINEE BCV LIMITED,HAYLEY GROUP PLC,Stock of Fleet,1033\5109894417,02/03/2021,"16,006",
TFL CORPORATE,PROACTIS LIMITED,Software Maintenance,1001\5109892588,02/03/2021,"16,000",
SURFACE TRANSPORT CORP,NETWORK RAIL,Road Maintenance,1002\5109875119,17/02/2021,"15,985",
TFL CORPORATE,AON HEWITT LTD,Management & Support Consultancy,1001\5109849755,19/02/2021,"15,979",
RAIL FOR LONDON LIMITED,ATOS IT SERVICES UK LTD,Computer Software,1020\5109886317,05/03/2021,"15,965",
TRANSPORT TRADING LTD,HAYS ACCOUNTANCY PERSONNEL,Agency Staff,1004\5109872465,15/02/2021,"15,947",
LONDON UNDERGROUND LTD,CLESHAR CONTRACT SERVICES LTD,Track General Maintenance,1005\5109875493,16/02/2021,"15,882",
CYCLE HIRE SCHEME,SERCO LTD,Concession Maintenance Charge,1016\5109873176,10/02/2021,"15,879",
SURFACE TRANSPORT CORP,DVLA,Production Artwork And Design For Marketing,1002\5109893423,04/03/2021,"15,863",
LONDON UNDERGROUND LTD,FUSION PEOPLE LIMITED,Agency Staff,1005\5109895345,05/03/2021,"15,860",
TFL CORPORATE,NETWORK RAIL,Research & Study Fees,1001\5109874131,16/02/2021,"15,797",
RFL (IINFRASTRUCTURE) LTD,OVE ARUP & PARTNERS LTD,Management & Support Consultancy,1025\5109874536,17/02/2021,"15,791",
LONDON UNDERGROUND LTD,O2 UK LTD,Computer Hardware,1005\5109874887,17/02/2021,"15,760",
SURFACE TRANSPORT CORP,TELENT TECHNOLOGY SERVICES LTD,Road Maintenance,1002\5109877171,09/02/2021,"15,740",
TRANSPORT TRADING LTD,BT SERVICE AGILITY,Computer Hardware,1004\1901675682,05/03/2021,"15,726",
SURFACE TRANSPORT CORP,CSTS LTD,Road Maintenance,1002\5109889623,03/03/2021,"15,610",
TRANSPORT TRADING LTD,GBM SERVICES LTD,COVID 19 planning,1004\5109896647,04/03/2021,"15,525",
LONDON BUS SERVICES LTD,LONDON SOVEREIGN LTD ,Bus Contract Payments,1006\1900045434,04/03/2021,"15,477",
TFL CORPORATE,LENDLEASE JACOBS JOINT VENTURE,MR Construction Costs,1001\5109882307,03/03/2021,"15,460",
TFL CORPORATE,O2 UK LTD,Computer Hardware,1001\5109883483,04/03/2021,"15,450",
TFL CORPORATE,O2 UK LTD,Computer Hardware,1001\5109888490,04/03/2021,"15,450",
LUL NOMINEE SSL LIMITED,FT TRANSFORMERS UK LTD,Plant & Equipment Purchases,1031\5109882197,03/03/2021,"15,445",
RAIL FOR LONDON LIMITED,VINCI CONSTRUCTION UK LTD,Civil Engineering Construction Works,1020\5109890687,22/02/2021,"15,403",
SURFACE TRANSPORT CORP,BADENOCH & CLARK LTD,Software Maintenance,1002\5109855825,16/02/2021,"15,400",
LONDON UNDERGROUND LTD,GPX ENGINEERING LTD,Track General Maintenance,1005\5109892472,25/02/2021,"15,390",
LONDON UNDERGROUND LTD,MORSON HUMAN RESOURCES LTD,Agency Staff,1005\5109876359,22/02/2021,"15,382",
LONDON UNDERGROUND LTD,CLOSE BROTHERS RAIL LTD,COVID 19 planning,1005\5109876731,19/02/2021,"15,342",
TRANSPORT TRADING LTD,ENGIE SERVICES LTD,Fire and Safety Equipment,1004\5109874561,17/02/2021,"15,333",
PUBLIC CARRIAGE OFFICE,METHODS BUSINESS & DIGITAL TECH LTD,Agency Staff,1003\5109884955,16/02/2021,"15,300",
TFL CORPORATE,METHODS BUSINESS & DIGITAL TECH LTD,Management & Support Consultancy,1001\5109836995,10/02/2021,"15,290",
TFL CORPORATE,METHODS BUSINESS & DIGITAL TECH LTD,Management & Support Consultancy,1001\5109847122,10/02/2021,"15,290",
SURFACE TRANSPORT CORP,REDSPEED INTERNATIONAL  LTD,Maintenance of Plant & Equipment,1002\5109883294,03/03/2021,"15,284",
TFL CORPORATE,PA CONSULTING SERVICES LTD,Software Maintenance,1001\5109879159,24/02/2021,"15,264",
RAIL FOR LONDON LIMITED,LANES GROUP PLC,Property Management Fees,1020\5109881059,22/02/2021,"15,260",
TFL CORPORATE,INTEROUTE NETWORK LTD ,Software Maintenance,1001\5109874454,17/02/2021,"15,203",
LONDON UNDERGROUND LTD,TELENT TECHNOLOGY SERVICES LTD,Cameras,1005\5109893706,01/03/2021,"15,187",
SURFACE TRANSPORT CORP,ASHURST LLP,Legal Fees,1002\5109896862,04/03/2021,"15,164",
TFL CORPORATE,OPEN TEXT UK LTD,Software Maintenance,1001\5109875087,17/02/2021,"15,055",
SURFACE TRANSPORT CORP,MEDIAEDGE,Production Artwork And Design For Marketing,1002\5109895690,02/03/2021,"15,051",
SURFACE TRANSPORT CORP,MEDIAEDGE,Production Artwork And Design For Marketing,1002\5109886213,25/02/2021,"15,036",
LONDON UNDERGROUND LTD,NETWORK RAIL,Traction Current,1005\5109877076,22/02/2021,"15,026",
LONDON UNDERGROUND LTD,TECHNOLOGY DESKING LIMITED,Furniture & Equipment,1005\5109881652,23/02/2021,"15,024",
TFL CORPORATE,HCL TECHNOLOGIES UK LTD,Software Maintenance,1001\5109893456,02/03/2021,"15,000",
LONDON TRANSPORT MUSEUM,CENTRAL SAINT MARTINS COLLEGE,Production Artwork And Design For Marketing,1011\5109890394,03/03/2021,"15,000",
LONDON UNDERGROUND LTD,AECOM LTD,Planning & Development Consultancy,1005\5109884858,11/02/2021,"15,000",
LONDON UNDERGROUND LTD,NCP SERVICES LTD,Costs of Disp Inv Prop - TTL Planning,1005\5109881691,24/02/2021,"15,000",
LONDON UNDERGROUND LTD,MERMEC UK LIMITED,Equipment Repairs & Maintenance,1005\5109877016,22/02/2021,"14,986",
TRANSPORT TRADING LTD,CATERCOVER SERVICE LTD,Plant & Equipment Purchases,1004\5109893852,03/03/2021,"14,982",
TFL CORPORATE,RICARDO-AEA LTD,Planning & Development Consultancy,1001\5109877271,23/02/2021,"14,963",
TFL CORPORATE,SPECIALIST COMPUTER CENTRES LTD,Software Maintenance,1001\5109830820,26/02/2021,"14,933",
LUL NOMINEE BCV LIMITED,CHARLIE VICTOR,Maintenance Materials,1033\5109885456,17/02/2021,"14,903",
TFL CORPORATE,HAYS ACCOUNTANCY PERSONNEL,Agency Staff,1001\5109875796,22/02/2021,"14,882",
LONDON UNDERGROUND LTD,C E F,Electrical Equipment Maintenance,1005\5109881884,25/02/2021,"14,848",
LONDON UNDERGROUND LTD,C E F,Electrical Equipment Maintenance,1005\5109881885,25/02/2021,"14,848",
RAIL FOR LONDON LIMITED,LINSINGER MASCHINENBAU GESELLSCHAFT,Equipment Repairs & Maintenance,1020\5109879418,01/03/2021,"14,748",
SURFACE TRANSPORT CORP,CSTS LTD,Road Maintenance,1002\5109878179,10/02/2021,"14,713",
LONDON UNDERGROUND LTD,MORSON HUMAN RESOURCES LTD,Agency Staff,1005\5109872770,15/02/2021,"14,608",
TFL CORPORATE,GUTTERIDGE HASKINS & DAVEY LIMITED,Professional Engineering Services,1001\5109870794,10/02/2021,"14,575",
TFL CORPORATE,HAYS ACCOUNTANCY PERSONNEL,Agency Staff,1001\5109875828,22/02/2021,"14,501",
LONDON UNDERGROUND LTD,KONE PLC,Escalators,1005\5109886690,15/02/2021,"14,457",
LUL NOMINEE SSL LIMITED,SCHUNK CARBON TECHNOLOGY LIMITED,Fleet,1031\5109886041,05/03/2021,"14,455",
RAIL FOR LONDON LIMITED,CT PLUS LIMITED,Rail Replacement Service Costs,1020\5109875439,15/02/2021,"14,445",
LUL NOMINEE SSL LIMITED,SCHUNK CARBON TECHNOLOGY LIMITED,Fleet,1031\5109885616,26/02/2021,"14,431",
LUL NOMINEE SSL LIMITED,ALSTOM TRANSPORT LTD,Fleet,1031\5109873679,10/02/2021,"14,421",
SURFACE TRANSPORT CORP,KUROPATWA LTD,Other Joint Funding Contributions,1002\1900067914,15/02/2021,"14,413",
LONDON UNDERGROUND LTD,HEIGHTSAFE SYSTEMS LTD,Building Maintenance & Repairs,1005\5109896728,04/03/2021,"14,402",
TFL CORPORATE,EVERSHEDS,Legal Fees,1001\5109877586,10/02/2021,"14,367",
TTL PROPERTIES LTD,LENDLEASE JACOBS JOINT VENTURE,MR Construction Costs,1040\5109882356,03/03/2021,"14,364",
LONDON UNDERGROUND LTD,CLEAR ROUTE UTILITY SERVICES LTD,Electrical Equipment Maintenance,1005\5109888843,17/02/2021,"14,361",
RFL (IINFRASTRUCTURE) LTD,ICOMERA UK LTD,Manage IT Services,1025\5109889035,19/02/2021,"14,300",
DOCKLANDS LIGHT RAILWAY,ATKINS LIMITED,Civil Engineering Construction Works,1012\5109877544,23/02/2021,"14,300",
TFL CORPORATE,ASBL EUROCITIES,Publications & Periodicals,1001\5109886266,26/02/2021,"14,280",
LONDON UNDERGROUND LTD,MORSON HUMAN RESOURCES LTD,Agency Staff,1005\5109872718,15/02/2021,"14,253",
TRANSPORT TRADING LTD,HAYS ACCOUNTANCY PERSONNEL,Agency Staff,1004\5109879957,01/03/2021,"14,201",
TFL CORPORATE,NETALOGUE PROCUREMENT LTD,Software Maintenance,1001\5109889351,23/02/2021,"14,200",
LONDON UNDERGROUND LTD,MORSON HUMAN RESOURCES LTD,Agency Staff,1005\5109876187,22/02/2021,"14,197",
TFL CORPORATE,PROBRAND LTD,Recruitment Expenses,1001\5109869850,08/02/2021,"14,104",
LONDON UNDERGROUND LTD,JNG CONSTRUCTION & ENGINEERING,Planning & Development Consultancy,1005\5109896221,03/03/2021,"14,083",
LONDON UNDERGROUND LTD,TELENT TECHNOLOGY SERVICES LTD,Cameras,1005\5109865005,08/02/2021,"14,006",
LONDON UNDERGROUND LTD,JOHN COBB CONSULTING LTD,Building Maintenance & Repairs,1005\5109897242,05/03/2021,"14,000",
LONDON UNDERGROUND LTD,ATKINS LIMITED,Planning & Development Consultancy,1005\5109884560,03/03/2021,"14,000",
LONDON UNDERGROUND LTD,GARDINER & THEOBALD LLP,Planning & Development Consultancy,1005\5109884829,11/02/2021,"14,000",
LONDON UNDERGROUND LTD,SKANSKA CONTRUCTIONS UK LTD,Civil Engineering Construction Works,1005\5109892201,04/03/2021,"14,000",
DOCKLANDS LIGHT RAILWAY,AIRWAVE SOLUTIONS LTD,Civil Engineering Construction Works,1012\5109869920,17/02/2021,"13,989",
TFL CORPORATE,CH2M HILL UNITED KINGDOM,Planning & Development Consultancy,1001\5109877299,03/03/2021,"13,987",
DIAL A RIDE,GBM SERVICES LTD,Office Cleaning,1010\5109892897,04/03/2021,"13,962",
RAIL FOR LONDON LIMITED,LENDLEASE JACOBS JOINT VENTURE,Civil Engineering Construction Works,1020\5109882299,03/03/2021,"13,951",
TFL CORPORATE,OVE ARUP & PARTNERS LTD,Professional Engineering Services,1001\5109890097,23/02/2021,"13,946",
SURFACE TRANSPORT CORP,CEOX SERVICES LTD,IT Consultancy,1002\5109886034,05/03/2021,"13,940",
TFL CORPORATE,METHODS BUSINESS & DIGITAL TECH LTD,Management & Support Consultancy,1001\5109881670,09/02/2021,"13,900",
TFL CORPORATE,2CV RESEARCH,Customer Research And Counts,1001\5109875058,17/02/2021,"13,850",
LONDON UNDERGROUND LTD,CAPITA BUSINESS SERVICES LTD,IT Consultancy,1005\5109882973,10/02/2021,"13,821",
LONDON UNDERGROUND LTD,NETWORK RAIL,National Rail Fixed Track Access Charges,1005\5109877004,22/02/2021,"13,801",
LONDON UNDERGROUND LTD,PTSG ACCESS AND SAFETY LTD,Building Maintenance & Repairs,1005\5109885678,26/02/2021,"13,800",
LUL NOMINEE BCV LIMITED,R S CLARE & CO LTD,Vehicle Parts Gas Oil & Lubricants,1033\5109877030,22/02/2021,"13,774",
LONDON BUS SERVICES LTD,AA DRIVETECH,Management & Support Consultancy,1006\5109888601,02/03/2021,"13,774",
SURFACE TRANSPORT CORP,TELENT TECHNOLOGY SERVICES LTD,Traffic Signals,1002\5109887167,24/02/2021,"13,755",
TFL CORPORATE,2CV RESEARCH,Research For Marketing Campaigns And Activities,1001\5109878899,24/02/2021,"13,750",
TFL CORPORATE,CRONER-I LIMITED,Publications & Periodicals,1001\5109896660,04/03/2021,"13,735",
LONDON UNDERGROUND LTD,TELENT TECHNOLOGY SERVICES LTD,MR Construction Costs,1005\5109891967,25/02/2021,"13,721",
LUL NOMINEE BCV LIMITED,PRV ENGINEERING LTD,Track General Maintenance,1033\5109879355,22/02/2021,"13,716",
LONDON UNDERGROUND LTD,TELENT TECHNOLOGY SERVICES LTD,MR Construction Costs,1005\5109874187,08/02/2021,"13,691",
SURFACE TRANSPORT CORP,MIDDLEHAVEN INVESTMENTS LTD,Other Joint Funding Contributions,1002\1900067827,15/02/2021,"13,675",
LUL NOMINEE BCV LIMITED,PROGRESS RAIL SERVICES UK LTD,Track General Maintenance,1033\5109874204,15/02/2021,"13,659",
RAIL FOR LONDON LIMITED,VINCI CONSTRUCTION UK LTD,Building Maintenance & Repairs,1020\5109888307,18/02/2021,"13,639",
LONDON UNDERGROUND LTD,SKANSKA CONTRUCTIONS UK LTD,Civil Engineering Construction Works,1005\5109892245,04/03/2021,"13,625",
LONDON UNDERGROUND LTD,TELENT TECHNOLOGY SERVICES LTD,Cameras,1005\5109886000,15/02/2021,"13,610",
RAIL FOR LONDON LIMITED,CLESHAR CONTRACT SERVICES LTD,Maintenance Materials,1020\5109876876,17/02/2021,"13,568",
TFL CORPORATE,PROBRAND LTD,Software Maintenance,1001\5109878805,24/02/2021,"13,521",
LONDON UNDERGROUND LTD,4 RAIL SERVICES LTD,Building Maintenance & Repairs,1005\5109887191,24/02/2021,"13,518",
LUL NOMINEE SSL LIMITED,KNORR-BREMSE RAIL LTD ,Fleet,1031\5109871753,10/02/2021,"13,501",
LONDON BUS SERVICES LTD,SULLIVAN BUS & COACH LTD,Bus Contract Payments,1006\1900045448,05/03/2021,"13,500",
LONDON UNDERGROUND LTD,SIEMENS,Maintenance Materials,1005\5109870059,08/02/2021,"13,469",
LUL NOMINEE SSL LIMITED,1STINRAIL LIMITED,Track General Maintenance,1031\5109890077,24/02/2021,"13,408",
VICTORIA COACH STATN LTD,VINCI CONSTRUCTION UK LTD,Building Maintenance & Repairs,1008\5109888573,17/02/2021,"13,385",
LONDON UNDERGROUND LTD,GOOD SKILLS TRAINING,Staff Training,1005\5109895659,03/03/2021,"13,367",
LONDON UNDERGROUND LTD,AVM IMPACT LTD,Staff Training,1005\5109871893,10/02/2021,"13,361",
LONDON UNDERGROUND LTD,TELENT TECHNOLOGY SERVICES LTD,Cameras,1005\5109889629,02/03/2021,"13,330",
LONDON UNDERGROUND LTD,SPEEDY HIRE DIRECT LTD,Plant & Equipment Purchases,1005\5109882858,26/02/2021,"13,311",
LUL NOMINEE BCV LIMITED,LANES GROUP PLC,Maintenance Materials,1033\5109884857,25/02/2021,"13,303",
SURFACE TRANSPORT CORP,BADENOCH & CLARK LTD,Software Maintenance,1002\5109883523,03/03/2021,"13,300",
TTL PROPERTIES LTD,UK POWER NETWORKS LTD,Building Maintenance & Repairs,1040\5109879157,08/02/2021,"13,289",
LUL NOMINEE SSL LIMITED,SIEMENS,Fleet,1031\5109870767,10/02/2021,"13,286",
LONDON BUS SERVICES LTD,TRUEFORM ENGINEERING LTD,Maintenance of  Bus Stops,1006\5109888961,17/02/2021,"13,281",
SURFACE TRANSPORT CORP,ICM RESEARCH LIMITED,Customer Research And Counts,1002\5109880781,04/03/2021,"13,250",
TFL CORPORATE,EC HARRIS UK LTD,Management & Support Consultancy,1001\5109892311,05/03/2021,"13,250",
SURFACE TRANSPORT CORP,CSTS LTD,Contracted Services - Roads,1002\5109889676,03/03/2021,"13,248",
TTL PROPERTIES LTD,GIFFEN GROUP LTD,MR Construction Costs,1040\5109886135,12/02/2021,"13,241",
TFL CORPORATE,MORSON PROJECTS LIMITED,Professional Engineering Services,1001\5109885268,11/02/2021,"13,219",
LONDON UNDERGROUND LTD,MORSON HUMAN RESOURCES LTD,Agency Staff,1005\5109872740,15/02/2021,"13,217",
LONDON UNDERGROUND LTD,GTECH STRATEGIES LTD,COVID 19 planning,1005\5109881931,08/02/2021,"13,200",
LONDON BUS SERVICES LTD,TRAPEZE PTI LTD,Computer Consumables,1006\5109877901,26/02/2021,"13,190",
TFL CORPORATE,CORPORATE DOCUMENT SERVICES LTD,Production Artwork And Design For Marketing,1001\5109874348,08/02/2021,"13,177",
TFL CORPORATE,LENDLEASE JACOBS JOINT VENTURE,Management & Support Consultancy,1001\5109882295,03/03/2021,"13,159",
SURFACE TRANSPORT CORP,"SYSTEMS ENGINEERING, ASSESSMENT",PCN and Penalty Fare Processing,1002\5109881171,26/02/2021,"13,149",
LUL NOMINEE BCV LIMITED,RJC (UK) LTD,Retentions Control Account > 1Year,1033\5109887289,16/02/2021,"13,091",
LONDON UNDERGROUND LTD,SPEEDY HIRE DIRECT LTD,Plant & Equipment Purchases,1005\5109882873,26/02/2021,"13,086",
TFL CORPORATE,EVERSHEDS,Legal Fees,1001\5109885621,23/02/2021,"13,081",
RAIL FOR LONDON LIMITED,VINCI CONSTRUCTION UK LTD,Building Maintenance & Repairs,1020\5109888310,18/02/2021,"13,072",
RFL (IINFRASTRUCTURE) LTD,LENDLEASE JACOBS JOINT VENTURE,Contractors,1025\5109882305,03/03/2021,"13,063",
LONDON BUS SERVICES LTD,CASTLE WATER LIMITED,Water,1006\5109862991,16/02/2021,"13,038",
LONDON UNDERGROUND LTD,RJC (UK) LTD,Lift Maintenance,1005\5109871894,10/02/2021,"13,025",
SURFACE TRANSPORT CORP,INRIX UK LTD,Computer Software,1002\5109890119,03/03/2021,"13,000",
TFL CORPORATE,C.J. GRAY LTD,Management & Support Consultancy,1001\5109884651,03/03/2021,"13,000",
RAIL FOR LONDON LIMITED,PCG ASSOCIATES LIMITED,Management & Support Consultancy,1020\5109888730,19/02/2021,"13,000",
LUL NOMINEE BCV LIMITED,MH SOUTHERN & CO LTD,Track General Maintenance,1033\5109877501,17/02/2021,"12,968",
PUBLIC CARRIAGE OFFICE,NSL LIMITED,PCO Outsourced Services,1003\5109886043,24/02/2021,"12,950",
LONDON UNDERGROUND LTD,MORSON HUMAN RESOURCES LTD,Agency Staff,1005\5109876224,22/02/2021,"12,941",
TTL PROPERTIES LTD,GVA GRIMLEY LTD,Planning & Development Consultancy,1040\5109880784,24/02/2021,"12,920",
SURFACE TRANSPORT CORP,MEDIAEDGE,Production Artwork And Design For Marketing,1002\5109886066,25/02/2021,"12,807",
LONDON BUS SERVICES LTD,TRAPEZE PTI LTD,Electrical & Electronic Engineering,1006\5109873371,12/02/2021,"12,797",
SURFACE TRANSPORT CORP,TELENT TECHNOLOGY SERVICES LTD,Traffic Signals,1002\5109887236,24/02/2021,"12,752",
TFL CORPORATE,XANTA LIMITED,Management & Support Consultancy,1001\5109889817,01/03/2021,"12,700",
LUL NOMINEE SSL LIMITED,TIMKEN RAIL SERVICES,Fleet,1031\5109874478,17/02/2021,"12,650",
LONDON UNDERGROUND LTD,ABB POWER GRIDS UK LIMITED,Traction Current,1005\5109892224,26/02/2021,"12,650",
LUL NOMINEE SSL LIMITED,CPC PROJECT SERVICES LLP,Civil Engineering Construction Works,1031\5109881630,24/02/2021,"12,650",
LONDON UNDERGROUND LTD,ENGIE SERVICES LTD,Fire and Safety Equipment,1005\5109818663,01/03/2021,"12,642",
LONDON TRANSPORT MUSEUM,GBM SERVICES LTD,Office Cleaning,1011\5109892896,04/03/2021,"12,634",
PUBLIC CARRIAGE OFFICE,METHODS BUSINESS & DIGITAL TECH LTD,Agency Staff,1003\5109884906,16/02/2021,"12,600",
LONDON UNDERGROUND LTD,FIRSTCO LIMITED,Traction Current,1005\5109883446,12/02/2021,"12,586",
LONDON BUS SERVICES LTD,LONDON UNITED BUSWAYS,Bus Contract Payments,1006\1900045393,19/02/2021,"12,573",
LONDON UNDERGROUND LTD,HMRC,Payroll Suspense,1005\1900216779,22/02/2021,"12,526",
TFL CORPORATE,GLOBAL OUTDOOR MEDIA LIMITED,Radio TV Press Poster Cinema Airtime And Space,1001\5109873143,10/02/2021,"12,500",
SURFACE TRANSPORT CORP,GEOPLACE LLP,Management & Support Consultancy,1002\5109885595,11/02/2021,"12,500",
RAIL FOR LONDON LIMITED,ICOMERA UK LTD,Computer Hardware,1020\5109889038,19/02/2021,"12,480",
LONDON UNDERGROUND LTD,DIRECT TRACK SOLUTIONS LTD,Track General Maintenance,1005\5109892816,01/03/2021,"12,411",
TFL CORPORATE,EDENRED (UK GROUP) LIMITED,Staff Awards & Commendations,1001\5109895897,02/03/2021,"12,400",
TRANSPORT TRADING LTD,HEATHROW EXPRESS ,JFT Suspense  - TTL,1004\1901673029,10/06/2020,"12,396",
LUL NOMINEE SSL LIMITED,SIEMENS,Fleet,1031\5109881714,02/03/2021,"12,351",
LUL NOMINEE SSL LIMITED,SIEMENS,Maintenance Materials,1031\5109875304,26/02/2021,"12,346",
LONDON UNDERGROUND LTD,NETWORK RAIL,National Rail Long Term Charges,1005\5109877878,17/02/2021,"12,343",
LONDON BUS SERVICES LTD,TRUEFORM ENGINEERING LTD,Building Maintenance & Repairs,1006\5109890455,22/02/2021,"12,315",
TFL CORPORATE,EVERSHEDS,Legal Fees,1001\5109885134,12/02/2021,"12,278",
TFL CORPORATE,SIGNALLING INSTALLATION & MAINT,Management & Support Consultancy,1001\5109871455,09/02/2021,"12,240",
TFL CORPORATE,HAYS ACCOUNTANCY PERSONNEL,Agency Staff,1001\5109875832,22/02/2021,"12,211",
LUL NOMINEE BCV LIMITED,KINGSBEECH LTD,Maintenance Materials,1033\5109896146,05/03/2021,"12,180",
RAIL FOR LONDON LIMITED,NETWORK RAIL,National Rail Contribution,1020\5109883402,03/03/2021,"12,152",
SURFACE TRANSPORT CORP,CSTS LTD,Contracted Services - Tunnels,1002\5109878280,24/02/2021,"12,148",
LUL NOMINEE BCV LIMITED,HAYLEY GROUP PLC,Track General Maintenance,1033\5109880839,25/02/2021,"12,100",
TFL CORPORATE,MEDIAEDGE,Radio TV Press Poster Cinema Airtime And Space,1001\5109877534,11/02/2021,"12,069",
LUL NOMINEE SSL LIMITED,MCGINLEY SUPPORT SERVICES LTD,Civil Engineering Construction Works,1031\5109892233,04/03/2021,"12,056",
TRANSPORT TRADING LTD,CYBERSOURCE  LIMITED,Software Maintenance,1004\5109882343,08/02/2021,"12,050",
RAIL FOR LONDON LIMITED,HUBER & SUHNER (UK) LTD,Stock of Fleet,1020\5109877744,23/02/2021,"12,050",
DIAL A RIDE,MERTON COMMUNITY TRANSPORT,Operator Costs,1010\5109890445,22/02/2021,"12,042",
LONDON UNDERGROUND LTD,TRANSPORT INVESTIGATION LTD ,Agency Staff,1005\5109888777,22/02/2021,"12,036",
RAIL FOR LONDON LIMITED,SIEMENS,Management & Support Consultancy,1020\5109870721,10/02/2021,"12,004",
TFL CORPORATE,HAYS ACCOUNTANCY PERSONNEL,Agency Staff,1001\5109875859,22/02/2021,"11,982",
LUL NOMINEE BCV LIMITED,DIRECT TRACK SOLUTIONS LTD,Signalling Systems,1033\5109882159,09/02/2021,"11,982",
TFL CORPORATE,XANTA LIMITED,Management & Support Consultancy,1001\5109885496,15/02/2021,"11,980",
LONDON BUS SERVICES LTD,GBM SERVICES LTD,COVID 19 planning,1006\5109896805,04/03/2021,"11,970",
LONDON BUS SERVICES LTD,TRAPEZE PTI LTD,Software Maintenance,1006\5109880962,18/02/2021,"11,957",
RAIL FOR LONDON LIMITED,LENDLEASE JACOBS JOINT VENTURE,Civil Engineering Construction Works,1020\5109882296,03/03/2021,"11,943",
LONDON UNDERGROUND LTD,DMC RAIL LTD,MR Construction Costs,1005\5109882382,09/02/2021,"11,926",
LONDON BUS SERVICES LTD,TRAPEZE PTI LTD,Software Maintenance,1006\5109880963,18/02/2021,"11,920",
SURFACE TRANSPORT CORP,TELENT TECHNOLOGY SERVICES LTD,Maintenance of Plant & Equipment,1002\5109871962,10/02/2021,"11,901",
LONDON BUS SERVICES LTD,CASTLE WATER LIMITED,Water,1006\5109874538,16/02/2021,"11,876",
SURFACE TRANSPORT CORP,CITY OF LONDON ,Electricity,1002\5109876874,17/02/2021,"11,855",
SURFACE TRANSPORT CORP,CSTS LTD,Traffic Signals,1002\5109889690,03/03/2021,"11,846",
TFL CORPORATE,METHODS BUSINESS & DIGITAL TECH LTD,Management & Support Consultancy,1001\5109882364,09/02/2021,"11,815",
TFL CORPORATE,GREATER LONDON AUTHORITY ,External Events Roads Shows And Face To Face,1001\5109888491,16/02/2021,"11,808",
LONDON BUS SERVICES LTD,SKANSKA CONTRUCTIONS UK LTD,Building Maintenance & Repairs,1006\5109877078,22/02/2021,"11,801",
LONDON UNDERGROUND LTD,ONE TRANSPORT LIMITED,Travel to/from work (Unsocial Hours),1005\5109887303,16/02/2021,"11,754",
LONDON UNDERGROUND LTD,SOLO RAIL SOLUTIONS LIMITED,Fleet,1005\5109864264,17/02/2021,"11,730",
LONDON UNDERGROUND LTD,SOLO RAIL SOLUTIONS LIMITED,Fleet,1005\5109870911,10/02/2021,"11,730",
LONDON UNDERGROUND LTD,SOLO RAIL SOLUTIONS LIMITED,Fleet,1005\5109878864,24/02/2021,"11,730",
LONDON UNDERGROUND LTD,CLESHAR CONTRACT SERVICES LTD,Track General Maintenance,1005\5109889281,18/02/2021,"11,728",
RFL (IINFRASTRUCTURE) LTD,OVE ARUP & PARTNERS LTD,Management & Support Consultancy,1025\5109874535,17/02/2021,"11,722",
RAIL FOR LONDON LIMITED,STM SECURITY GROUP (UK) LTD,Management & Support Consultancy,1020\5109869800,08/02/2021,"11,714",
TFL CORPORATE,EVERSHEDS,Legal Fees,1001\5109897461,05/03/2021,"11,699",
TFL CORPORATE,PROBRAND LTD,Computer Software,1001\5109894363,02/03/2021,"11,657",
TFL CORPORATE,PROBRAND LTD,Software Maintenance,1001\5109873450,15/02/2021,"11,657",
TFL CORPORATE,LENDLEASE JACOBS JOINT VENTURE,Management & Support Consultancy,1001\5109882354,03/03/2021,"11,653",
RAIL FOR LONDON LIMITED,TRUEFORM ENGINEERING LTD,Management & Support Consultancy,1020\5109883413,10/02/2021,"11,637",
TRANSPORT TRADING LTD,G4S CASH SOLUTIONS (UK) LTD,Cash Handling & Processing,1004\5109858001,25/02/2021,"11,586",
SURFACE TRANSPORT CORP,TELENT TECHNOLOGY SERVICES LTD,Traffic Signals,1002\5109887178,24/02/2021,"11,578",
SURFACE TRANSPORT CORP,MEDIAEDGE,Production Artwork And Design For Marketing,1002\5109888756,02/03/2021,"11,577",
LUL NOMINEE SSL LIMITED,ERIKS  EMS,Component Repairs Sub Contracted,1031\5109869949,08/02/2021,"11,568",
LUL NOMINEE SSL LIMITED,ERIKS  EMS,Component Repairs Sub Contracted,1031\5109874955,17/02/2021,"11,568",
LUL NOMINEE SSL LIMITED,ERIKS  EMS,Component Repairs Sub Contracted,1031\5109874960,17/02/2021,"11,568",
LUL NOMINEE SSL LIMITED,ERIKS  EMS,Component Repairs Sub Contracted,1031\5109879540,24/02/2021,"11,568",
SURFACE TRANSPORT CORP,THE NICHOLS GROUP LTD,Transport Planning Consultancy & Services,1002\5109896265,04/03/2021,"11,538",
LONDON UNDERGROUND LTD,TELENT TECHNOLOGY SERVICES LTD,Cameras,1005\5109874186,15/02/2021,"11,507",
TFL CORPORATE,CORPORATE RESEARCH FORUM LTD,Management & Support Consultancy,1001\5109889305,18/02/2021,"11,500",
DOCKLANDS LIGHT RAILWAY,BUCKINGHAM GROUP CONTRACTING LTD,Civil Engineering Construction Works,1012\5109884782,11/02/2021,"11,460",
TRANSPORT TRADING LTD,LONDON BOROUGH OF NEWHAM ,Rates,1004\1901675506,10/02/2021,"11,459",
LUL NOMINEE SSL LIMITED,GRINSTY RAIL LTD ,Fleet,1031\5109885039,12/02/2021,"11,456",
LUL NOMINEE SSL LIMITED,GRINSTY RAIL LTD ,Fleet,1031\5109892831,01/03/2021,"11,456",
RAIL FOR LONDON LIMITED,DMA,Equipment Repairs & Maintenance,1020\5109870311,15/02/2021,"11,400",
TRANSPORT TRADING LTD,ASPIRE,Planning & Development Consultancy,1004\5109885133,12/02/2021,"11,400",
TTL PROPERTIES LTD,UESL,Building Maintenance & Repairs,1040\5109883003,10/02/2021,"11,398",
LONDON UNDERGROUND LTD,HOPPECKE INDUSTRIAL BATTERIES,Fleet,1005\5109893443,02/03/2021,"11,332",
LONDON UNDERGROUND LTD,HOPPECKE INDUSTRIAL BATTERIES,Fleet,1005\5109893444,02/03/2021,"11,332",
LUL NOMINEE BCV LIMITED,PSV GLASS - (ABL HOLDING) LTD,Fleet,1033\5109882090,05/03/2021,"11,316",
LONDON UNDERGROUND LTD,4 RAIL SERVICES LTD,Building Maintenance & Repairs,1005\5109887156,17/02/2021,"11,315",
TFL CORPORATE,XANTA LIMITED,Management & Support Consultancy,1001\5109885111,12/02/2021,"11,300",
LONDON UNDERGROUND LTD,ABB LTD,Electrical Equipment Maintenance,1005\5109881191,01/03/2021,"11,268",
LONDON BUS SERVICES LTD,TRAPEZE PTI LTD,Software Maintenance,1006\5109880957,18/02/2021,"11,247",
TRANSPORT TRADING LTD,G4S CASH SOLUTIONS (UK) LTD,Cash Handling & Processing,1004\5109857997,25/02/2021,"11,178",
SURFACE TRANSPORT CORP,CROSSRAIL COMPLAINTS COMMISSIONER,Professional Engineering Services,1002\5109885613,24/02/2021,"11,174",
TFL CORPORATE,RIPPLE ROCK LTD.,Computer Software,1001\5109896350,05/03/2021,"11,138",
LONDON UNDERGROUND LTD,MORSON HUMAN RESOURCES LTD,Agency Staff,1005\5109876336,22/02/2021,"11,130",
DOCKLANDS LIGHT RAILWAY,GRAMM BARRIER SYSTEMS LTD,Civil Engineering Construction Works,1012\5109881853,11/02/2021,"11,116",
TFL CORPORATE,KELWAY (UK),Software Maintenance,1001\5109883024,03/03/2021,"11,112",
LUL NOMINEE SSL LIMITED,PROGRESS RAIL SERVICES UK LTD,Track General Maintenance,1031\5109854260,03/03/2021,"11,109",
LONDON UNDERGROUND LTD,MORSON HUMAN RESOURCES LTD,Agency Staff,1005\5109872782,15/02/2021,"11,109",
LONDON UNDERGROUND LTD,MORSON HUMAN RESOURCES LTD,Agency Staff,1005\5109876355,22/02/2021,"11,109",
LUL NOMINEE SSL LIMITED,TELENT TECHNOLOGY SERVICES LTD,Cameras,1031\5109896000,03/03/2021,"11,105",
DIAL A RIDE,HACKNEY COMMUNITY TRANSPORT,Operator Costs,1010\5109878306,24/02/2021,"11,087",
LONDON BUS SERVICES LTD,TRUEFORM ENGINEERING LTD,Maintenance of  Bus Stops,1006\5109892650,26/02/2021,"11,056",
LONDON UNDERGROUND LTD,MORSON HUMAN RESOURCES LTD,Agency Staff,1005\5109876324,22/02/2021,"11,024",
LUL NOMINEE BCV LIMITED,KGJ PRICE LTD,Track General Maintenance,1033\5109894362,03/03/2021,"11,009",
TFL CORPORATE,XANTA LIMITED,Management & Support Consultancy,1001\5109885069,12/02/2021,"11,000",
LONDON UNDERGROUND LTD,OVE ARUP & PARTNERS LTD,Management & Support Consultancy,1005\5109878902,24/02/2021,"10,982",
LONDON UNDERGROUND LTD,DAISY CORPORATE SERVICES TRADINGLTD,Telephony Fixed,1005\5109874390,17/02/2021,"10,970",
TFL CORPORATE,CH2M HILL UNITED KINGDOM,Planning & Development Consultancy,1001\5109871562,10/02/2021,"10,962",
SURFACE TRANSPORT CORP,TELENT TECHNOLOGY SERVICES LTD,Traffic Signals,1002\5109887279,24/02/2021,"10,958",
LONDON UNDERGROUND LTD,TELENT TECHNOLOGY SERVICES LTD,MR Construction Costs,1005\5109874392,17/02/2021,"10,955",
TFL CORPORATE,CORPORATE DOCUMENT SERVICES LTD,Storage And Distribution Of Publicity Materials,1001\5109885217,15/02/2021,"10,953",
LUL NOMINEE SSL LIMITED,KNORR-BREMSE RAIL LTD ,Fleet,1031\5109878468,23/02/2021,"10,946",
LONDON UNDERGROUND LTD,MORSON HUMAN RESOURCES LTD,Professional Engineering Services,1005\5109892478,03/03/2021,"10,943",
LONDON UNDERGROUND LTD,DAISY CORPORATE SERVICES TRADINGLTD,Computer Hardware,1005\5109879492,26/02/2021,"10,936",
TFL CORPORATE,MORSON PROJECTS LIMITED,Management & Support Consultancy,1001\5109885257,15/02/2021,"10,934",
TFL CORPORATE,BURGES SALMON LLP,Legal Fees,1001\5109886263,12/02/2021,"10,930",
LONDON UNDERGROUND LTD,MORSON HUMAN RESOURCES LTD,Agency Staff,1005\5109872775,15/02/2021,"10,930",
SURFACE TRANSPORT CORP,TELENT TECHNOLOGY SERVICES LTD,Traffic Signals,1002\5109886741,24/02/2021,"10,922",
RAIL FOR LONDON LIMITED,LENDLEASE JACOBS JOINT VENTURE,Civil Engineering Construction Works,1020\5109882315,03/03/2021,"10,921",
TFL CORPORATE,CORPORATE DOCUMENT SERVICES LTD,Staff Welfare Benefits,1001\5109892434,01/03/2021,"10,868",
LONDON UNDERGROUND LTD,PRUFTECHNIK LTD,Escalators,1005\5109894553,02/03/2021,"10,862",
TFL CORPORATE,LENDLEASE JACOBS JOINT VENTURE,Management & Support Consultancy,1001\5109882352,03/03/2021,"10,850",
LUL NOMINEE SSL LIMITED,ESSPEE FABRICATIONS LTD,Fleet,1031\5109889357,18/02/2021,"10,825",
TRANSPORT TRADING LTD,FRANKHAM CONSULTANCY GROUP LTD,Building Maintenance & Repairs,1004\5109890415,23/02/2021,"10,811",
LONDON UNDERGROUND LTD,NETWORK RAIL,National Rail Long Term Charges,1005\5109877951,17/02/2021,"10,746",
LONDON UNDERGROUND LTD,DISAB UK LTD,Fleet,1005\5109885104,12/02/2021,"10,730",
LUL NOMINEE SSL LIMITED,CPC PROJECT SERVICES LLP,Civil Engineering Construction Works,1031\5109869787,11/02/2021,"10,723",
LONDON UNDERGROUND LTD,MORSON HUMAN RESOURCES LTD,Agency Staff,1005\5109876175,22/02/2021,"10,712",
LONDON UNDERGROUND LTD,QHI RAIL LTD,Track General Maintenance,1005\5109877952,18/02/2021,"10,710",
LONDON UNDERGROUND LTD,CLESHAR CONTRACT SERVICES LTD,Track General Maintenance,1005\5109881758,01/03/2021,"10,695",
LONDON UNDERGROUND LTD,TIFLEX LTD,Track General Maintenance,1005\5109885274,01/03/2021,"10,654",
SURFACE TRANSPORT CORP,TELENT TECHNOLOGY SERVICES LTD,Traffic Signals,1002\5109888373,24/02/2021,"10,604",
DOCKLANDS LIGHT RAILWAY,BCM  CONSTRUCTION LIMITED,Civil Engineering Construction Works,1012\5109888846,01/03/2021,"10,555",
LONDON BUS SERVICES LTD,TRUEFORM ENGINEERING LTD,Purchase of Bus Shelters,1006\5109893980,01/03/2021,"10,538",
LUL NOMINEE SSL LIMITED,1STINRAIL LIMITED,Track General Maintenance,1031\5109890074,24/02/2021,"10,533",
TFL CORPORATE,NUFFIELD HEALTH,Management & Support Consultancy,1001\5109894588,02/03/2021,"10,519",
TFL CORPORATE,RIPPLE ROCK LTD.,Computer Software,1001\5109896353,05/03/2021,"10,519",
LONDON UNDERGROUND LTD,WILLIAM COOK RAIL LTD,Fleet,1005\5109877682,23/02/2021,"10,516",
TFL CORPORATE,WRAGGE & CO,Legal Fees,1001\5109891907,23/02/2021,"10,503",
TFL CORPORATE,XANTA LIMITED,Management & Support Consultancy,1001\5109885500,15/02/2021,"10,500",
LUL NOMINEE BCV LIMITED,TIFLEX LTD,Maintenance Materials,1033\5109879550,24/02/2021,"10,495",
LONDON UNDERGROUND LTD,MORSON HUMAN RESOURCES LTD,Agency Staff,1005\5109872745,15/02/2021,"10,474",
LONDON UNDERGROUND LTD,MORSON HUMAN RESOURCES LTD,Agency Staff,1005\5109876354,22/02/2021,"10,474",
LUL NOMINEE BCV LIMITED,PRV ENGINEERING LTD,Track General Maintenance,1033\5109879371,22/02/2021,"10,452",
SURFACE TRANSPORT CORP,FRANKHAM CONSULTANCY GROUP LTD,Professional Engineering Services,1002\5109877294,24/02/2021,"10,450",
TFL CORPORATE,MEDIAEDGE,Radio TV Press Poster Cinema Airtime And Space,1001\5109877003,09/02/2021,"10,402",
SURFACE TRANSPORT CORP,SIEMENS,Traffic Signals,1002\5109878116,10/02/2021,"10,400",
SURFACE TRANSPORT CORP,TELENT TECHNOLOGY SERVICES LTD,Traffic Signals,1002\5109887185,24/02/2021,"10,372",
LUL NOMINEE SSL LIMITED,ERIKS  EMS,Component Repairs Sub Contracted,1031\5109876945,22/02/2021,"10,334",
LUL NOMINEE SSL LIMITED,ERIKS  EMS,Component Repairs Sub Contracted,1031\5109876947,22/02/2021,"10,334",
TRANSPORT TRADING LTD,NOVACROFT DIRECT LTD,Ticket & Pass Production,1004\5109893097,01/03/2021,"10,300",
TFL CORPORATE,LONDON BOROUGH OF WALTHAM FOREST,Borough Services,1001\1900071743,08/02/2021,"10,256",
LONDON BUS SERVICES LTD,TRUEFORM ENGINEERING LTD,Building Maintenance & Repairs,1006\5109888944,17/02/2021,"10,251",
LUL NOMINEE BCV LIMITED,ACIERIES ET LAMINOIRS DE RIVES SAS,Track General Maintenance,1033\5109895629,02/03/2021,"10,248",
SURFACE TRANSPORT CORP,REDSPEED INTERNATIONAL  LTD,Maintenance of Plant & Equipment,1002\5109881673,24/02/2021,"10,226",
LONDON RIVER SERVICES LTD,BRIGGS MARINE CONTRACTORS LIMITED,Operator Costs,1007\5109864335,22/02/2021,"10,176",
LONDON UNDERGROUND LTD,KONE PLC,MR Construction Costs,1005\5109893763,01/03/2021,"10,167",
LONDON UNDERGROUND LTD,ATKINS LIMITED,Planning & Development Consultancy,1005\5109883287,03/03/2021,"10,150",
LONDON UNDERGROUND LTD,GBM SERVICES LTD,Operational Cleaning,1005\5109893631,04/03/2021,"10,134",
TFL CORPORATE,HAYS ACCOUNTANCY PERSONNEL,Agency Staff,1001\5109879995,01/03/2021,"10,101",
LUL NOMINEE SSL LIMITED,MCGINLEY SUPPORT SERVICES LTD,Civil Engineering Construction Works,1031\5109885136,10/02/2021,"10,100",
SURFACE TRANSPORT CORP,ATKINS LIMITED,Professional Engineering Services,1002\5109882184,03/03/2021,"10,027",
LONDON UNDERGROUND LTD,LYNCH I.E.I. LIMITED,Retentions Control Account > 1Year,1005\5109891979,24/02/2021,"10,025",
TFL CORPORATE,GLOBAL OUTDOOR MEDIA LIMITED,Production Artwork And Design For Marketing,1001\5109878891,22/02/2021,"10,000",
TFL CORPORATE,GLOBAL OUTDOOR MEDIA LIMITED,Production Artwork And Design For Marketing,1001\5109878893,22/02/2021,"10,000",
TFL CORPORATE,DISRUPTIVE HR,Management & Support Consultancy,1001\5109882386,09/02/2021,"10,000",
TFL CORPORATE,TRL LTD,Transport Planning Consultancy & Services,1001\5109883027,03/03/2021,"10,000",
LONDON UNDERGROUND LTD,ALLFORD HALL MONAGHAN MORRIS LTD,Planning & Development Consultancy,1005\5109884826,11/02/2021,"10,000",
LONDON BUS SERVICES LTD,EPR ARCHITECTS LTD,Other Professional Fees,1006\5109787605,23/02/2021,"10,000",
LONDON RIVER SERVICES LTD,SYKES MARINE HYDROMASTER LTD,Operator Costs,1007\5109868820,09/02/2021,"10,000",
RAIL FOR LONDON LIMITED,MOTT MACDONALD LIMITED,Professional Engineering Services,1020\5109873495,15/02/2021,"10,000",
RAIL FOR LONDON LIMITED,PCG ASSOCIATES LIMITED,Professional Engineering Services,1020\5109887288,17/02/2021,"10,000",
LUL NOMINEE SSL LIMITED,NCC SERVICES LIMITED,Electrical & Electronic Engineering,1031\5109887164,24/02/2021,"9,995",
LUL NOMINEE SSL LIMITED,CPC PROJECT SERVICES LLP,Civil Engineering Construction Works,1031\5109879423,11/02/2021,"9,990",
RAIL FOR LONDON LIMITED,HANNING & KAHL GMBH & CO KG,Management & Support Consultancy,1020\5109879628,26/02/2021,"9,981",
LONDON UNDERGROUND LTD,DUCTCLEAN (UK) LTD T/A DCUK FM,Track General Maintenance,1005\5109885424,11/02/2021,"9,978",
LONDON UNDERGROUND LTD,R S CLARE & CO LTD,Track General Maintenance,1005\5109893064,26/02/2021,"9,976",
LUL NOMINEE BCV LIMITED,R S CLARE & CO LTD,Track General Maintenance,1033\5109870936,10/02/2021,"9,976",
LONDON UNDERGROUND LTD,QUILL CONSTRUCTION LIMITED,Building Maintenance & Repairs,1005\5109882874,09/02/2021,"9,966",
LONDON UNDERGROUND LTD,ATKINS LIMITED,Planning & Development Consultancy,1005\5109884834,11/02/2021,"9,950",
TRANSPORT TRADING LTD,HARRIS INSTALLATIONS SERVICES LTD,Office Accommodation Moves,1004\5109888749,22/02/2021,"9,945",
TFL CORPORATE,MEDIAEDGE,Radio TV Press Poster Cinema Airtime And Space,1001\5109877000,09/02/2021,"9,942",
TFL CORPORATE,NATIONAL SCHOOLS PARTNERSHIP,Research & Study Fees,1001\5109889674,19/02/2021,"9,935",
LONDON UNDERGROUND LTD,BRYEN & LANGLEY LTD,MR Construction Costs,1005\5109878870,24/02/2021,"9,923",
LONDON UNDERGROUND LTD,MORSON HUMAN RESOURCES LTD,Agency Staff,1005\5109876371,22/02/2021,"9,893",
LUL NOMINEE SSL LIMITED,LENDLEASE JACOBS JOINT VENTURE,MR Construction Costs,1031\5109885984,15/02/2021,"9,892",
LONDON UNDERGROUND LTD,OAKLAND BUILDING SERVICES LTD,Building Maintenance & Repairs,1005\5109881636,09/02/2021,"9,856",
LONDON UNDERGROUND LTD,HARMILL SYSTEMS LTD,Equipment Repairs & Maintenance,1005\5109890140,26/02/2021,"9,850",
LONDON BUS SERVICES LTD,TRUEFORM ENGINEERING LTD,Building Maintenance & Repairs,1006\5109888949,17/02/2021,"9,845",
RAIL FOR LONDON LIMITED,ATKINS LIMITED,Professional Engineering Services,1020\5109873898,16/02/2021,"9,835",
LONDON UNDERGROUND LTD,SKANSKA CONTRUCTIONS UK LTD,Civil Engineering Construction Works,1005\5109892229,04/03/2021,"9,825",
TTL PROPERTIES LTD,COMMANDER BUILDING SERVICES LIMITED,Building Maintenance & Repairs,1040\5109870453,09/02/2021,"9,817",
LONDON UNDERGROUND LTD,MORSON HUMAN RESOURCES LTD,Agency Staff,1005\5109876192,22/02/2021,"9,795",
LONDON UNDERGROUND LTD,MORSON HUMAN RESOURCES LTD,Agency Staff,1005\5109876346,22/02/2021,"9,739",
TFL CORPORATE,COMPUTACENTER PLC,Software Maintenance,1001\5109881329,26/02/2021,"9,739",
SURFACE TRANSPORT CORP,EVERSHEDS,Legal Fees,1002\5109877638,22/02/2021,"9,696",
LONDON UNDERGROUND LTD,GEMINI RAIL SERVICES UK LTD,Equipment Repairs & Maintenance,1005\5109878581,24/02/2021,"9,694",
LONDON UNDERGROUND LTD,HMRC,Payroll Suspense,1005\1900216780,22/02/2021,"9,644",
SURFACE TRANSPORT CORP,EVERSHEDS,Legal Fees,1002\5109885680,11/02/2021,"9,628",
LONDON UNDERGROUND LTD,SCHINDLER LTD,Lift Maintenance,1005\5109874074,08/02/2021,"9,624",
LUL NOMINEE BCV LIMITED,PROGRESS RAIL SERVICES UK LTD,Track General Maintenance,1033\5109878147,17/02/2021,"9,600",
DOCKLANDS LIGHT RAILWAY,KEOLIS AMEY DOCKLANDS LIMITED,Civil Engineering Construction Works,1012\5109884465,10/02/2021,"9,550",
LUL NOMINEE SSL LIMITED,HOLBRO ENGINEERING LTD,Track General Maintenance,1031\5109883414,23/02/2021,"9,540",
LONDON BUS SERVICES LTD,C & W (U.K.) LLP,Planning & Development Consultancy,1006\5109893462,02/03/2021,"9,500",
LUL NOMINEE SSL LIMITED,ERIKS  EMS,Component Repairs Sub Contracted,1031\5109879099,24/02/2021,"9,496",
TFL CORPORATE,MORSON HUMAN RESOURCES LTD,Agency Staff,1001\5109872803,15/02/2021,"9,467",
RAIL FOR LONDON LIMITED,AEG POWER SOLUTIONS LTD,Professional Engineering Services,1020\5109781152,02/03/2021,"9,453",
LONDON UNDERGROUND LTD,SEMPERIT TECHNISCHE PRODUKTE.,Stock Purchase Price Variance,1005\5109843002,08/02/2021,"9,451",
TFL CORPORATE,ROAD SAFETY ANALYSIS LTD,Publications & Periodicals,1001\5109878873,15/02/2021,"9,450",
TRANSPORT TRADING LTD,BPA CORPORATE FACILITATION LTD,Manage IT Services,1004\5109889483,24/02/2021,"9,444",
TFL CORPORATE,CAPITA BUSINESS SERVICES LTD,Computer Hardware,1001\5109883300,03/03/2021,"9,411",
TFL CORPORATE,XANTA LIMITED,Management & Support Consultancy,1001\5109892842,26/02/2021,"9,405",
LONDON BUS SERVICES LTD,GUYS & ST THOMAS NHS TRUST,Radio Systems Equipment & Maintenance,1006\5109882898,11/02/2021,"9,391",
SURFACE TRANSPORT CORP,SITEXORBIS LIMITED,Software Maintenance,1002\5109886819,26/02/2021,"9,375",
TRANSPORT TRADING LTD,CAPITA BUSINESS SERVICES LTD,Computer Hardware,1004\5109877975,24/02/2021,"9,370",
LONDON UNDERGROUND LTD,CAPITA BUSINESS SERVICES LTD,Manage IT Services,1005\5109882965,10/02/2021,"9,370",
TFL CORPORATE,NETALOGUE PROCUREMENT LTD,Software Maintenance,1001\5109889731,23/02/2021,"9,350",
SURFACE TRANSPORT CORP,O2 UK LTD,Telephony Mobile,1002\1900067919,10/02/2021,"9,327",
LUL NOMINEE BCV LIMITED,CEMEX UK OPERATIONS LTD,Track General Maintenance,1033\5109886008,17/02/2021,"9,322",
TFL CORPORATE,CORPORATE DOCUMENT SERVICES LTD,Storage And Distribution Of Publicity Materials,1001\5109885223,15/02/2021,"9,317",
TTL PROPERTIES LTD,REALWORTH,Property Management Fees,1040\5109879294,24/02/2021,"9,300",
LONDON UNDERGROUND LTD,AIRWAVE SOLUTIONS LTD,Computer Hardware,1005\5109869957,10/02/2021,"9,258",
LUL NOMINEE BCV LIMITED,SHIELD BATTERIES LTD,Fleet,1033\5109889767,19/02/2021,"9,228",
LUL NOMINEE BCV LIMITED,SHIELD BATTERIES LTD,Fleet,1033\5109889776,19/02/2021,"9,228",
LUL NOMINEE BCV LIMITED,SHIELD BATTERIES LTD,Fleet,1033\5109893294,26/02/2021,"9,228",
LONDON UNDERGROUND LTD,MITIE SECURITY LTD / SENTINEL,Staff Training,1005\5109896068,03/03/2021,"9,223",
TFL CORPORATE,LANES GROUP PLC,Building Maintenance & Repairs,1001\5109885420,03/03/2021,"9,198",
SURFACE TRANSPORT CORP,GREENWICH FOUNDATION FOR ORNC,Contracted Services - Roads,1002\5109874015,17/02/2021,"9,180",
LONDON UNDERGROUND LTD,DISAB UK LTD,Fleet,1005\5109885089,12/02/2021,"9,169",
LUL NOMINEE SSL LIMITED,DAVID BROWN GEAR SYSTEMS LTD,Fleet,1031\5109885439,03/03/2021,"9,160",
RAIL FOR LONDON LIMITED,ARRIVA LONDON NORTH LTD,Rail Replacement Service Costs,1020\5109892361,24/02/2021,"9,160",
TFL CORPORATE,BOSENCE FARM COMMUNITY LTD,Staff Welfare Benefits,1001\5109886604,24/02/2021,"9,150",
LONDON UNDERGROUND LTD,THALES GROUND TRANSPORTATION SYSTEM,Signalling Systems,1005\5109875495,17/02/2021,"9,115",
LUL NOMINEE BCV LIMITED,ENPRO GROUP LIMITED,Maintenance Materials,1033\5109885443,16/02/2021,"9,114",
LT MUSEUM TRADING LTD, RETRO VINTAGE WHOLESALE,LTM Purchase of Gifts for Resale,1024\1900019713,03/03/2021,"9,112",
LONDON UNDERGROUND LTD,PORTLAND PR LIMITED,Planning & Development Consultancy,1005\5109890489,24/02/2021,"9,090",
LUL NOMINEE BCV LIMITED,BRECKNELL WILLIS & CO LTD,Fleet,1033\5109877058,22/02/2021,"9,072",
LONDON UNDERGROUND LTD,NETWORK RAIL,National Rail Long Term Charges,1005\5109877927,17/02/2021,"9,069",
LONDON UNDERGROUND LTD,NETWORK RAIL,National Rail Long Term Charges,1005\5109877938,17/02/2021,"9,069",
LONDON UNDERGROUND LTD,NETWORK RAIL,National Rail Long Term Charges,1005\5109877940,17/02/2021,"9,069",
LONDON TRANSPORT MUSEUM,DJW,Production Artwork And Design For Marketing,1011\5109894470,03/03/2021,"9,060",
PUBLIC CARRIAGE OFFICE,NSL LIMITED,PCO Outsourced Services,1003\5109886656,15/02/2021,"9,046",
TFL CORPORATE,TRUEFORM ENGINEERING LTD,Non Permanent Signage And Way Finding,1001\5109893729,01/03/2021,"9,045",
LUL NOMINEE SSL LIMITED,EMERSON NETWORK POWER LTD,Plant & Equipment Purchases,1031\5109879731,24/02/2021,"9,034",
LUL NOMINEE SSL LIMITED,EMERSON NETWORK POWER LTD,Plant & Equipment Purchases,1031\5109880782,25/02/2021,"9,034",
TFL CORPORATE,BONSAI TECHNICAL SERVICES LIMITED,IT Consultancy,1001\5109892379,26/02/2021,"9,015",
RAIL FOR LONDON LIMITED,METROLINE TRAVEL LTD,Rail Replacement Service Costs,1020\5109845471,22/02/2021,"9,014",
LONDON UNDERGROUND LTD,CLESHAR CONTRACT SERVICES LTD,Track General Maintenance,1005\5109896526,03/03/2021,"9,014",
TFL CORPORATE,CIRIA,Publications & Periodicals,1001\5109886256,24/02/2021,"9,000",
LONDON BUS SERVICES LTD,INSIGHT EXECUTIVE GROUP LIMITED,Management & Support Consultancy,1006\5109892645,01/03/2021,"9,000",
LONDON RIVER SERVICES LTD,ORBIS MARITIME LTD,Operator Costs,1007\5109882755,10/02/2021,"8,975",
LONDON UNDERGROUND LTD,EVERSHEDS,Legal Fees,1005\5109885650,11/02/2021,"8,968",
LUL NOMINEE SSL LIMITED,EMERSON NETWORK POWER LTD,Plant & Equipment Purchases,1031\5109870988,10/02/2021,"8,952",
LUL NOMINEE SSL LIMITED,EMERSON NETWORK POWER LTD,Plant & Equipment Purchases,1031\5109876867,22/02/2021,"8,952",
TRANSPORT TRADING LTD,HARRIS INSTALLATIONS SERVICES LTD,Office Accommodation Moves,1004\5109881358,08/02/2021,"8,947",
LONDON UNDERGROUND LTD,ENGIE SERVICES LTD,Fire and Safety Equipment,1005\5109858243,01/03/2021,"8,945",
LONDON UNDERGROUND LTD,HARMILL SYSTEMS LTD,Equipment Repairs & Maintenance,1005\5109890137,26/02/2021,"8,910",
LUL NOMINEE BCV LIMITED,WABTEC RAIL LIMITED,Stock Issues - Repairables,1033\5109879079,24/02/2021,"8,870",
LONDON UNDERGROUND LTD,MITIE FM LIMITED,Security Services (Guards),1005\5109878335,15/02/2021,"8,851",
TFL CORPORATE,MORSON PROJECTS LIMITED,Management & Support Consultancy,1001\5109885264,15/02/2021,"8,850",
LUL NOMINEE BCV LIMITED,SANDBERG LLP,MR Construction Costs,1033\5109893676,03/03/2021,"8,840",
TFL CORPORATE,RIPPLE ROCK LTD.,Computer Software,1001\5109896305,05/03/2021,"8,834",
LONDON UNDERGROUND LTD,ENGIE SERVICES LTD,COVID 19 planning,1005\5109869835,08/02/2021,"8,834",
TFL CORPORATE,AON HEWITT LTD,Management & Support Consultancy,1001\5109888719,17/02/2021,"8,825",
RFL (IINFRASTRUCTURE) LTD,INSPIRE STRUCTURES LTD,Civil Engineering Construction Works,1025\5109886062,16/02/2021,"8,814",
LONDON UNDERGROUND LTD,RS COMPONENTS LTD,Maintenance Materials,1005\5109864369,16/02/2021,"8,805",
LONDON UNDERGROUND LTD,QHI RAIL LTD,Track General Maintenance,1005\5109877956,26/02/2021,"8,787",
SURFACE TRANSPORT CORP,TELENT TECHNOLOGY SERVICES LTD,Traffic Signals,1002\5109883338,10/02/2021,"8,782",
LONDON UNDERGROUND LTD,THALES GROUND TRANSPORTATION SYSTEM,Signalling Systems,1005\5109877321,17/02/2021,"8,776",
TFL CORPORATE,SPECIALIST COMPUTER CENTRES LTD,Software Maintenance,1001\5109835568,26/02/2021,"8,760",
TFL CORPORATE,FUSION PEOPLE LIMITED,Agency Staff,1001\5109891739,26/02/2021,"8,755",
TFL CORPORATE,AECOM LTD,Management & Support Consultancy,1001\5109870438,10/02/2021,"8,748",
RAIL FOR LONDON LIMITED,METROLINE TRAVEL LTD,Rail Replacement Service Costs,1020\5109823903,22/02/2021,"8,740",
LONDON UNDERGROUND LTD,HCL TECHNOLOGIES UK LTD,Computer Software,1005\5109884821,12/02/2021,"8,723",
LONDON UNDERGROUND LTD,CLESHAR CONTRACT SERVICES LTD,Track General Maintenance,1005\5109874177,10/02/2021,"8,721",
TFL CORPORATE,WSP UK LTD,Customer Research And Counts,1001\5109878703,24/02/2021,"8,719",
LT MUSEUM TRADING LTD,MOSAIC FULFILMENT SOLUTIONS,LTM Warehousing & Packaging,1024\5109887312,22/02/2021,"8,703",
TFL CORPORATE,RACKSPACE LTD,Manage IT Services,1001\5109897556,05/03/2021,"8,694",
LONDON UNDERGROUND LTD,HAYLEY GROUP PLC,Uniforms,1005\5109883530,12/02/2021,"8,631",
RAIL FOR LONDON LIMITED,NETWORK RAIL,Vehicle Operating Leases,1020\5109883449,03/03/2021,"8,591",
RAIL FOR LONDON LIMITED,NETWORK RAIL,Vehicle Operating Leases,1020\5109883451,03/03/2021,"8,591",
TFL CORPORATE,SPIRE HARPENDEN HOSPITAL,Medical Reports,1001\1900072270,23/02/2021,"8,582",
TFL CORPORATE,GUTTERIDGE HASKINS & DAVEY LIMITED,Professional Engineering Services,1001\5109870783,10/02/2021,"8,559",
LONDON RIVER SERVICES LTD,CAPITA BUSINESS SERVICES LTD,Maintenance of Telecommunications Equipment,1007\5109875522,17/02/2021,"8,550",
SURFACE TRANSPORT CORP,REDSPEED INTERNATIONAL  LTD,Maintenance of Plant & Equipment,1002\5109883504,03/03/2021,"8,540",
LONDON UNDERGROUND LTD,DELATIM LIMITED,MR Construction Costs,1005\5109882769,10/02/2021,"8,532",
LUL NOMINEE SSL LIMITED,HAYLEY GROUP PLC,Fleet,1031\5109878545,24/02/2021,"8,520",
RAIL FOR LONDON LIMITED,SPOOR-TECH LTD,Professional Engineering Services,1020\5109889002,18/02/2021,"8,509",
TRANSPORT TRADING LTD,CANARY WHARF MANAGEMENT LTD,Non Recyclable Waste Disposal/Refuse Collection,1004\5109870849,10/02/2021,"8,502",
LONDON UNDERGROUND LTD,KGJ PRICE LTD,Track General Maintenance,1005\5109897402,05/03/2021,"8,500",
TFL CORPORATE,BURGES SALMON LLP,Legal Fees,1001\5109885947,12/02/2021,"8,495",
LUL NOMINEE BCV LIMITED,MORGANITE ELECTRICAL CARBON LTD,Fleet,1033\5109882034,18/02/2021,"8,490",
TFL CORPORATE,SAVANTA GROUP LIMITED,Customer Research And Counts,1001\5109888868,18/02/2021,"8,475",
LONDON UNDERGROUND LTD,PULLMAN RAIL LTD,Fleet,1005\5109886145,02/03/2021,"8,475",
LONDON UNDERGROUND LTD,SKANSKA CONTRUCTIONS UK LTD,Civil Engineering Construction Works,1005\5109892225,04/03/2021,"8,472",
LUL NOMINEE SSL LIMITED,ERIKS  EMS,Component Repairs Sub Contracted,1031\5109874115,16/02/2021,"8,460",
LUL NOMINEE SSL LIMITED,ERIKS  EMS,Component Repairs Sub Contracted,1031\5109874958,17/02/2021,"8,460",
LONDON RIVER SERVICES LTD,MITIE CLEANING & ENVIRONMENTAL,Building Maintenance & Repairs,1007\5109879301,24/02/2021,"8,451",
LUL NOMINEE SSL LIMITED,EMERSON NETWORK POWER LTD,Plant & Equipment Purchases,1031\5109870985,10/02/2021,"8,445",
LUL NOMINEE SSL LIMITED,EMERSON NETWORK POWER LTD,Plant & Equipment Purchases,1031\5109881106,01/03/2021,"8,445",
LUL NOMINEE SSL LIMITED,EMERSON NETWORK POWER LTD,Plant & Equipment Purchases,1031\5109881141,01/03/2021,"8,445",
DOCKLANDS LIGHT RAILWAY,MOTT MACDONALD LIMITED,Professional Engineering Services,1012\5109870828,10/02/2021,"8,436",
LONDON BUS SERVICES LTD,INTEROUTE NETWORK LTD ,Contracted Services - Roads,1006\5109871940,10/02/2021,"8,409",
TFL CORPORATE,EDENRED (UK GROUP) LIMITED,Staff Awards & Commendations,1001\5109890842,23/02/2021,"8,400",
LONDON UNDERGROUND LTD,FUSION PEOPLE LIMITED,Agency Staff,1005\5109895333,05/03/2021,"8,388",
SURFACE TRANSPORT CORP,RINGWAY JACOBS LIMITED,Contracted Services - Roads,1002\5109895953,04/03/2021,"8,373",
LUL NOMINEE SSL LIMITED,FT TRANSFORMERS UK LTD,Equipment Repairs & Maintenance,1031\5109878867,17/02/2021,"8,372",
TFL CORPORATE,MORSON HUMAN RESOURCES LTD,Agency Staff,1001\5109880236,01/03/2021,"8,371",
LONDON UNDERGROUND LTD,CARDIAC SCIENCE HOLDINGS UK LTD,MR Construction Costs,1005\5109800806,04/03/2021,"8,360",
TFL CORPORATE,DEEPSTORE LIMITED,Document Archive & Storage,1001\5109896772,05/03/2021,"8,354",
LUL NOMINEE SSL LIMITED,ABB POWER GRIDS UK LIMITED,Traction Current,1031\5109894323,04/03/2021,"8,331",
SURFACE TRANSPORT CORP,CAPITA BUSINESS SERVICES LTD,Management & Support Consultancy,1002\5109875481,17/02/2021,"8,298",
LONDON UNDERGROUND LTD,HYDER CONSULTING (UK) LTD,Professional Engineering Services,1005\5109890259,22/02/2021,"8,298",
LUL NOMINEE SSL LIMITED,EMERSON NETWORK POWER LTD,Plant & Equipment Purchases,1031\5109880763,24/02/2021,"8,272",
LUL NOMINEE SSL LIMITED,EMERSON NETWORK POWER LTD,Plant & Equipment Purchases,1031\5109882129,03/03/2021,"8,272",
TFL CORPORATE,CIBSE SERVICES LTD,Staff Training,1001\5109889795,23/02/2021,"8,251",
LONDON UNDERGROUND LTD,DWG INFRACO LIMITED,Track General Maintenance,1005\5109892254,26/02/2021,"8,250",
LONDON BUS SERVICES LTD,TAIT EUROPE LTD,Radio Systems Equipment & Maintenance,1006\5109877466,18/02/2021,"8,245",
SURFACE TRANSPORT CORP,CELIA ROONEY,Legal Fees,1002\5109889765,19/02/2021,"8,196",
SURFACE TRANSPORT CORP,O2 UK LTD,Computer Hardware,1002\5109870443,10/02/2021,"8,184",
TRANSPORT TRADING LTD,NOVACROFT DIRECT LTD,Ticket & Pass Production,1004\5109889117,01/03/2021,"8,181",
SURFACE TRANSPORT CORP,REDSPEED INTERNATIONAL  LTD,Traffic Signals,1002\5109893343,03/03/2021,"8,177",
LUL NOMINEE SSL LIMITED,MITSUBISHI ELECTRIC EUROPE BV,Fleet,1031\5109877568,25/02/2021,"8,176",
LUL NOMINEE SSL LIMITED,A&A ELECTRICAL DISTRIBUTORS LTD,Plant & Equipment Purchases,1031\5109894584,05/03/2021,"8,165",
LONDON UNDERGROUND LTD,MORSON HUMAN RESOURCES LTD,Agency Staff,1005\5109876225,22/02/2021,"8,164",
TFL CORPORATE,HAYS ACCOUNTANCY PERSONNEL,Agency Staff,1001\5109869132,08/02/2021,"8,152",
TFL CORPORATE,HAYS ACCOUNTANCY PERSONNEL,Agency Staff,1001\5109872165,15/02/2021,"8,141",
TFL CORPORATE,HAYS ACCOUNTANCY PERSONNEL,Agency Staff,1001\5109875883,22/02/2021,"8,141",
LONDON UNDERGROUND LTD,COMPUTACENTER PLC,Computer Hardware,1005\5109882853,03/03/2021,"8,120",
LUL NOMINEE SSL LIMITED,THE TIMBER GROUP LTD,Fleet,1031\5109888986,22/02/2021,"8,100",
LUL NOMINEE SSL LIMITED,MCNEALY BROWN LTD,Civil Engineering Construction Works,1031\5109889091,03/03/2021,"8,097",
PUBLIC CARRIAGE OFFICE,MITIE FM LIMITED,Security Services (Guards),1003\5109878331,15/02/2021,"8,086",
LONDON UNDERGROUND LTD,CRANESERVE,Track General Maintenance,1005\5109882704,08/02/2021,"8,079",
LONDON UNDERGROUND LTD,KELWAY (UK),Maintenance Materials,1005\5109744878,19/02/2021,"8,075",
TFL CORPORATE,MATCHTECH GROUP PLC,Agency Staff,1001\5109869354,08/02/2021,"8,061",
TFL CORPORATE,EQUINIX (UK) LTD,Manage IT Services,1001\5109884849,12/02/2021,"8,043",
TFL CORPORATE,EQUINIX (UK) LTD,Manage IT Services,1001\5109884949,01/03/2021,"8,043",
LONDON UNDERGROUND LTD,DELOITTE,Planning & Development Consultancy,1005\5109884874,10/02/2021,"8,028",
LONDON UNDERGROUND LTD,SCHINDLER LTD,Escalators,1005\5109866796,17/02/2021,"8,027",
LONDON UNDERGROUND LTD,SCHINDLER LTD,Escalators,1005\5109893431,03/03/2021,"8,027",
LONDON UNDERGROUND LTD,MOTT MACDONALD LIMITED,Planning & Development Consultancy,1005\5109890282,25/02/2021,"8,022",
SURFACE TRANSPORT CORP,EDF ENERGY,Electricity,1002\5109889135,25/02/2021,"8,006",
TFL CORPORATE,GLOBAL OUTDOOR MEDIA LIMITED,Radio TV Press Poster Cinema Airtime And Space,1001\5109735913,02/03/2021,"8,000",
TFL CORPORATE,LONDON BRIDGE ASSOCIATES LTD,Management & Support Consultancy,1001\5109892905,01/03/2021,"8,000",
LONDON UNDERGROUND LTD,DELOITTE,Planning & Development Consultancy,1005\5109889742,19/02/2021,"8,000",
LUL NOMINEE BCV LIMITED,KPK (SHEET METAL) LTD,Maintenance Materials,1033\5109878129,24/02/2021,"7,992",
LONDON UNDERGROUND LTD,DAISY CORPORATE SERVICES TRADINGLTD,Telephony Fixed,1005\5109871859,10/02/2021,"7,990",
LUL NOMINEE SSL LIMITED,ERIKS  EMS,Fleet,1031\5109890873,26/02/2021,"7,987",
LUL NOMINEE SSL LIMITED,ERIKS  EMS,Component Repairs Sub Contracted,1031\5109878263,24/02/2021,"7,973",
TRANSPORT TRADING LTD,QUOD LTD,Other Professional Fees,1004\5109888485,17/02/2021,"7,965",
SURFACE TRANSPORT CORP,REDSPEED INTERNATIONAL  LTD,Traffic Signals,1002\5109883509,12/02/2021,"7,960",
LONDON UNDERGROUND LTD,MORSON HUMAN RESOURCES LTD,Agency Staff,1005\5109876309,22/02/2021,"7,951",
LONDON UNDERGROUND LTD,INSTANT,Civil Engineering Construction Works,1005\5109882705,11/02/2021,"7,926",
TRANSPORT TRADING LTD,QUAY OFFICE FURNISHERS LTD,Building Maintenance & Repairs,1004\5109889737,23/02/2021,"7,915",
TFL CORPORATE,INSIGHT EXECUTIVE GROUP LIMITED,Management & Support Consultancy,1001\5109868153,10/02/2021,"7,909",
LONDON TRANSPORT MUSEUM,VINCI CONSTRUCTION UK LTD,Building Maintenance & Repairs,1011\5109888314,17/02/2021,"7,906",
LONDON UNDERGROUND LTD,KALLIDUS LIMITED,Computer Software,1005\5109873337,18/02/2021,"7,900",
LT MUSEUM TRADING LTD,YARTO EUROPE LIMITED,LTM Purchase of Clothing & Accessories - Adults,1024\1900019651,09/02/2021,"7,884",
LONDON UNDERGROUND LTD,VIRKONNEN CRITICAL SYSTEMS,Professional Engineering Services,1005\5109883492,03/03/2021,"7,881",
LUL NOMINEE SSL LIMITED,SCHUNK CARBON TECHNOLOGY LIMITED,Stock Issues - Repairables,1031\5109897340,05/03/2021,"7,876",
LONDON BUS SERVICES LTD,CASTLE WATER LIMITED,Water,1006\5109862982,15/02/2021,"7,861",
TFL CORPORATE,ENGINE TRANSFORMATION LIMITED,Staff Medical Insurance & Treatment,1001\5109883513,26/02/2021,"7,850",
LUL NOMINEE SSL LIMITED,1STINRAIL LIMITED,Track General Maintenance,1031\5109890080,24/02/2021,"7,843",
LONDON UNDERGROUND LTD,RDG CONSULTANT ENGINEERING,Building Maintenance & Repairs,1005\5109889712,23/02/2021,"7,840",
RAIL FOR LONDON LIMITED,TURNER & TOWNSEND LLP,Management & Support Consultancy,1020\5109879582,24/02/2021,"7,839",
TFL CORPORATE,MORSON HUMAN RESOURCES LTD,Agency Staff,1001\5109872706,15/02/2021,"7,820",
LONDON UNDERGROUND LTD,THE TREVOR PATRICK PARTNERSHIP,Building Maintenance & Repairs,1005\5109879508,08/02/2021,"7,818",
LONDON TRANSPORT MUSEUM,VINCI CONSTRUCTION UK LTD,Building Maintenance & Repairs,1011\5109892242,23/02/2021,"7,809",
SURFACE TRANSPORT CORP,REDSPEED INTERNATIONAL  LTD,Traffic Signals,1002\5109878624,08/02/2021,"7,789",
TFL CORPORATE,OTM (UK) LTD,Production Artwork And Design For Marketing,1001\5109892214,05/03/2021,"7,775",
RAIL FOR LONDON LIMITED,STS STORAGE SYSTEMS LTD,Plant & Equipment Purchases,1020\5109893137,02/03/2021,"7,775",
LONDON UNDERGROUND LTD,ASHURST LLP,Legal Fees,1005\5109893086,05/03/2021,"7,759",
TRANSPORT TRADING LTD,JOURNEYCALL LTD,Ticket & Pass Production,1004\5109890166,04/03/2021,"7,755",
LONDON BUS SERVICES LTD,TRUEFORM ENGINEERING LTD,Building Maintenance & Repairs,1006\5109890450,22/02/2021,"7,742",
SURFACE TRANSPORT CORP,SIEMENS,Cameras,1002\5109878679,23/02/2021,"7,682",
LUL NOMINEE BCV LIMITED,VOITH TURBO LTD,Stock Issues - Repairables,1033\5109877729,23/02/2021,"7,673",
LUL NOMINEE BCV LIMITED,TRELLEBORG INDUSTRIAL AVS,Maintenance Materials,1033\5109885630,02/03/2021,"7,665",
SURFACE TRANSPORT CORP,MVA CONSULTANCY GROUP,Transport Planning Consultancy & Services,1002\5109879175,19/02/2021,"7,660",
TFL CORPORATE,EDENRED (UK GROUP) LIMITED,Staff Awards & Commendations,1001\5109890843,23/02/2021,"7,650",
TFL CORPORATE,INTERFLEET TECHNOLOGY LIMITED,Management & Support Consultancy,1001\5109879111,24/02/2021,"7,648",
LONDON UNDERGROUND LTD,MORSON HUMAN RESOURCES LTD,Agency Staff,1005\5109872724,15/02/2021,"7,644",
LONDON UNDERGROUND LTD,MORSON HUMAN RESOURCES LTD,Agency Staff,1005\5109872818,15/02/2021,"7,644",
TFL CORPORATE,COMPUTACENTER PLC,Software Maintenance,1001\5109881649,26/02/2021,"7,620",
SURFACE TRANSPORT CORP,TELENT TECHNOLOGY SERVICES LTD,Traffic Signals,1002\5109886736,24/02/2021,"7,619",
TFL CORPORATE,PARSEQ LIMITED,Recruitment Agency Fees,1001\5109840963,08/02/2021,"7,617",
TFL CORPORATE,PARSEQ LIMITED,Recruitment Agency Fees,1001\5109857153,08/02/2021,"7,617",
TFL CORPORATE,PARSEQ LIMITED,Recruitment Agency Fees,1001\5109867646,08/02/2021,"7,617",
TFL CORPORATE,PARSEQ LIMITED,Recruitment Agency Fees,1001\5109882725,01/03/2021,"7,617",
LONDON UNDERGROUND LTD,PULLMAN RAIL LTD,Fleet,1005\5109886186,05/03/2021,"7,605",
RAIL FOR LONDON LIMITED,O2 UK LTD,Cash Handling & Processing,1020\5109870450,10/02/2021,"7,604",
LUL NOMINEE SSL LIMITED,ABB POWER GRIDS UK LIMITED,Traction Current,1031\5109885481,11/02/2021,"7,573",
LONDON UNDERGROUND LTD,CAPITA BUSINESS SERVICES LTD,IT Consultancy,1005\5109877973,24/02/2021,"7,557",
TFL CORPORATE,EQUINIX (UK) LTD,Manage IT Services,1001\5109885263,11/02/2021,"7,550",
LONDON UNDERGROUND LTD,MORSON HUMAN RESOURCES LTD,Agency Staff,1005\5109876316,22/02/2021,"7,538",
RAIL FOR LONDON LIMITED,LANES GROUP PLC,Professional Engineering Services,1020\5109876740,17/02/2021,"7,523",
TTL PROPERTIES LTD,MOLIOR LONDON LTD,Planning & Development Consultancy,1040\5109896318,03/03/2021,"7,500",
TFL CORPORATE,TESLA TECHNICAL TRAINING LTD,Staff Training,1001\5109884501,12/02/2021,"7,480",
SURFACE TRANSPORT CORP,REDSPEED INTERNATIONAL  LTD,Traffic Signals,1002\5109893271,03/03/2021,"7,478",
SURFACE TRANSPORT CORP,REDSPEED INTERNATIONAL  LTD,Traffic Signals,1002\5109893276,03/03/2021,"7,478",
SURFACE TRANSPORT CORP,REDSPEED INTERNATIONAL  LTD,Maintenance of Plant & Equipment,1002\5109877913,23/02/2021,"7,478",
SURFACE TRANSPORT CORP,REDSPEED INTERNATIONAL  LTD,Maintenance of Plant & Equipment,1002\5109881675,24/02/2021,"7,478",
TFL CORPORATE,TELENT TECHNOLOGY SERVICES LTD,Maintenance of Plant & Equipment,1001\5109879452,24/02/2021,"7,475",
LUL NOMINEE SSL LIMITED,LANES GROUP PLC,Building Maintenance & Repairs,1031\5109855865,18/02/2021,"7,468",
LUL NOMINEE SSL LIMITED,LANES GROUP PLC,Building Maintenance & Repairs,1031\5109869831,11/02/2021,"7,468",
TFL CORPORATE,DAISY CORPORATE SERVICES TRADINGLTD,Maintenance of Telecommunications Equipment,1001\5109879093,24/02/2021,"7,460",
RAIL FOR LONDON LIMITED,BOMBARDIER TRANSPORT UK,Vehicle Repairs & Maintenance,1020\5109888614,17/02/2021,"7,460",
LUL NOMINEE BCV LIMITED,MEDIAEDGE,Radio TV Press Poster Cinema Airtime And Space,1033\5109888765,02/03/2021,"7,445",
LUL NOMINEE SSL LIMITED,MITSUBISHI ELECTRIC EUROPE BV,Fleet,1031\5109877565,25/02/2021,"7,440",
TFL CORPORATE,AECOM LTD,Management & Support Consultancy,1001\5109887112,03/03/2021,"7,439",
LONDON UNDERGROUND LTD,BYWATERS (LEYTON) LIMITED,Non Recyclable Waste Disposal/Refuse Collection,1005\5109879480,24/02/2021,"7,429",
LONDON UNDERGROUND LTD,Z-TECH CONTROL SYSTEMS LTD,Electrical Equipment Maintenance,1005\5109893617,03/03/2021,"7,427",
TRANSPORT TRADING LTD,QUOD LTD,Planning & Development Consultancy,1004\5109892635,01/03/2021,"7,425",
LONDON UNDERGROUND LTD,C E F,Electrical Equipment Maintenance,1005\5109882388,26/02/2021,"7,424",
LONDON UNDERGROUND LTD,MORSON HUMAN RESOURCES LTD,Agency Staff,1005\5109872764,15/02/2021,"7,421",
SURFACE TRANSPORT CORP,SIEMENS,Traffic Signals,1002\5109878088,10/02/2021,"7,407",
RAIL FOR LONDON LIMITED,LOCKEN,Professional Engineering Services,1020\5109893116,02/03/2021,"7,401",
DOCKLANDS LIGHT RAILWAY,TELENT TECHNOLOGY SERVICES LTD,Civil Engineering Construction Works,1012\5109885949,12/02/2021,"7,398",
TFL CORPORATE,CRABTREE PROJECTS LTD,Management & Support Consultancy,1001\5109882946,10/02/2021,"7,390",
TFL CORPORATE,CRABTREE PROJECTS LTD,Management & Support Consultancy,1001\5109890428,25/02/2021,"7,390",
LONDON BUS SERVICES LTD,MDV MENTZ DATENVERARBEITUNG GMBH,Software Maintenance,1006\5109889323,18/02/2021,"7,386",
LONDON UNDERGROUND LTD,TELENT TECHNOLOGY SERVICES LTD,Cameras,1005\5109862038,26/02/2021,"7,378",
LONDON UNDERGROUND LTD,PULLMAN RAIL LTD,Fleet,1005\5109886175,02/03/2021,"7,369",
LONDON UNDERGROUND LTD,DYER & BUTLER LTD,Civil Engineering Construction Works,1005\5109889570,04/03/2021,"7,339",
LONDON UNDERGROUND LTD,DYER & BUTLER LTD,Civil Engineering Construction Works,1005\5109889573,04/03/2021,"7,333",
RAIL FOR LONDON LIMITED,NETWORK RAIL,National Rail Contribution,1020\5109858309,23/02/2021,"7,316",
TRANSPORT TRADING LTD,ASPIRE,Planning & Development Consultancy,1004\5109888654,17/02/2021,"7,315",
DOCKLANDS LIGHT RAILWAY,MACE MACRO LTD,Professional Engineering Services,1012\5109881582,15/02/2021,"7,295",
LONDON UNDERGROUND LTD,FUSION PEOPLE LIMITED,Agency Staff,1005\5109895473,05/03/2021,"7,282",
TFL CORPORATE,MEDIAEDGE,Radio TV Press Poster Cinema Airtime And Space,1001\5109886087,25/02/2021,"7,246",
LT MUSEUM TRADING LTD,MOSAIC FULFILMENT SOLUTIONS,Postage,1024\5109887313,22/02/2021,"7,224",
TFL CORPORATE,CORPORATE DOCUMENT SERVICES LTD,Printing For Customer Info Materials,1001\5109885216,15/02/2021,"7,222",
LONDON UNDERGROUND LTD,MORSON HUMAN RESOURCES LTD,Agency Staff,1005\5109872730,15/02/2021,"7,220",
RAIL FOR LONDON LIMITED,LEND LEASE CONSULTING (EMEA) LTD,Professional Engineering Services,1020\5109886126,16/02/2021,"7,220",
LONDON UNDERGROUND LTD,NICOL & ANDREW LTD,Equipment Repairs & Maintenance,1005\5109878865,10/02/2021,"7,211",
LONDON UNDERGROUND LTD,KELLY INTEGRATED TRANS SERV LTD,Signalling Systems,1005\5109893931,05/03/2021,"7,199",
RAIL FOR LONDON LIMITED,COMMEND UK LTD,Signalling Systems,1020\5109878771,08/02/2021,"7,198",
RAIL FOR LONDON LIMITED,AECOM LTD,Professional Engineering Services,1020\5109883454,24/02/2021,"7,181",
TRANSPORT TRADING LTD,COMPUTACENTER PLC,Computer Hardware,1004\5109874979,17/02/2021,"7,167",
TFL CORPORATE,MEDIAEDGE,Radio TV Press Poster Cinema Airtime And Space,1001\5109877005,10/02/2021,"7,147",
LONDON UNDERGROUND LTD,SKANSKA CONTRUCTIONS UK LTD,Civil Engineering Construction Works,1005\5109892211,04/03/2021,"7,145",
DOCKLANDS LIGHT RAILWAY,EDF ENERGY,Electricity,1012\5109889116,04/03/2021,"7,143",
TFL CORPORATE,HEDSON RAIL LTD,Management & Support Consultancy,1001\5109869844,08/02/2021,"7,140",
TFL CORPORATE,DIGITAL REALTY (UK) LTD,Maintenance of Telecommunications Equipment,1001\5109871604,09/02/2021,"7,104",
LONDON UNDERGROUND LTD,ENGIE SERVICES LTD,Fire and Safety Equipment,1005\5109835591,01/03/2021,"7,103",
TFL CORPORATE,EC HARRIS UK LTD,Management & Support Consultancy,1001\5109873069,09/02/2021,"7,100",
TFL CORPORATE,ATKINS LIMITED,Planning & Development Consultancy,1001\5109879323,24/02/2021,"7,099",
LONDON UNDERGROUND LTD,CAPITA BUSINESS SERVICES LTD,IT Consultancy,1005\5109818181,05/03/2021,"7,070",
LONDON UNDERGROUND LTD,PULLMAN RAIL LTD,Fleet,1005\5109886180,16/02/2021,"7,050",
TFL CORPORATE,KAIROS COMMUNITY TRUST,Staff Welfare Benefits,1001\5109887150,22/02/2021,"7,050",
TFL CORPORATE,EDENRED (UK GROUP) LIMITED,Staff Awards & Commendations,1001\5109890846,23/02/2021,"7,050",
LONDON UNDERGROUND LTD,GROSVENOR CONTRACTS LEASING LTD,Vehicle Operating Leases,1005\5109885108,01/03/2021,"7,027",
LONDON UNDERGROUND LTD,GROSVENOR CONTRACTS LEASING LTD,Vehicle Operating Leases,1005\5109884876,01/03/2021,"7,027",
LONDON UNDERGROUND LTD,GROSVENOR CONTRACTS LEASING LTD,Vehicle Operating Leases,1005\5109884895,01/03/2021,"7,027",
LONDON UNDERGROUND LTD,GROSVENOR CONTRACTS LEASING LTD,Vehicle Operating Leases,1005\5109884904,01/03/2021,"7,027",
LONDON UNDERGROUND LTD,GROSVENOR CONTRACTS LEASING LTD,Vehicle Operating Leases,1005\5109884907,01/03/2021,"7,027",
LONDON UNDERGROUND LTD,GROSVENOR CONTRACTS LEASING LTD,Vehicle Operating Leases,1005\5109884909,01/03/2021,"7,027",
LONDON UNDERGROUND LTD,GROSVENOR CONTRACTS LEASING LTD,Vehicle Operating Leases,1005\5109884913,01/03/2021,"7,027",
LONDON UNDERGROUND LTD,GROSVENOR CONTRACTS LEASING LTD,Vehicle Operating Leases,1005\5109884916,01/03/2021,"7,027",
LONDON UNDERGROUND LTD,GROSVENOR CONTRACTS LEASING LTD,Vehicle Operating Leases,1005\5109884933,01/03/2021,"7,027",
LONDON UNDERGROUND LTD,GROSVENOR CONTRACTS LEASING LTD,Vehicle Operating Leases,1005\5109884935,01/03/2021,"7,027",
LONDON UNDERGROUND LTD,GROSVENOR CONTRACTS LEASING LTD,Vehicle Operating Leases,1005\5109884937,01/03/2021,"7,027",
LONDON UNDERGROUND LTD,GROSVENOR CONTRACTS LEASING LTD,Vehicle Operating Leases,1005\5109884940,01/03/2021,"7,027",
LONDON UNDERGROUND LTD,GROSVENOR CONTRACTS LEASING LTD,Vehicle Operating Leases,1005\5109884952,01/03/2021,"7,027",
LONDON UNDERGROUND LTD,GROSVENOR CONTRACTS LEASING LTD,Vehicle Operating Leases,1005\5109884956,01/03/2021,"7,027",
LONDON UNDERGROUND LTD,GROSVENOR CONTRACTS LEASING LTD,Vehicle Operating Leases,1005\5109884962,01/03/2021,"7,027",
LONDON UNDERGROUND LTD,GROSVENOR CONTRACTS LEASING LTD,Vehicle Operating Leases,1005\5109884969,01/03/2021,"7,027",
LONDON UNDERGROUND LTD,GROSVENOR CONTRACTS LEASING LTD,Vehicle Operating Leases,1005\5109884975,01/03/2021,"7,027",
LONDON UNDERGROUND LTD,GROSVENOR CONTRACTS LEASING LTD,Vehicle Operating Leases,1005\5109884978,01/03/2021,"7,027",
LONDON UNDERGROUND LTD,GROSVENOR CONTRACTS LEASING LTD,Vehicle Operating Leases,1005\5109885009,01/03/2021,"7,027",
LONDON UNDERGROUND LTD,GROSVENOR CONTRACTS LEASING LTD,Vehicle Operating Leases,1005\5109885014,01/03/2021,"7,027",
LONDON UNDERGROUND LTD,GROSVENOR CONTRACTS LEASING LTD,Vehicle Operating Leases,1005\5109885030,01/03/2021,"7,027",
LONDON UNDERGROUND LTD,GROSVENOR CONTRACTS LEASING LTD,Vehicle Operating Leases,1005\5109885106,01/03/2021,"7,027",
LONDON UNDERGROUND LTD,GROSVENOR CONTRACTS LEASING LTD,Vehicle Operating Leases,1005\5109885107,01/03/2021,"7,027",
LONDON UNDERGROUND LTD,W. CHRISTIE (INDUSTRIAL) LTD,Maintenance Materials,1005\5109881707,24/02/2021,"7,024",
LONDON UNDERGROUND LTD,MORSON HUMAN RESOURCES LTD,Agency Staff,1005\5109876360,22/02/2021,"7,009",
TFL CORPORATE,MORSON HUMAN RESOURCES LTD,Agency Staff,1001\5109876256,22/02/2021,"7,008",
LONDON UNDERGROUND LTD,FUSION PEOPLE LIMITED,Agency Staff,1005\5109895332,05/03/2021,"7,005",
TRANSPORT TRADING LTD,JUNCTION FOOD & WINE LTD,Transys Control - TTL,1004\1901675672,25/02/2021,"7,000",
TRANSPORT TRADING LTD,NEOPOST LTD,Postage,1004\5109888849,17/02/2021,"7,000",
TFL CORPORATE,HELEN JOHNSON,Marketing Exhibitions & Events,1001\1900072241,23/02/2021,"7,000",
TTL PROPERTIES LTD,SAVILLS COMMERCIAL LTD,Planning & Development Consultancy,1040\5109883510,26/02/2021,"7,000",
TFL CORPORATE,CLIFFORD CHANCE LLP,Legal Fees,1001\5109895569,03/03/2021,"7,000",
TFL CORPORATE,MORSON HUMAN RESOURCES LTD,Agency Staff,1001\5109880258,01/03/2021,"6,997",
LUL NOMINEE BCV LIMITED,NETWORK RAIL,MR Construction Costs,1033\5109799410,09/02/2021,"6,987",
LONDON UNDERGROUND LTD,PULLMAN RAIL LTD,Fleet,1005\5109886173,05/03/2021,"6,981",
LONDON UNDERGROUND LTD,ARLINGTON RAIL SERVICES LTD,Equipment Repairs & Maintenance,1005\5109811790,05/03/2021,"6,975",
LONDON UNDERGROUND LTD,ARLINGTON FLEET SERVICES LTD,Equipment Repairs & Maintenance,1005\5109885273,05/03/2021,"6,975",
LONDON UNDERGROUND LTD,PULLMAN RAIL LTD,Fleet,1005\5109886183,16/02/2021,"6,973",
TTL PROPERTIES LTD,GBM SERVICES LTD,Office Cleaning,1040\5109896640,04/03/2021,"6,964",
LONDON UNDERGROUND LTD,KLUBER LUBRICATION GB LTD,Maintenance Materials,1005\5109878800,24/02/2021,"6,963",
LONDON UNDERGROUND LTD,TRACKWORK RESOURCES LTD,Track General Maintenance,1005\5109882803,08/02/2021,"6,962",
LUL NOMINEE BCV LIMITED,KGJ PRICE LTD,Track General Maintenance,1033\5109890071,24/02/2021,"6,945",
LUL NOMINEE SSL LIMITED,KNORR-BREMSE RAIL LTD ,Fleet,1031\5109871752,10/02/2021,"6,945",
DIAL A RIDE,GBM SERVICES LTD,COVID 19 planning,1010\5109897884,05/03/2021,"6,940",
LONDON UNDERGROUND LTD,CURRIE & BROWN UK LIMITED,Building Maintenance & Repairs,1005\5109882383,24/02/2021,"6,938",
TFL CORPORATE,HAYS ACCOUNTANCY PERSONNEL,Agency Staff,1001\5109879665,01/03/2021,"6,930",
LUL NOMINEE SSL LIMITED,VOITH TURBO LTD,Electrical & Electronic Engineering,1031\5109878236,24/02/2021,"6,926",
TFL CORPORATE,MEDIAEDGE,Radio TV Press Poster Cinema Airtime And Space,1001\5109886085,25/02/2021,"6,916",
LUL NOMINEE SSL LIMITED,SCHUNK CARBON TECHNOLOGY LIMITED,Fleet,1031\5109886045,05/03/2021,"6,912",
TFL CORPORATE,SECBE,Planning & Development Consultancy,1001\5109881326,01/03/2021,"6,900",
LUL NOMINEE BCV LIMITED,KINGSBEECH LTD,Building Maintenance & Repairs,1033\5109883263,10/02/2021,"6,888",
LONDON UNDERGROUND LTD,XANTA LIMITED,Signalling Systems,1005\5109885193,12/02/2021,"6,880",
RAIL FOR LONDON LIMITED,CORONA ENERGY RETAIL 4 LTD,Gas,1020\5109894292,02/03/2021,"6,871",
LONDON UNDERGROUND LTD,ABBEY PRECISION ENGINEERING,Maintenance Materials,1005\5109835021,23/02/2021,"6,845",
LUL NOMINEE SSL LIMITED,MITSUBISHI ELECTRIC EUROPE BV,Fleet,1031\5109877564,25/02/2021,"6,844",
TFL CORPORATE,HAYS ACCOUNTANCY PERSONNEL,Agency Staff,1001\5109879740,01/03/2021,"6,836",
SURFACE TRANSPORT CORP,TELENT TECHNOLOGY SERVICES LTD,Traffic Signals,1002\5109886733,24/02/2021,"6,835",
LONDON UNDERGROUND LTD,CLESHAR CONTRACT SERVICES LTD,Track General Maintenance,1005\5109885184,10/02/2021,"6,829",
LONDON UNDERGROUND LTD,MORSON HUMAN RESOURCES LTD,Agency Staff,1005\5109872743,15/02/2021,"6,824",
LONDON UNDERGROUND LTD,ENGIE SERVICES LTD,Equipment Repairs & Maintenance,1005\5109869871,08/02/2021,"6,817",
DOCKLANDS LIGHT RAILWAY,THAMES CLIPPERS,Ticket & Pass Production,1012\1900005108,15/02/2021,"6,785",
TRANSPORT TRADING LTD,COLLIERS INTERNATIONAL,Property Management Fees,1004\5109881933,03/03/2021,"6,750",
TTL PROPERTIES LTD,REALSERVICE LIMITED,Property Management Fees,1040\5109882077,03/03/2021,"6,750",
TFL CORPORATE,IOIC,Management & Support Consultancy,1001\5109883485,10/02/2021,"6,750",
LONDON UNDERGROUND LTD,JONES LANG LASALLE,Planning & Development Consultancy,1005\5109884553,03/03/2021,"6,750",
LONDON UNDERGROUND LTD,GVA GRIMLEY LTD,Costs of Disp Inv Prop - TTL Planning,1005\5109888616,17/02/2021,"6,750",
RAIL FOR LONDON LIMITED,BOMBARDIER TRANSPORT UK,Fleet,1020\5109879438,23/02/2021,"6,736",
LONDON UNDERGROUND LTD,DEPOT RAIL LTD,Equipment Repairs & Maintenance,1005\5109892849,01/03/2021,"6,735",
RAIL FOR LONDON LIMITED,SIEMENS,Electrical Equipment Maintenance,1020\5109890380,22/02/2021,"6,720",
TRANSPORT TRADING LTD,ASPIRE,Planning & Development Consultancy,1004\5109896814,04/03/2021,"6,720",
LUL NOMINEE SSL LIMITED,KNORR-BREMSE RAIL LTD ,Fleet,1031\5109878947,24/02/2021,"6,719",
LONDON UNDERGROUND LTD,ALLSTAR BUSINESS SOLUTIONS,Vehicle Running Costs,1005\5109893394,01/03/2021,"6,706",
LONDON UNDERGROUND LTD,NETWORK RAIL,National Rail Long Term Charges,1005\5109877933,17/02/2021,"6,704",
LONDON UNDERGROUND LTD,EVENHEIGHTS LTD,Vehicle Operating Leases,1005\5109886806,22/02/2021,"6,700",
RAIL FOR LONDON LIMITED,VINCI CONSTRUCTION UK LTD,Building Maintenance & Repairs,1020\5109887322,18/02/2021,"6,683",
SURFACE TRANSPORT CORP,CAPITA BUSINESS SERVICES LTD,CCS Service Contract,1002\5109874114,16/02/2021,"6,679",
TFL CORPORATE,AON HEWITT LTD,Management & Support Consultancy,1001\5109849757,18/02/2021,"6,679",
TFL CORPORATE,GARDINER & THEOBALD LLP,Management & Support Consultancy,1001\5109877300,23/02/2021,"6,675",
DOCKLANDS LIGHT RAILWAY,THAMES CLIPPERS,Ticket & Pass Production,1012\1900005109,15/02/2021,"6,659",
LONDON UNDERGROUND LTD,GBM SERVICES LTD,Operational Cleaning,1005\5109893081,04/03/2021,"6,654",
LONDON UNDERGROUND LTD,4 RAIL SERVICES LTD,Building Maintenance & Repairs,1005\5109850346,11/02/2021,"6,650",
TTL PROPERTIES LTD,JNG CONSTRUCTION & ENGINEERING,Building Maintenance & Repairs,1040\5109888953,19/02/2021,"6,649",
RAIL FOR LONDON LIMITED,LIEBHERR-TRANSPORTATION SYSTEMS,Fleet,1020\5109882930,17/02/2021,"6,639",
SURFACE TRANSPORT CORP,METIS,Professional Engineering Services,1002\5109888569,22/02/2021,"6,638",
SURFACE TRANSPORT CORP,MEDIAEDGE,Production Artwork And Design For Marketing,1002\5109872986,17/02/2021,"6,637",
LUL NOMINEE SSL LIMITED,AEI CABLES LTD,Electrical & Electronic Engineering,1031\5109834078,26/02/2021,"6,631",
DOCKLANDS LIGHT RAILWAY,MOTT MACDONALD LIMITED,Professional Engineering Services,1012\5109881710,02/03/2021,"6,628",
LONDON UNDERGROUND LTD,MATISA (U.K.) LTD,Equipment Repairs & Maintenance,1005\5109874515,17/02/2021,"6,615",
TFL CORPORATE,HAYS ACCOUNTANCY PERSONNEL,Agency Staff,1001\5109869178,08/02/2021,"6,601",
LONDON UNDERGROUND LTD,OVE ARUP & PARTNERS LTD,Management & Support Consultancy,1005\5109878901,24/02/2021,"6,599",
RAIL FOR LONDON LIMITED,LINSINGER MASCHINENBAU GESELLSCHAFT,Equipment Repairs & Maintenance,1020\5109870379,12/02/2021,"6,594",
VICTORIA COACH STATN LTD,MITIE FM LIMITED,Security Services (Guards),1008\5109878332,15/02/2021,"6,594",
LUL NOMINEE BCV LIMITED,KGJ PRICE LTD,Track General Maintenance,1033\5109890073,24/02/2021,"6,592",
LONDON UNDERGROUND LTD,ALLSTAR BUSINESS SOLUTIONS,Vehicle Running Costs,1005\5109882903,09/02/2021,"6,588",
TFL CORPORATE,KELWAY (UK),Computer Hardware,1001\5109876932,22/02/2021,"6,588",
LUL NOMINEE BCV LIMITED,D & D RAIL LTD,MR Construction Costs,1033\5109886717,16/02/2021,"6,586",
LONDON BUS SERVICES LTD,NETWORK RAIL,Building Maintenance & Repairs,1006\5109874205,04/03/2021,"6,577",
LONDON UNDERGROUND LTD,HAYLEY GROUP PLC,Maintenance of Plant & Equipment,1005\5109870153,09/02/2021,"6,577",
TTL PROPERTIES LTD,MR D M VILLA-FERNANDEZ,Legal Fees,1040\1900000071,12/02/2021,"6,575",
TTL PROPERTIES LTD,MISS VILLA-FERNANDEZ,Legal Fees,1040\1900000072,12/02/2021,"6,575",
RAIL FOR LONDON LIMITED,LIEBHERR-TRANSPORTATION SYSTEMS,Fleet,1020\5109875355,19/02/2021,"6,575",
TFL CORPORATE,CHARITIES AID FOUNDATION,Management & Support Consultancy,1001\5109877217,17/02/2021,"6,564",
LONDON UNDERGROUND LTD,TIFLEX LTD,Track General Maintenance,1005\5109893649,03/03/2021,"6,553",
SURFACE TRANSPORT CORP,BT REPAYMENTS/OPENREACH,Planning & Development Consultancy,1002\5109878244,19/02/2021,"6,550",
SURFACE TRANSPORT CORP,REDSPEED INTERNATIONAL  LTD,Maintenance of Plant & Equipment,1002\5109871622,10/02/2021,"6,538",
TRANSPORT TRADING LTD,JNG CONSTRUCTION & ENGINEERING,Building Maintenance & Repairs,1004\5109895871,03/03/2021,"6,532",
RAIL FOR LONDON LIMITED,WABTEC RAIL LIMITED,Fleet,1020\5109873928,16/02/2021,"6,526",
LONDON UNDERGROUND LTD,MARACOM LIMITED,Building Maintenance & Repairs,1005\5109893327,01/03/2021,"6,519",
TRANSPORT TRADING LTD,WJB SERVICES LIMITED,Office Accommodation Moves,1004\5109896222,05/03/2021,"6,514",
SURFACE TRANSPORT CORP,STANTEC UK LIMITED,Contracted Services - Roads,1002\5109874530,17/02/2021,"6,514",
LONDON UNDERGROUND LTD,NISCAM LTD,Electrical Equipment Maintenance,1005\5109886508,15/02/2021,"6,510",
SURFACE TRANSPORT CORP,O2 UK LTD,Computer Hardware,1002\5109873188,11/02/2021,"6,510",
LUL NOMINEE SSL LIMITED,MORGANITE ELECTRICAL CARBON LTD,Fleet,1031\5109881049,01/03/2021,"6,510",
LONDON UNDERGROUND LTD,TRENITALIA C2C LTD,National Rail Long Term Charges,1005\5109881856,24/02/2021,"6,506",
LONDON UNDERGROUND LTD,LAVAZZA PROFESSIONAL UK LTD,Vending Machine Supplies & Rental,1005\1900216788,22/02/2021,"6,504",
TFL CORPORATE,VCCP GROUP LLP,Production Artwork And Design For Marketing,1001\5109883031,03/03/2021,"6,501",
TFL CORPORATE,EDENRED (UK GROUP) LIMITED,Staff Awards & Commendations,1001\5109895896,02/03/2021,"6,500",
TFL CORPORATE,YOUGOV LTD,Research For Marketing Campaigns And Activities,1001\5109881643,26/02/2021,"6,500",
TFL CORPORATE,C.J. GRAY LTD,Management & Support Consultancy,1001\5109881721,17/02/2021,"6,500",
RAIL FOR LONDON LIMITED,XANTA LIMITED,Management & Support Consultancy,1020\5109888728,19/02/2021,"6,500",
LONDON UNDERGROUND LTD,POWTIER CONTROLS LTD,Fleet,1005\5109877895,22/02/2021,"6,500",
LUL NOMINEE SSL LIMITED,GBM SERVICES LTD,Operational Cleaning,1031\5109896834,04/03/2021,"6,498",
LONDON UNDERGROUND LTD,CPC PROJECT SERVICES LLP,Civil Engineering Construction Works,1005\5109885951,15/02/2021,"6,489",
TFL CORPORATE,MATCHTECH GROUP PLC,Agency Staff,1001\5109876055,22/02/2021,"6,486",
SURFACE TRANSPORT CORP,CSTS LTD,Security Equipment,1002\5109878277,24/02/2021,"6,472",
SURFACE TRANSPORT CORP,ATKINS LIMITED,Contracted Services - Roads,1002\5109870402,24/02/2021,"6,467",
TRANSPORT TRADING LTD,O2 UK LTD,Telephony Mobile,1004\1901675458,10/02/2021,"6,455",
TFL CORPORATE,EDENRED (UK GROUP) LIMITED,Staff Awards & Commendations,1001\5109890847,23/02/2021,"6,450",
LONDON UNDERGROUND LTD,MORSON HUMAN RESOURCES LTD,Electrical Equipment Maintenance,1005\5109870937,10/02/2021,"6,449",
TRANSPORT TRADING LTD,QUAY OFFICE FURNISHERS LTD,Furniture & Equipment,1004\5109890385,24/02/2021,"6,448",
LONDON UNDERGROUND LTD,LAVAZZA PROFESSIONAL UK LTD,Vending Machine Supplies & Rental,1005\1900216663,03/03/2021,"6,445",
TFL CORPORATE,CORPORATE DOCUMENT SERVICES LTD,Printing For Customer Info Materials,1001\5109897046,04/03/2021,"6,443",
LONDON UNDERGROUND LTD,MORSON HUMAN RESOURCES LTD,Maintenance of Plant & Equipment,1005\5109877144,18/02/2021,"6,434",
LONDON UNDERGROUND LTD,THALES GRD TRANSPORTATION SYSTEMS,Computer Hardware,1005\5109871357,10/02/2021,"6,425",
LUL NOMINEE SSL LIMITED,CPC PROJECT SERVICES LLP,Civil Engineering Construction Works,1031\5109879436,11/02/2021,"6,418",
TFL CORPORATE,APOLLO VEHICLE SAFETY LIMITED,Transport Planning Consultancy & Services,1001\5109879380,25/02/2021,"6,400",
SURFACE TRANSPORT CORP,CELIA ROONEY,Legal Fees,1002\5109896371,03/03/2021,"6,360",
LUL NOMINEE BCV LIMITED,KGJ PRICE LTD,Track General Maintenance,1033\5109894367,03/03/2021,"6,360",
LONDON BUS SERVICES LTD,INTEROUTE NETWORK LTD ,Contracted Services - Roads,1006\5109873594,10/02/2021,"6,356",
LONDON UNDERGROUND LTD,ROBERT WALPOLE & PARTNERS,Track General Maintenance,1005\5109896517,05/03/2021,"6,321",
LONDON UNDERGROUND LTD,MOTT MACDONALD LIMITED,Planning & Development Consultancy,1005\5109736795,19/02/2021,"6,299",
LONDON UNDERGROUND LTD,MORSON HUMAN RESOURCES LTD,Agency Staff,1005\5109872773,15/02/2021,"6,276",
LONDON UNDERGROUND LTD,MORSON HUMAN RESOURCES LTD,Agency Staff,1005\5109872771,15/02/2021,"6,261",
LONDON UNDERGROUND LTD,PULLMAN RAIL LTD,Fleet,1005\5109886179,02/03/2021,"6,260",
LUL NOMINEE BCV LIMITED,WECS PRECISION LTD,Fleet,1033\5109885880,12/02/2021,"6,258",
LUL NOMINEE BCV LIMITED,WECS PRECISION LTD,Fleet,1033\5109896749,04/03/2021,"6,258",
TRANSPORT TRADING LTD,POST OFFICE LTD,Ticket & Pass Production,1004\5109881775,03/03/2021,"6,256",
TFL CORPORATE,EQUINIX (UK) LTD,Manage IT Services,1001\5109885228,01/03/2021,"6,253",
TFL CORPORATE,INSIGHT EXECUTIVE GROUP LIMITED,IT Consultancy,1001\5109896735,04/03/2021,"6,250",
TFL CORPORATE,BONSAI TECHNICAL SERVICES LIMITED,IT Consultancy,1001\5109892331,24/02/2021,"6,242",
TFL CORPORATE,MORSON HUMAN RESOURCES LTD,Agency Staff,1001\5109872755,15/02/2021,"6,221",
TFL CORPORATE,CEOX SERVICES LTD,Software Maintenance,1001\5109885994,26/02/2021,"6,220",
SURFACE TRANSPORT CORP,CEOX SERVICES LTD,Software Maintenance,1002\5109885995,26/02/2021,"6,220",
LONDON UNDERGROUND LTD,4 RAIL SERVICES LTD,Building Maintenance & Repairs,1005\5109890946,01/03/2021,"6,205",
LONDON BUS SERVICES LTD,TRAPEZE PTI LTD,Electrical & Electronic Engineering,1006\5109873393,12/02/2021,"6,199",
LONDON UNDERGROUND LTD,BRYEN & LANGLEY LTD,Building Maintenance & Repairs,1005\5109882937,03/03/2021,"6,190",
LUL NOMINEE SSL LIMITED,SKF (UK) LTD,Fleet,1031\5109892744,25/02/2021,"6,152",
LONDON TRANSPORT MUSEUM,CISION GROUP LTD,PR Cost Product Cost & PR Fees,1011\5109876890,09/02/2021,"6,150",
TRANSPORT TRADING LTD,TELENT TECHNOLOGY SERVICES LTD,Security Equipment,1004\5109883009,03/03/2021,"6,150",
LONDON UNDERGROUND LTD,ALLSTAR BUSINESS SOLUTIONS,Vehicle Running Costs,1005\5109890155,24/02/2021,"6,148",
LONDON UNDERGROUND LTD,PULLMAN RAIL LTD,Fleet,1005\5109886189,16/02/2021,"6,140",
LONDON UNDERGROUND LTD,MORSON HUMAN RESOURCES LTD,Agency Staff,1005\5109872781,15/02/2021,"6,131",
LONDON UNDERGROUND LTD,PULLMAN RAIL LTD,Fleet,1005\5109886177,02/03/2021,"6,126",
RFL (IINFRASTRUCTURE) LTD,EE LIMITED,Manage IT Services,1025\5109882697,01/03/2021,"6,124",
LONDON UNDERGROUND LTD,VOITH TURBO LTD,Fleet,1005\5109882962,03/03/2021,"6,106",
RAIL FOR LONDON LIMITED,ENGIE SERVICES LTD,Fire and Safety Equipment,1020\5109874559,17/02/2021,"6,106",
TFL CORPORATE,HAYS ACCOUNTANCY PERSONNEL,Agency Staff,1001\5109872531,15/02/2021,"6,105",
LONDON UNDERGROUND LTD,THALES GROUND TRANSPORTATION SYSTEM,Signalling Systems,1005\5109877327,17/02/2021,"6,103",
TRANSPORT TRADING LTD,POST OFFICE LTD,Ticket & Pass Production,1004\5109882293,03/03/2021,"6,100",
LONDON RIVER SERVICES LTD,HCL TECHNOLOGIES UK LTD,Computer Software,1007\5109878747,24/02/2021,"6,086",
LONDON RIVER SERVICES LTD,HCL TECHNOLOGIES UK LTD,Computer Software,1007\5109878748,24/02/2021,"6,086",
LUL NOMINEE SSL LIMITED,KNORR-BREMSE RAIL LTD ,Fleet,1031\5109870632,08/02/2021,"6,076",
LONDON RIVER SERVICES LTD,G&P MECHANICAL & STRUCTURAL ENG LTD,Management & Support Consultancy,1007\5109883017,02/03/2021,"6,072",
TFL CORPORATE,BONSAI TECHNICAL SERVICES LIMITED,Software Maintenance,1001\5109881212,08/02/2021,"6,071",
TFL CORPORATE,BONSAI TECHNICAL SERVICES LIMITED,Software Maintenance,1001\5109892349,26/02/2021,"6,071",
TRANSPORT TRADING LTD,WJB SERVICES LIMITED,Office Accommodation Moves,1004\5109896216,05/03/2021,"6,063",
LONDON BUS SERVICES LTD,EMINOX,Vehicle Repairs & Maintenance,1006\5109878834,24/02/2021,"6,061",
LONDON BUS SERVICES LTD,EMINOX,Vehicle Repairs & Maintenance,1006\5109878866,24/02/2021,"6,061",
LONDON BUS SERVICES LTD,EMINOX,Vehicle Repairs & Maintenance,1006\5109892657,01/03/2021,"6,061",
LONDON BUS SERVICES LTD,EMINOX,Vehicle Repairs & Maintenance,1006\5109892674,01/03/2021,"6,061",
LONDON BUS SERVICES LTD,EMINOX,Vehicle Repairs & Maintenance,1006\5109892680,01/03/2021,"6,061",
LONDON BUS SERVICES LTD,EMINOX,Vehicle Repairs & Maintenance,1006\5109892684,01/03/2021,"6,061",
LONDON BUS SERVICES LTD,EMINOX,Vehicle Repairs & Maintenance,1006\5109892688,01/03/2021,"6,061",
LONDON BUS SERVICES LTD,EMINOX,Vehicle Repairs & Maintenance,1006\5109892693,01/03/2021,"6,061",
LONDON BUS SERVICES LTD,EMINOX,Vehicle Repairs & Maintenance,1006\5109892696,01/03/2021,"6,061",
LONDON BUS SERVICES LTD,EMINOX,Vehicle Repairs & Maintenance,1006\5109892700,01/03/2021,"6,061",
TFL CORPORATE,PINDAR CREATIVE,Design & Production Of Maps & Timetable Publicity,1001\5109877635,23/02/2021,"6,060",
LUL NOMINEE SSL LIMITED,1STINRAIL LIMITED,Track General Maintenance,1031\5109890081,24/02/2021,"6,059",
LONDON UNDERGROUND LTD,MORSON HUMAN RESOURCES LTD,Agency Staff,1005\5109872741,15/02/2021,"6,045",
LUL NOMINEE SSL LIMITED,HEICO AEROSPACE CORPORATION,Fleet,1031\5109886549,15/02/2021,"6,040",
LUL NOMINEE BCV LIMITED,KPK (SHEET METAL) LTD,Maintenance Materials,1033\5109874914,17/02/2021,"6,035",
TRANSPORT TRADING LTD,NOVACROFT DIRECT LTD,Ticket & Pass Production,1004\5109885581,17/02/2021,"6,033",
LONDON BUS SERVICES LTD,TRAPEZE PTI LTD,Software Maintenance,1006\5109880955,18/02/2021,"6,032",
TRANSPORT TRADING LTD,HA MARKS LTD,Maintenance of Plant & Equipment,1004\5109882765,10/02/2021,"6,031",
LONDON UNDERGROUND LTD,MORSON HUMAN RESOURCES LTD,Agency Staff,1005\5109872784,15/02/2021,"6,031",
LONDON UNDERGROUND LTD,PULLMAN RAIL LTD,Fleet,1005\5109886168,05/03/2021,"6,029",
LONDON UNDERGROUND LTD,TELENT TECHNOLOGY SERVICES LTD,Equipment Repairs & Maintenance,1005\5109874092,23/02/2021,"6,023",
TFL CORPORATE,MORSON HUMAN RESOURCES LTD,Agency Staff,1001\5109869437,08/02/2021,"6,020",
LONDON UNDERGROUND LTD,NETWORK RAIL,National Rail Long Term Charges,1005\5109877935,17/02/2021,"6,016",
TFL CORPORATE,CRACKERGROUP LTD,Recruitment Advertising,1001\5109887188,16/02/2021,"6,000",
TFL CORPORATE,CRACKERGROUP LTD,Recruitment Advertising,1001\5109888933,17/02/2021,"6,000",
LONDON UNDERGROUND LTD,AKSWARD,Building Maintenance & Repairs,1005\5109878579,22/02/2021,"6,000",
LONDON UNDERGROUND LTD,HEIGHTSAFE SYSTEMS LTD,Building Maintenance & Repairs,1005\5109882379,08/02/2021,"6,000",
LONDON UNDERGROUND LTD,MOTT MACDONALD LIMITED,Property Management Fees,1005\5109881296,03/03/2021,"6,000",
SURFACE TRANSPORT CORP,J.K.TAXI RENTALS,Vehicle Repairs & Maintenance,1002\1900067713,08/02/2021,"6,000",
SURFACE TRANSPORT CORP,A MIAH,Vehicle Repairs & Maintenance,1002\1900067714,08/02/2021,"6,000",
SURFACE TRANSPORT CORP,ROSS FITCH,Vehicle Repairs & Maintenance,1002\1900067720,08/02/2021,"6,000",
SURFACE TRANSPORT CORP,MICHAEL J MALONEY,Vehicle Repairs & Maintenance,1002\1900067728,08/02/2021,"6,000",
SURFACE TRANSPORT CORP,A J HILL,Vehicle Repairs & Maintenance,1002\1900067733,08/02/2021,"6,000",
SURFACE TRANSPORT CORP,DANIEL F KALLMEIER,Vehicle Repairs & Maintenance,1002\1900067734,08/02/2021,"6,000",
SURFACE TRANSPORT CORP,AHMET FEHMI,Vehicle Repairs & Maintenance,1002\1900067737,08/02/2021,"6,000",
SURFACE TRANSPORT CORP,ABDULAZIZ SHIRRE,Vehicle Repairs & Maintenance,1002\1900067755,08/02/2021,"6,000",
SURFACE TRANSPORT CORP,RICHARD T MOUGHTON,Vehicle Repairs & Maintenance,1002\1900067756,08/02/2021,"6,000",
SURFACE TRANSPORT CORP,D.E.HEGARTY,Vehicle Repairs & Maintenance,1002\1900067758,08/02/2021,"6,000",
SURFACE TRANSPORT CORP,KENI LAUDAT,Vehicle Repairs & Maintenance,1002\1900067760,08/02/2021,"6,000",
SURFACE TRANSPORT CORP,G.ALLER,Vehicle Repairs & Maintenance,1002\1900067762,08/02/2021,"6,000",
SURFACE TRANSPORT CORP,R.L.TURNER,Vehicle Repairs & Maintenance,1002\1900067763,08/02/2021,"6,000",
SURFACE TRANSPORT CORP,TASH TAXI LTD,Vehicle Repairs & Maintenance,1002\1900067771,08/02/2021,"6,000",
SURFACE TRANSPORT CORP,G A WALDEN,Vehicle Repairs & Maintenance,1002\1900067778,08/02/2021,"6,000",
SURFACE TRANSPORT CORP,DZRL TAXIS LTD,Vehicle Repairs & Maintenance,1002\1900067785,08/02/2021,"6,000",
SURFACE TRANSPORT CORP,MISTER TAXI LTD,Vehicle Repairs & Maintenance,1002\1900067788,08/02/2021,"6,000",
SURFACE TRANSPORT CORP,ANDY GAYLE,Vehicle Repairs & Maintenance,1002\1900067803,08/02/2021,"6,000",
SURFACE TRANSPORT CORP,SAYEDUR RAHMAN,Vehicle Repairs & Maintenance,1002\1900067804,08/02/2021,"6,000",
SURFACE TRANSPORT CORP,M.TAYLOR,Vehicle Repairs & Maintenance,1002\1900067806,08/02/2021,"6,000",
SURFACE TRANSPORT CORP,KATSIKIDES,Vehicle Repairs & Maintenance,1002\1900067807,08/02/2021,"6,000",
SURFACE TRANSPORT CORP,R BENHAMAMA JRM TAXIS,Vehicle Repairs & Maintenance,1002\1900067831,10/02/2021,"6,000",
SURFACE TRANSPORT CORP,THOMAS C HITCHINS,Vehicle Repairs & Maintenance,1002\1900067834,10/02/2021,"6,000",
SURFACE TRANSPORT CORP,T.M.WILLETT,Vehicle Repairs & Maintenance,1002\1900067836,10/02/2021,"6,000",
SURFACE TRANSPORT CORP,CENTRAL CAB CO,Vehicle Repairs & Maintenance,1002\1900067837,10/02/2021,"6,000",
SURFACE TRANSPORT CORP,PAUL KENNETT,Vehicle Repairs & Maintenance,1002\1900067838,10/02/2021,"6,000",
SURFACE TRANSPORT CORP,THEMISTOS JOANNIDES,Vehicle Repairs & Maintenance,1002\1900067839,10/02/2021,"6,000",
SURFACE TRANSPORT CORP,AJF HOWLETT,Vehicle Repairs & Maintenance,1002\1900067841,10/02/2021,"6,000",
SURFACE TRANSPORT CORP,SEAN DEAR,Vehicle Repairs & Maintenance,1002\1900067844,10/02/2021,"6,000",
SURFACE TRANSPORT CORP,D&G TAXI RENTALS,Vehicle Repairs & Maintenance,1002\1900067845,10/02/2021,"6,000",
SURFACE TRANSPORT CORP,WAYNE TAPPER,Vehicle Repairs & Maintenance,1002\1900067847,10/02/2021,"6,000",
SURFACE TRANSPORT CORP,DEAN RICHARDSON,Vehicle Repairs & Maintenance,1002\1900067848,10/02/2021,"6,000",
SURFACE TRANSPORT CORP,R.DISCIPLINE,Vehicle Repairs & Maintenance,1002\1900067849,10/02/2021,"6,000",
SURFACE TRANSPORT CORP,MARC HICKMER,Vehicle Repairs & Maintenance,1002\1900067854,10/02/2021,"6,000",
SURFACE TRANSPORT CORP,MUHAMMED M GONDAL,Vehicle Repairs & Maintenance,1002\1900067862,10/02/2021,"6,000",
SURFACE TRANSPORT CORP,F A KNIGHT,Vehicle Repairs & Maintenance,1002\1900067883,10/02/2021,"6,000",
SURFACE TRANSPORT CORP,BLACK TAXI RENTALS LTD,Vehicle Repairs & Maintenance,1002\1900067888,10/02/2021,"6,000",
SURFACE TRANSPORT CORP,T J BARDIN,Vehicle Repairs & Maintenance,1002\1900067896,10/02/2021,"6,000",
SURFACE TRANSPORT CORP,LJK TAXIS LTD,Vehicle Repairs & Maintenance,1002\1900067898,10/02/2021,"6,000",
SURFACE TRANSPORT CORP,C BARBER,Vehicle Repairs & Maintenance,1002\1900067902,10/02/2021,"6,000",
SURFACE TRANSPORT CORP,DAVID PAYNE,Vehicle Repairs & Maintenance,1002\1900067905,10/02/2021,"6,000",
SURFACE TRANSPORT CORP,MUSTAF MUKHTAR ABUKAR,Vehicle Repairs & Maintenance,1002\1900067907,10/02/2021,"6,000",
SURFACE TRANSPORT CORP,NIGEL HARRIS,Vehicle Repairs & Maintenance,1002\1900067941,12/02/2021,"6,000",
SURFACE TRANSPORT CORP,S.G.WELSH,Vehicle Repairs & Maintenance,1002\1900067943,12/02/2021,"6,000",
SURFACE TRANSPORT CORP,JON LEE FOWELL,Vehicle Repairs & Maintenance,1002\1900067946,12/02/2021,"6,000",
SURFACE TRANSPORT CORP,JON LEE FOWELL,Vehicle Repairs & Maintenance,1002\1900067947,12/02/2021,"6,000",
SURFACE TRANSPORT CORP,BLACK TAXI RENTALS LTD,Vehicle Repairs & Maintenance,1002\1900067949,12/02/2021,"6,000",
SURFACE TRANSPORT CORP,JHS TAXIS LTD,Vehicle Repairs & Maintenance,1002\1900068002,16/02/2021,"6,000",
SURFACE TRANSPORT CORP,DAHIR ALI,Vehicle Repairs & Maintenance,1002\1900068027,16/02/2021,"6,000",
SURFACE TRANSPORT CORP,R NORRIS,Vehicle Repairs & Maintenance,1002\1900068068,24/02/2021,"6,000",
SURFACE TRANSPORT CORP,JASWIR SINGH,Vehicle Repairs & Maintenance,1002\1900068073,24/02/2021,"6,000",
SURFACE TRANSPORT CORP,G.J.G. EAVES,Vehicle Repairs & Maintenance,1002\1900068074,24/02/2021,"6,000",
SURFACE TRANSPORT CORP,MOHAMED KABBOUH,Vehicle Repairs & Maintenance,1002\1900068075,24/02/2021,"6,000",
SURFACE TRANSPORT CORP,SIMON OLIVER ROBERTS,Vehicle Repairs & Maintenance,1002\1900068081,24/02/2021,"6,000",
SURFACE TRANSPORT CORP,D POND,Vehicle Repairs & Maintenance,1002\1900068082,24/02/2021,"6,000",
SURFACE TRANSPORT CORP,SOVEREIGN AUTOMATIVE LTD,Vehicle Repairs & Maintenance,1002\1900068083,24/02/2021,"6,000",
SURFACE TRANSPORT CORP,BLACK TAXI RENTALS LTD,Vehicle Repairs & Maintenance,1002\1900068084,24/02/2021,"6,000",
SURFACE TRANSPORT CORP,J.C.FORINO,Vehicle Repairs & Maintenance,1002\1900068085,24/02/2021,"6,000",
SURFACE TRANSPORT CORP,DAVID MCCARTHY,Vehicle Repairs & Maintenance,1002\1900068086,24/02/2021,"6,000",
SURFACE TRANSPORT CORP,AGATA MALGORZATA MAOUCHE,Vehicle Repairs & Maintenance,1002\1900068093,24/02/2021,"6,000",
SURFACE TRANSPORT CORP,JAMES MICHEAL SQUIRES,Vehicle Repairs & Maintenance,1002\1900068105,24/02/2021,"6,000",
SURFACE TRANSPORT CORP,MOHSIN TRIBAK,Vehicle Repairs & Maintenance,1002\1900068108,24/02/2021,"6,000",
SURFACE TRANSPORT CORP,FRANKLYN SKINNER,Vehicle Repairs & Maintenance,1002\1900068110,24/02/2021,"6,000",
SURFACE TRANSPORT CORP,R NORRIS,Vehicle Repairs & Maintenance,1002\1900068137,24/02/2021,"6,000",
SURFACE TRANSPORT CORP,VICTORIA SMITH,Vehicle Repairs & Maintenance,1002\1900068140,24/02/2021,"6,000",
SURFACE TRANSPORT CORP,ROAD VEHICLE RENTAL LTD,Vehicle Repairs & Maintenance,1002\1900068150,24/02/2021,"6,000",
SURFACE TRANSPORT CORP,S & H CABS LTD,Vehicle Repairs & Maintenance,1002\1900068151,24/02/2021,"6,000",
SURFACE TRANSPORT CORP,ROAD VEHICLE RENTAL LTD,Vehicle Repairs & Maintenance,1002\1900068152,24/02/2021,"6,000",
SURFACE TRANSPORT CORP,R L TURNER,Vehicle Repairs & Maintenance,1002\1900068154,24/02/2021,"6,000",
SURFACE TRANSPORT CORP,A HUSSEIN,Vehicle Repairs & Maintenance,1002\1900068156,24/02/2021,"6,000",
SURFACE TRANSPORT CORP,M D WRIGHT,Vehicle Repairs & Maintenance,1002\1900068162,24/02/2021,"6,000",
SURFACE TRANSPORT CORP,P DAVENPORT,Vehicle Repairs & Maintenance,1002\1900068182,02/03/2021,"6,000",
SURFACE TRANSPORT CORP,P DAVENPORT,Vehicle Repairs & Maintenance,1002\1900068183,02/03/2021,"6,000",
